﻿Body Name,Body,Service Area Categorisation,Responsible Unit,Expense Type,Date,Transaction Number,Amount,Supplier Name
Derbyshire County Council,1000,Adult Social Care,Adult Social Health Care,Independent Dom Services,03/01/2023,1900441676,926.8,My Homecare
Derbyshire County Council,1000,Adult Social Care,Adult Social Health Care,Independent Dom Services,03/01/2023,1900441961,1292.06,Complete Care Chesterfield
Derbyshire County Council,1000,Adult Social Care,Adult Social Health Care,Independent Dom Services,03/01/2023,1900441959,1530,Complete Care Chesterfield
Derbyshire County Council,1000,Adult Social Care,Adult Social Health Care,Independent Dom Services,03/01/2023,1900441816,551.6,Foray 577 Ltd
Derbyshire County Council,1000,Adult Social Care,Adult Social Health Care,Independent Dom Services,03/01/2023,1900441926,1113.44,Foray 577 Ltd
Derbyshire County Council,1000,Adult Social Care,Adult Social Health Care,Independent Dom Services,03/01/2023,1900441975,727.02,Complete Care Chesterfield
Derbyshire County Council,1000,Adult Social Care,Adult Social Health Care,Independent Dom Services,03/01/2023,1900441467,2760.8,Premier Nursing Agency Ltd
Derbyshire County Council,1000,Adult Social Care,Adult Social Health Care,Independent Dom Services,03/01/2023,1900441797,688.64,Foray 577 Ltd
Derbyshire County Council,1000,Adult Social Care,Adult Social Health Care,Independent Dom Services,03/01/2023,1900441685,724.48,My Homecare
Derbyshire County Council,1000,Adult Social Care,Adult Social Health Care,Independent Dom Services,03/01/2023,1900441930,3059.64,Foray 577 Ltd
Derbyshire County Council,1000,Adult Social Care,Adult Social Health Care,Independent Dom Services,03/01/2023,1900441870,903.51,Foray 577 Ltd
Derbyshire County Council,1000,Adult Social Care,Adult Social Health Care,Independent Dom Services,03/01/2023,1900441869,2354.64,Foray 577 Ltd
Derbyshire County Council,1000,Adult Social Care,Adult Social Health Care,Independent Dom Services,03/01/2023,1900441864,980.76,Foray 577 Ltd
Derbyshire County Council,1000,Adult Social Care,Adult Social Health Care,Independent Dom Services,03/01/2023,1900441875,759.8,Foray 577 Ltd
Derbyshire County Council,1000,Adult Social Care,Adult Social Health Care,Independent Dom Services,03/01/2023,1900441917,807.52,Foray 577 Ltd
Derbyshire County Council,1000,Adult Social Care,Adult Social Health Care,Independent Dom Services,03/01/2023,1900441817,822.34,Foray 577 Ltd
Derbyshire County Council,1000,Adult Social Care,Adult Social Health Care,Independent Dom Services,03/01/2023,1900441465,1180.24,Premier Nursing Agency Ltd
Derbyshire County Council,1000,Adult Social Care,Adult Social Health Care,Non-Contracted – Home Care,03/01/2023,1900441495,613.76,Lloyds Care Group Ltd
Derbyshire County Council,1000,Adult Social Care,Adult Social Health Care,Independent Dom Services,03/01/2023,1900441495,1982.96,Lloyds Care Group Ltd
Derbyshire County Council,1000,Adult Social Care,Adult Social Health Care,Independent Dom Services,03/01/2023,1900441399,1543.68,Lily of the Valley
Derbyshire County Council,1000,Adult Social Care,Adult Social Health Care,Independent Dom Services,03/01/2023,1900441437,623.28,Serendipity Healthcare Ltd
Derbyshire County Council,1000,Adult Social Care,Adult Social Health Care,Independent Dom Services,03/01/2023,1900441915,1933.12,Foray 577 Ltd
Derbyshire County Council,1000,Adult Social Care,Adult Social Health Care,Independent Dom Services,03/01/2023,1900441827,600.06,Foray 577 Ltd
Derbyshire County Council,1000,Adult Social Care,Adult Social Health Care,Supported Living Schemes,03/01/2023,1900441756,3642.28,Lifeways
Derbyshire County Council,1000,Adult Social Care,Adult Social Health Care,Supported Living Schemes,03/01/2023,1900441555,6655.31,EMH Group
Derbyshire County Council,1000,Adult Social Care,Adult Social Health Care,Independent Dom Services,03/01/2023,1900441661,1141.53,My Homecare
Derbyshire County Council,1000,Adult Social Care,Adult Social Health Care,Independent Dom Services,03/01/2023,1900441989,655.62,Community Life Choices
Derbyshire County Council,1000,Adult Social Care,Adult Social Health Care,Independent Dom Services,03/01/2023,1900442001,749.76,Community Life Choices
Derbyshire County Council,1000,Adult Social Care,Adult Social Health Care,Independent Dom Services,03/01/2023,1900441994,834.4,Community Life Choices
Derbyshire County Council,1000,Adult Social Care,Adult Social Health Care,Independent Dom Services,03/01/2023,1900441942,630.56,Complete Care Chesterfield
Derbyshire County Council,1000,Adult Social Care,Adult Social Health Care,Independent Dom Services,03/01/2023,1900441846,806.68,Foray 577 Ltd
Derbyshire County Council,1000,Adult Social Care,Adult Social Health Care,Independent Dom Services,03/01/2023,1900441899,982.68,Foray 577 Ltd
Derbyshire County Council,1000,Adult Social Care,Adult Social Health Care,Independent Dom Services,03/01/2023,1900441400,675.36,Lily of the Valley
Derbyshire County Council,1000,Adult Social Care,Adult Social Health Care,Independent Dom Services,03/01/2023,1900441393,820.08,Lily of the Valley
Derbyshire County Council,1000,Adult Social Care,Adult Social Health Care,Independent Dom Services,03/01/2023,1900441668,559.76,My Homecare
Derbyshire County Council,1000,Adult Social Care,Adult Social Health Care,Independent Dom Services,03/01/2023,1900441672,1046.08,My Homecare
Derbyshire County Council,1000,Adult Social Care,Adult Social Health Care,Independent Dom Services,03/01/2023,1900441857,621.18,Foray 577 Ltd
Derbyshire County Council,1000,Adult Social Care,Adult Social Health Care,Independent Dom Services,03/01/2023,1900441863,1684.32,Foray 577 Ltd
Derbyshire County Council,1000,Adult Social Care,Adult Social Health Care,Independent Dom Services,03/01/2023,1900441928,767.76,Foray 577 Ltd
Derbyshire County Council,1000,Adult Social Care,Adult Social Health Care,Independent Dom Services,03/01/2023,1900441669,1972.3,My Homecare
Derbyshire County Council,1000,Adult Social Care,Adult Social Health Care,Supported Living Schemes,03/01/2023,1900441681,3567.98,EMH Group
Derbyshire County Council,1000,Adult Social Care,Adult Social Health Care,Independent Dom Services,03/01/2023,1900441678,642.12,My Homecare
Derbyshire County Council,1000,Adult Social Care,Adult Social Health Care,Independent Dom Services,03/01/2023,1900441898,946.64,Foray 577 Ltd
Derbyshire County Council,1000,Adult Social Care,Adult Social Health Care,Independent Dom Services,03/01/2023,1900441965,716.18,Complete Care Chesterfield
Derbyshire County Council,1000,Adult Social Care,Adult Social Health Care,Independent Dom Services,03/01/2023,1900441902,784.48,Foray 577 Ltd
Derbyshire County Council,1000,Adult Social Care,Adult Social Health Care,Non-Contracted – Home Care,03/01/2023,1900441378,2982.2,Twyford Care Ltd T/A Twyford Sup
Derbyshire County Council,1000,Adult Social Care,Adult Social Health Care,Supported Living Schemes,03/01/2023,1900441616,4111.8,Eden Supported Living Ltd
Derbyshire County Council,1000,Adult Social Care,Adult Social Health Care,Supported Living Schemes,03/01/2023,1900441785,4235.12,Mencap
Derbyshire County Council,1000,Adult Social Care,Adult Social Health Care,Independent Dom Services,03/01/2023,1900441901,849.5,Foray 577 Ltd
Derbyshire County Council,1000,Adult Social Care,Adult Social Health Care,Supported Living Schemes,03/01/2023,1900441595,-4419.13,Mencap
Derbyshire County Council,1000,Adult Social Care,Adult Social Health Care,Independent Dom Services,03/01/2023,1900441924,591.36,Foray 577 Ltd
Derbyshire County Council,1000,Adult Social Care,Adult Social Health Care,Independent Dom Services,03/01/2023,1900441889,1988.7,Foray 577 Ltd
Derbyshire County Council,1000,Adult Social Care,Adult Social Health Care,Independent Dom Services,03/01/2023,1900441844,543.88,Foray 577 Ltd
Derbyshire County Council,1000,Adult Social Care,Adult Social Health Care,Independent Dom Services,03/01/2023,1900441444,2488.64,Serendipity Healthcare Ltd
Derbyshire County Council,1000,Adult Social Care,Adult Social Health Care,Independent Dom Services,03/01/2023,1900441912,1120.24,Foray 577 Ltd
Derbyshire County Council,1000,Adult Social Care,Adult Social Health Care,Independent Dom Services,03/01/2023,1900441851,871.8,Foray 577 Ltd
Derbyshire County Council,1000,Adult Social Care,Adult Social Health Care,Independent Dom Services,03/01/2023,1900441843,3134.51,Foray 577 Ltd
Derbyshire County Council,1000,Adult Social Care,Adult Social Health Care,Supported Living Schemes,03/01/2023,1900441570,2208.72,EMH Group
Derbyshire County Council,1000,Adult Social Care,Adult Social Health Care,Supported Living Schemes,03/01/2023,1900441512,2783.06,EMH Group
Derbyshire County Council,1000,Adult Social Care,Adult Social Health Care,Independent Dom Services,03/01/2023,1900442000,1364.98,Community Life Choices
Derbyshire County Council,1000,Adult Social Care,Adult Social Health Care,Independent Dom Services,03/01/2023,1900441996,715.26,Community Life Choices
Derbyshire County Council,1000,Adult Social Care,Adult Social Health Care,Independent Dom Services,03/01/2023,1900441427,1181.6,Respectful Care
Derbyshire County Council,1000,Adult Social Care,Adult Social Health Care,Independent Dom Services,03/01/2023,1900441992,1302.98,Community Life Choices
Derbyshire County Council,1000,Adult Social Care,Adult Social Health Care,Non-Contracted – Home Care,03/01/2023,1900441496,613.76,Lloyds Care Group Ltd
Derbyshire County Council,1000,Adult Social Care,Adult Social Health Care,Non-Contracted – Home Care,03/01/2023,1900441494,987.84,Lloyds Care Group Ltd
Derbyshire County Council,1000,Adult Social Care,Adult Social Health Care,Independent Dom Services,03/01/2023,1900441496,2176.16,Lloyds Care Group Ltd
Derbyshire County Council,1000,Adult Social Care,Adult Social Health Care,Independent Dom Services,03/01/2023,1900441494,2026.08,Lloyds Care Group Ltd
Derbyshire County Council,1000,Adult Social Care,Adult Social Health Care,Independent Dom Services,03/01/2023,1900441998,774.76,Community Life Choices
Derbyshire County Council,1000,Adult Social Care,Adult Social Health Care,Supported Living Schemes,03/01/2023,1900441766,1713.44,Mencap
Derbyshire County Council,1000,Adult Social Care,Adult Social Health Care,Independent Dom Services,03/01/2023,1900441489,1940.16,Amber Valley Total Care Ltd
Derbyshire County Council,1000,Adult Social Care,Adult Social Health Care,Independent Dom Services,03/01/2023,1900441507,19305.78,Mencap
Derbyshire County Council,1000,Adult Social Care,Adult Social Health Care,Supported Living Schemes,03/01/2023,1900441729,2134.64,Mencap
Derbyshire County Council,1000,Adult Social Care,Adult Social Health Care,Independent Dom Services,03/01/2023,1900441460,723.6,Mencap
Derbyshire County Council,1000,Adult Social Care,Adult Social Health Care,Independent Dom Services,03/01/2023,1900441986,1788.08,Community Life Choices
Derbyshire County Council,1000,Adult Social Care,Adult Social Health Care,Independent Dom Services,03/01/2023,1900442004,600.03,Community Life Choices
Derbyshire County Council,1000,Adult Social Care,Adult Social Health Care,Supported Living Schemes,03/01/2023,1900441606,3987.2,Eden Supported Living Ltd
Derbyshire County Council,1000,Adult Social Care,Adult Social Health Care,Supported Living Schemes,03/01/2023,1900441574,2621.76,EMH Group
Derbyshire County Council,1000,Adult Social Care,Adult Social Health Care,Supported Living Schemes,03/01/2023,1900441604,5108.6,Eden Supported Living Ltd
Derbyshire County Council,1000,Adult Social Care,Adult Social Health Care,Independent Dom Services,03/01/2023,1900441443,2108.88,Serendipity Healthcare Ltd
Derbyshire County Council,1000,Adult Social Care,Adult Social Health Care,Supported Living Schemes,03/01/2023,1900441736,3171,Lifeways
Derbyshire County Council,1000,Adult Social Care,Adult Social Health Care,Independent Dom Services,03/01/2023,1900441853,1376.48,Foray 577 Ltd
Derbyshire County Council,1000,Adult Social Care,Adult Social Health Care,Independent Dom Services,03/01/2023,1900441838,926.8,Foray 577 Ltd
Derbyshire County Council,1000,Adult Social Care,Adult Social Health Care,Independent Dom Services,03/01/2023,1900441828,2683.52,Foray 577 Ltd
Derbyshire County Council,1000,Adult Social Care,Adult Social Health Care,Supported Living Schemes,03/01/2023,1900441677,3567.98,EMH Group
Derbyshire County Council,1000,Adult Social Care,Adult Social Health Care,Supported Living Schemes,03/01/2023,1900441745,2791.28,Lifeways
Derbyshire County Council,1000,Adult Social Care,Adult Social Health Care,Supported Living Schemes,03/01/2023,1900441757,3642.28,Lifeways
Derbyshire County Council,1000,Adult Social Care,Adult Social Health Care,Supported Living Schemes,03/01/2023,1900441753,3642.28,Lifeways
Derbyshire County Council,1000,Adult Social Care,Adult Social Health Care,Supported Living Schemes,03/01/2023,1900441750,3642.28,Lifeways
Derbyshire County Council,1000,Adult Social Care,Adult Social Health Care,Supported Living Schemes,03/01/2023,1900441557,6655.31,EMH Group
Derbyshire County Council,1000,Adult Social Care,Adult Social Health Care,Independent Dom Services,03/01/2023,1900441854,535.52,Foray 577 Ltd
Derbyshire County Council,1000,Adult Social Care,Adult Social Health Care,Independent Dom Services,03/01/2023,1900441874,906.18,Foray 577 Ltd
Derbyshire County Council,1000,Adult Social Care,Adult Social Health Care,Independent Dom Services,03/01/2023,1900441929,753.82,Foray 577 Ltd
Derbyshire County Council,1000,Adult Social Care,Adult Social Health Care,Supported Living Schemes,03/01/2023,1900441577,2397.3,Eden Supported Living Ltd
Derbyshire County Council,1000,Adult Social Care,Adult Social Health Care,Independent Dom Services,03/01/2023,1900441925,906.08,Foray 577 Ltd
Derbyshire County Council,1000,Adult Social Care,Adult Social Health Care,Supported Living Schemes,03/01/2023,1900441743,5643,Mencap
Derbyshire County Council,1000,Adult Social Care,Adult Social Health Care,Supported Living Schemes,03/01/2023,1900441572,3975.1,Eden Supported Living Ltd
Derbyshire County Council,1000,Adult Social Care,Adult Social Health Care,Non-Contracted – Home Care,03/01/2023,1900441500,537.04,Lloyds Care Group Ltd
Derbyshire County Council,1000,Adult Social Care,Adult Social Health Care,Independent Dom Services,03/01/2023,1900441934,1277.5,Foray 577 Ltd
Derbyshire County Council,1000,Adult Social Care,Adult Social Health Care,Supported Living Schemes,03/01/2023,1900441737,3171,Lifeways
Derbyshire County Council,1000,Adult Social Care,Adult Social Health Care,Supported Living Schemes,03/01/2023,1900441418,4582.2,Cera Care Ltd
Derbyshire County Council,1000,Adult Social Care,Adult Social Health Care,Supported Living Schemes,03/01/2023,1900441535,3251.65,EMH Group
Derbyshire County Council,1000,Adult Social Care,Adult Social Health Care,Supported Living Schemes,03/01/2023,1900441705,2749.81,EMH Group
Derbyshire County Council,1000,Adult Social Care,Adult Social Health Care,Independent Dom Services,03/01/2023,1900441895,2523.64,Foray 577 Ltd
Derbyshire County Council,1000,Adult Social Care,Adult Social Health Care,Independent Dom Services,03/01/2023,1900441907,681.42,Foray 577 Ltd
Derbyshire County Council,1000,Adult Social Care,Adult Social Health Care,Independent Dom Services,03/01/2023,1900441927,2206.96,Foray 577 Ltd
Derbyshire County Council,1000,Adult Social Care,Adult Social Health Care,Independent Dom Services,03/01/2023,1900441883,1201.72,Foray 577 Ltd
Derbyshire County Council,1000,Adult Social Care,Adult Social Health Care,Independent Dom Services,03/01/2023,1900441862,1915.36,Foray 577 Ltd
Derbyshire County Council,1000,Adult Social Care,Adult Social Health Care,Hire Of Vehicles,03/01/2023,1900442028,1208.74,Galaxy Travel & Cars Ltd
Derbyshire County Council,1000,Adult Social Care,Adult Social Health Care,Supported Living Schemes,03/01/2023,1900441727,5353.52,Mencap
Derbyshire County Council,1000,Adult Social Care,Adult Social Health Care,Supported Living Schemes,03/01/2023,1900441734,3171,Lifeways
Derbyshire County Council,1000,Adult Social Care,Adult Social Health Care,Independent Dom Services,03/01/2023,1900441916,1222.48,Foray 577 Ltd
Derbyshire County Council,1000,Adult Social Care,Adult Social Health Care,Independent Dom Services,03/01/2023,1900441809,1421.28,Foray 577 Ltd
Derbyshire County Council,1000,Adult Social Care,Adult Social Health Care,Independent Dom Services,03/01/2023,1900441810,1103.2,Foray 577 Ltd
Derbyshire County Council,1000,Adult Social Care,Adult Social Health Care,Independent Dom Services,03/01/2023,1900441804,2352.64,Foray 577 Ltd
Derbyshire County Council,1000,Adult Social Care,Adult Social Health Care,Supported Living Schemes,03/01/2023,1900441536,3251.65,EMH Group
Derbyshire County Council,1000,Adult Social Care,Adult Social Health Care,Independent Dom Services,03/01/2023,1900441815,1103.2,Foray 577 Ltd
Derbyshire County Council,1000,Adult Social Care,Adult Social Health Care,Independent Dom Services,03/01/2023,1900441935,541.1,Foray 577 Ltd
Derbyshire County Council,1000,Adult Social Care,Adult Social Health Care,Supported Living Schemes,03/01/2023,1900441544,3251.65,EMH Group
Derbyshire County Council,1000,Adult Social Care,Adult Social Health Care,Independent Dom Services,03/01/2023,1900441842,534.2,Foray 577 Ltd
Derbyshire County Council,1000,Adult Social Care,Adult Social Health Care,Independent Dom Services,03/01/2023,1900441974,703.52,Complete Care Chesterfield
Derbyshire County Council,1000,Adult Social Care,Adult Social Health Care,Independent Dom Services,03/01/2023,1900441419,668.88,Respectful Care
Derbyshire County Council,1000,Adult Social Care,Adult Social Health Care,Independent Dom Services,03/01/2023,1900441922,670.32,Foray 577 Ltd
Derbyshire County Council,1000,Adult Social Care,Adult Social Health Care,Supported Living Schemes,03/01/2023,1900441660,4543.44,EMH Group
Derbyshire County Council,1000,Adult Social Care,Adult Social Health Care,Independent Dom Services,03/01/2023,1900441420,1088.32,Sarah Care Ltd
Derbyshire County Council,1000,Adult Social Care,Adult Social Health Care,Supported Living Schemes,03/01/2023,1900441624,3778.97,EMH Group
Derbyshire County Council,1000,Adult Social Care,Adult Social Health Care,Supported Living Schemes,03/01/2023,1900441648,8120.49,EMH Group
Derbyshire County Council,1000,Adult Social Care,Adult Social Health Care,Supported Living Schemes,03/01/2023,1900441742,2760.82,Lifeways
Derbyshire County Council,1000,Adult Social Care,Adult Social Health Care,Independent Dom Services,03/01/2023,1900441803,1073.86,Foray 577 Ltd
Derbyshire County Council,1000,Adult Social Care,Adult Social Health Care,Independent Dom Services,03/01/2023,1900441682,2522.24,My Homecare
Derbyshire County Council,1000,Adult Social Care,Adult Social Health Care,Independent Dom Services,03/01/2023,1900441909,1205.08,Foray 577 Ltd
Derbyshire County Council,1000,Adult Social Care,Adult Social Health Care,Supported Living Schemes,03/01/2023,1900441369,4548.33,Reach Housing And Enablement
Derbyshire County Council,1000,Adult Social Care,Adult Social Health Care,Independent Dom Services,03/01/2023,1900441811,1222.12,Foray 577 Ltd
Derbyshire County Council,1000,Adult Social Care,Adult Social Health Care,Independent Dom Services,03/01/2023,1900441995,791.78,Community Life Choices
Derbyshire County Council,1000,Adult Social Care,Adult Social Health Care,Supported Living Schemes,03/01/2023,1900441371,2680.76,Reach Housing And Enablement
Derbyshire County Council,1000,Adult Social Care,Adult Social Health Care,Non-Contracted – Home Care,03/01/2023,1900441783,578.88,Mencap
Derbyshire County Council,1000,Adult Social Care,Adult Social Health Care,Independent Dom Services,03/01/2023,1900441988,516.44,Community Life Choices
Derbyshire County Council,1000,Adult Social Care,Adult Social Health Care,Non-Contracted – Home Care,03/01/2023,1900441493,613.76,Lloyds Care Group Ltd
Derbyshire County Council,1000,Adult Social Care,Adult Social Health Care,Independent Dom Services,03/01/2023,1900441493,1350.72,Lloyds Care Group Ltd
Derbyshire County Council,1000,Adult Social Care,Adult Social Health Care,Independent Dom Services,03/01/2023,1900441932,1062.28,Foray 577 Ltd
Derbyshire County Council,1000,Adult Social Care,Adult Social Health Care,Independent Dom Services,03/01/2023,1900441914,1783.98,Foray 577 Ltd
Derbyshire County Council,1000,Adult Social Care,Adult Social Health Care,Independent Dom Services,03/01/2023,1900441918,767.76,Foray 577 Ltd
Derbyshire County Council,1000,Adult Social Care,Adult Social Health Care,Supported Living Schemes,03/01/2023,1900441526,3432.08,EMH Group
Derbyshire County Council,1000,Adult Social Care,Adult Social Health Care,Supported Living Schemes,03/01/2023,1900441513,2438.86,EMH Group
Derbyshire County Council,1000,Adult Social Care,Adult Social Health Care,Independent Dom Services,03/01/2023,1900441973,503.16,Complete Care Chesterfield
Derbyshire County Council,1000,Adult Social Care,Adult Social Health Care,Independent Dom Services,03/01/2023,1900441426,1103.2,Respectful Care
Derbyshire County Council,1000,Adult Social Care,Adult Social Health Care,Independent Dom Services,03/01/2023,1900441891,567.68,Foray 577 Ltd
Derbyshire County Council,1000,Adult Social Care,Adult Social Health Care,Independent Dom Services,03/01/2023,1900441671,1022.56,My Homecare
Derbyshire County Council,1000,Adult Social Care,Adult Social Health Care,Independent Dom Services,03/01/2023,1900441693,511.28,My Homecare
Derbyshire County Council,1000,Adult Social Care,Adult Social Health Care,Supported Living Schemes,03/01/2023,1900441601,3756.25,EMH Group
Derbyshire County Council,1000,Adult Social Care,Adult Social Health Care,Supported Living Schemes,03/01/2023,1900441587,4456.35,EMH Group
Derbyshire County Council,1000,Adult Social Care,Adult Social Health Care,Supported Living Schemes,03/01/2023,1900441584,11269.92,EMH Group
Derbyshire County Council,1000,Adult Social Care,Adult Social Health Care,Supported Living Schemes,03/01/2023,1900441578,6564.3,EMH Group
Derbyshire County Council,1000,Adult Social Care,Adult Social Health Care,Supported Living Schemes,03/01/2023,1900441583,6564.3,EMH Group
Derbyshire County Council,1000,Adult Social Care,Adult Social Health Care,Non-Contracted – Home Care,03/01/2023,1900441503,613.76,Lloyds Care Group Ltd
Derbyshire County Council,1000,Adult Social Care,Adult Social Health Care,Supported Living Schemes,03/01/2023,1900441728,1664.28,Mencap
Derbyshire County Council,1000,Adult Social Care,Adult Social Health Care,Supported Living Schemes,03/01/2023,1900441732,3138.77,Lifeways
Derbyshire County Council,1000,Adult Social Care,Adult Social Health Care,Independent Dom Services,03/01/2023,1900441503,1800.96,Lloyds Care Group Ltd
Derbyshire County Council,1000,Adult Social Care,Adult Social Health Care,Independent Dom Services,03/01/2023,1900441841,1888.32,Foray 577 Ltd
Derbyshire County Council,1000,Adult Social Care,Adult Social Health Care,Supported Living Schemes,03/01/2023,1900441717,3449.91,EMH Group
Derbyshire County Council,1000,Adult Social Care,Adult Social Health Care,Supported Living Schemes,03/01/2023,1900441741,5643,Mencap
Derbyshire County Council,1000,Adult Social Care,Adult Social Health Care,Independent Dom Services,03/01/2023,1900441886,591.36,Foray 577 Ltd
Derbyshire County Council,1000,Adult Social Care,Adult Social Health Care,Supported Living Schemes,03/01/2023,1900441735,3171,Lifeways
Derbyshire County Council,1000,Adult Social Care,Adult Social Health Care,Hire Of Vehicles,03/01/2023,1900442030,1208.74,Galaxy Travel & Cars Ltd
Derbyshire County Council,1000,Adult Social Care,Adult Social Health Care,Independent Dom Services,03/01/2023,1900441880,914,Foray 577 Ltd
Derbyshire County Council,1000,Adult Social Care,Adult Social Health Care,Independent Dom Services,03/01/2023,1900441692,630.56,My Homecare
Derbyshire County Council,1000,Adult Social Care,Adult Social Health Care,Independent Dom Services,03/01/2023,1900441690,938.56,My Homecare
Derbyshire County Council,1000,Adult Social Care,Adult Social Health Care,Supported Living Schemes,03/01/2023,1900441718,3449.91,EMH Group
Derbyshire County Council,1000,Adult Social Care,Adult Social Health Care,Supported Living Schemes,03/01/2023,1900441716,3449.91,EMH Group
Derbyshire County Council,1000,Adult Social Care,Adult Social Health Care,Non-Contracted – Home Care,03/01/2023,1900441403,987.84,Lily of the Valley
Derbyshire County Council,1000,Adult Social Care,Adult Social Health Care,Supported Living Schemes,03/01/2023,1900441640,5661.05,EMH Group
Derbyshire County Council,1000,Adult Social Care,Adult Social Health Care,Independent Dom Services,03/01/2023,1900441807,3160.64,Foray 577 Ltd
Derbyshire County Council,1000,Adult Social Care,Adult Social Health Care,Independent Dom Services,03/01/2023,1900441819,557.28,Foray 577 Ltd
Derbyshire County Council,1000,Adult Social Care,Adult Social Health Care,Independent Dom Services,03/01/2023,1900441919,631.12,Foray 577 Ltd
Derbyshire County Council,1000,Adult Social Care,Adult Social Health Care,Independent Dom Services,03/01/2023,1900441438,532.78,Serendipity Healthcare Ltd
Derbyshire County Council,1000,Adult Social Care,Adult Social Health Care,Independent Dom Services,03/01/2023,1900441384,966,Serendipity Healthcare Ltd
Derbyshire County Council,1000,Adult Social Care,Adult Social Health Care,Independent Dom Services,03/01/2023,1900441355,1912.96,Shirecare Ltd
Derbyshire County Council,1000,Adult Social Care,Adult Social Health Care,Independent Dom Services,03/01/2023,1900441386,2333.56,Serendipity Healthcare Ltd
Derbyshire County Council,1000,Adult Social Care,Adult Social Health Care,Independent Dom Services,03/01/2023,1900441802,670.88,Foray 577 Ltd
Derbyshire County Council,1000,Adult Social Care,Adult Social Health Care,Independent Dom Services,03/01/2023,1900441931,665.2,Foray 577 Ltd
Derbyshire County Council,1000,Adult Social Care,Adult Social Health Care,Independent Dom Services,03/01/2023,1900441865,2056,Foray 577 Ltd
Derbyshire County Council,1000,Adult Social Care,Adult Social Health Care,Supported Living Schemes,03/01/2023,1900441543,3251.65,EMH Group
Derbyshire County Council,1000,Adult Social Care,Adult Social Health Care,Independent Dom Services,03/01/2023,1900441833,1120.24,Foray 577 Ltd
Derbyshire County Council,1000,Adult Social Care,Adult Social Health Care,Independent Dom Services,03/01/2023,1900441881,650.64,Foray 577 Ltd
Derbyshire County Council,1000,Adult Social Care,Adult Social Health Care,Independent Dom Services,03/01/2023,1900441879,770.24,Foray 577 Ltd
Derbyshire County Council,1000,Adult Social Care,Adult Social Health Care,Independent Dom Services,03/01/2023,1900441675,1580.32,My Homecare
Derbyshire County Council,1000,Adult Social Care,Adult Social Health Care,Independent Dom Services,03/01/2023,1900441445,2654.76,Serendipity Healthcare Ltd
Derbyshire County Council,1000,Adult Social Care,Adult Social Health Care,Non-Contracted – Home Care,03/01/2023,1900441400,712.32,Lily of the Valley
Derbyshire County Council,1000,Adult Social Care,Adult Social Health Care,Independent Dom Services,03/01/2023,1900441878,807.52,Foray 577 Ltd
Derbyshire County Council,1000,Adult Social Care,Adult Social Health Care,Independent Dom Services,03/01/2023,1900441812,1125.6,Foray 577 Ltd
Derbyshire County Council,1000,Adult Social Care,Adult Social Health Care,Independent Dom Services,03/01/2023,1900441892,1051.28,Foray 577 Ltd
Derbyshire County Council,1000,Adult Social Care,Adult Social Health Care,Independent Dom Services,03/01/2023,1900441836,898.4,Foray 577 Ltd
Derbyshire County Council,1000,Adult Social Care,Adult Social Health Care,Supported Living Schemes,03/01/2023,1900441739,3171,Lifeways
Derbyshire County Council,1000,Adult Social Care,Adult Social Health Care,Independent Dom Services,03/01/2023,1900441425,1216.64,Respectful Care
Derbyshire County Council,1000,Adult Social Care,Adult Social Health Care,Supported Living Schemes,03/01/2023,1900441749,3602.53,Lifeways
Derbyshire County Council,1000,Adult Social Care,Adult Social Health Care,Supported Living Schemes,03/01/2023,1900441565,4076.2,Eden Supported Living Ltd
Derbyshire County Council,1000,Adult Social Care,Adult Social Health Care,Independent Dom Services,03/01/2023,1900441659,1062.68,My Homecare
Derbyshire County Council,1000,Adult Social Care,Adult Social Health Care,Independent Dom Services,03/01/2023,1900441479,540.71,Premier Nursing Agency Ltd
Derbyshire County Council,1000,Adult Social Care,Adult Social Health Care,Supported Living Schemes,03/01/2023,1900441510,3243.39,EMH Group
Derbyshire County Council,1000,Adult Social Care,Adult Social Health Care,Supported Living Schemes,03/01/2023,1900441509,3484.33,EMH Group
Derbyshire County Council,1000,Adult Social Care,Adult Social Health Care,Independent Dom Services,03/01/2023,1900441981,1328.46,Community Life Choices
Derbyshire County Council,1000,Adult Social Care,Adult Social Health Care,Independent Dom Services,03/01/2023,1900441982,995.98,Community Life Choices
Derbyshire County Council,1000,Adult Social Care,Adult Social Health Care,Independent Dom Services,03/01/2023,1900441673,1500.8,My Homecare
Derbyshire County Council,1000,Adult Social Care,Adult Social Health Care,Supported Living Schemes,03/01/2023,1900441793,2147.6,Mencap
Derbyshire County Council,1000,Adult Social Care,Adult Social Health Care,Independent Dom Services,03/01/2023,1900441403,2251.2,Lily of the Valley
Derbyshire County Council,1000,Adult Social Care,Adult Social Health Care,Independent Dom Services,03/01/2023,1900441877,1009.6,Foray 577 Ltd
Derbyshire County Council,1000,Adult Social Care,Adult Social Health Care,Supported Living Schemes,03/01/2023,1900441416,3500.16,Voyage Care
Derbyshire County Council,1000,Adult Social Care,Adult Social Health Care,Supported Living Schemes,03/01/2023,1900441569,4111.8,Eden Supported Living Ltd
Derbyshire County Council,1000,Adult Social Care,Adult Social Health Care,Independent Dom Services,03/01/2023,1900441497,546.66,Lloyds Care Group Ltd
Derbyshire County Council,1000,Adult Social Care,Adult Social Health Care,Independent Dom Services,03/01/2023,1900441896,630.66,Foray 577 Ltd
Derbyshire County Council,1000,Adult Social Care,Adult Social Health Care,Independent Dom Services,03/01/2023,1900441446,2011.52,Serendipity Healthcare Ltd
Derbyshire County Council,1000,Adult Social Care,Adult Social Health Care,Non-Contracted – Home Care,03/01/2023,1900441399,1068.48,Lily of the Valley
Derbyshire County Council,1000,Adult Social Care,Adult Social Health Care,Supported Living Schemes,03/01/2023,1900441387,3856.56,Reach Housing And Enablement
Derbyshire County Council,1000,Adult Social Care,Adult Social Health Care,Supported Living Schemes,03/01/2023,1900441641,3251.65,EMH Group
Derbyshire County Council,1000,Adult Social Care,Adult Social Health Care,Supported Living Schemes,03/01/2023,1900441522,2473.28,EMH Group
Derbyshire County Council,1000,Adult Social Care,Adult Social Health Care,Supported Living Schemes,03/01/2023,1900441761,3739.52,Mencap
Derbyshire County Council,1000,Adult Social Care,Adult Social Health Care,Supported Living Schemes,03/01/2023,1900441768,4611.84,Mencap
Derbyshire County Council,1000,Adult Social Care,Adult Social Health Care,Supported Living Schemes,03/01/2023,1900441602,4111.8,Eden Supported Living Ltd
Derbyshire County Council,1000,Adult Social Care,Adult Social Health Care,Supported Living Schemes,03/01/2023,1900441748,3364.04,Lifeways
Derbyshire County Council,1000,Adult Social Care,Adult Social Health Care,Non-Contracted – Home Care,03/01/2023,1900441374,2308.88,Twyford Care Ltd T/A Twyford Sup
Derbyshire County Council,1000,Adult Social Care,Adult Social Health Care,Independent Dom Services,03/01/2023,1900441829,2763.04,Foray 577 Ltd
Derbyshire County Council,1000,Adult Social Care,Adult Social Health Care,Independent Dom Services,03/01/2023,1900441830,631.12,Foray 577 Ltd
Derbyshire County Council,1000,Adult Social Care,Adult Social Health Care,Independent Dom Services,03/01/2023,1900441824,3475.88,Foray 577 Ltd
Derbyshire County Council,1000,Adult Social Care,Adult Social Health Care,Independent Dom Services,03/01/2023,1900441500,1921.56,Lloyds Care Group Ltd
Derbyshire County Council,1000,Adult Social Care,Adult Social Health Care,Supported Living Schemes,03/01/2023,1900441590,3365.93,EMH Group
Derbyshire County Council,1000,Adult Social Care,Adult Social Health Care,Supported Living Schemes,03/01/2023,1900441597,4169.29,EMH Group
Derbyshire County Council,1000,Adult Social Care,Adult Social Health Care,Supported Living Schemes,03/01/2023,1900441622,7201.07,EMH Group
Derbyshire County Council,1000,Adult Social Care,Adult Social Health Care,Supported Living Schemes,03/01/2023,1900441586,3251.65,EMH Group
Derbyshire County Council,1000,Adult Social Care,Adult Social Health Care,Supported Living Schemes,03/01/2023,1900441621,5307.97,EMH Group
Derbyshire County Council,1000,Adult Social Care,Adult Social Health Care,Supported Living Schemes,03/01/2023,1900441567,1101.44,EMH Group
Derbyshire County Council,1000,Adult Social Care,Adult Social Health Care,Supported Living Schemes,03/01/2023,1900441861,5921.32,Lifeways
Derbyshire County Council,1000,Adult Social Care,Adult Social Health Care,Independent Dom Services,03/01/2023,1900441712,894.92,EMH Group
Derbyshire County Council,1000,Adult Social Care,Adult Social Health Care,Independent Dom Services,03/01/2023,1900441903,807.88,Foray 577 Ltd
Derbyshire County Council,1000,Adult Social Care,Adult Social Health Care,Independent Dom Services,03/01/2023,1900441908,2842.56,Foray 577 Ltd
Derbyshire County Council,1000,Adult Social Care,Adult Social Health Care,Independent Dom Services,03/01/2023,1900441963,559.86,Complete Care Chesterfield
Derbyshire County Council,1000,Adult Social Care,Adult Social Health Care,Supported Living Schemes,03/01/2023,1900441532,5675.51,EMH Group
Derbyshire County Council,1000,Adult Social Care,Adult Social Health Care,Independent Dom Services,03/01/2023,1900441970,543.06,Complete Care Chesterfield
Derbyshire County Council,1000,Adult Social Care,Adult Social Health Care,Independent Dom Services,03/01/2023,1900441398,847.08,Lily of the Valley
Derbyshire County Council,1000,Adult Social Care,Adult Social Health Care,Independent Dom Services,03/01/2023,1900441391,675.36,Lily of the Valley
Derbyshire County Council,1000,Adult Social Care,Adult Social Health Care,Supported Living Schemes,03/01/2023,1900441632,9755.44,EMH Group
Derbyshire County Council,1000,Adult Social Care,Adult Social Health Care,Supported Living Schemes,03/01/2023,1900441861,-4600.88,Lifeways
Derbyshire County Council,1000,Adult Social Care,Adult Social Health Care,Supported Living Schemes,03/01/2023,1900441633,6395.57,EMH Group
Derbyshire County Council,1000,Adult Social Care,Adult Social Health Care,Independent Dom Services,03/01/2023,1900441385,3760.96,Serendipity Healthcare Ltd
Derbyshire County Council,1000,Adult Social Care,Adult Social Health Care,Independent Dom Services,03/01/2023,1900441978,1549.52,Community Life Choices
Derbyshire County Council,1000,Adult Social Care,Adult Social Health Care,Independent Dom Services,03/01/2023,1900441940,651.49,Community Life Choices
Derbyshire County Council,1000,Adult Social Care,Adult Social Health Care,Independent Dom Services,03/01/2023,1900441505,1246.2,High Peak Carers Ltd
Derbyshire County Council,1000,Adult Social Care,Adult Social Health Care,Supported Living Schemes,03/01/2023,1900441702,3038.76,EMH Group
Derbyshire County Council,1000,Adult Social Care,Adult Social Health Care,Supported Living Schemes,03/01/2023,1900441620,34621.16,Eden Supported Living Ltd
Derbyshire County Council,1000,Adult Social Care,Adult Social Health Care,Supported Living Schemes,03/01/2023,1900441623,3756.25,EMH Group
Derbyshire County Council,1000,Adult Social Care,Adult Social Health Care,Supported Living Schemes,03/01/2023,1900441638,3790.67,EMH Group
Derbyshire County Council,1000,Adult Social Care,Adult Social Health Care,Supported Living Schemes,03/01/2023,1900441637,3446.47,EMH Group
Derbyshire County Council,1000,Adult Social Care,Adult Social Health Care,Supported Living Schemes,03/01/2023,1900441759,3642.28,Lifeways
Derbyshire County Council,1000,Adult Social Care,Adult Social Health Care,Supported Living Schemes,03/01/2023,1900441752,3642.28,Lifeways
Derbyshire County Council,1000,Adult Social Care,Adult Social Health Care,Supported Living Schemes,03/01/2023,1900441775,5100.28,Mencap
Derbyshire County Council,1000,Adult Social Care,Adult Social Health Care,Independent Dom Services,03/01/2023,1900441423,721.24,Respectful Care
Derbyshire County Council,1000,Adult Social Care,Adult Social Health Care,Independent Dom Services,03/01/2023,1900441890,784.59,Foray 577 Ltd
Derbyshire County Council,1000,Adult Social Care,Adult Social Health Care,Independent Dom Services,03/01/2023,1900441436,796.08,Serendipity Healthcare Ltd
Derbyshire County Council,1000,Adult Social Care,Adult Social Health Care,Supported Living Schemes,03/01/2023,1900441417,4582.2,Cera Care Ltd
Derbyshire County Council,1000,Adult Social Care,Adult Social Health Care,Supported Living Schemes,03/01/2023,1900441508,3243.39,EMH Group
Derbyshire County Council,1000,Adult Social Care,Adult Social Health Care,Independent Dom Services,03/01/2023,1900441893,617.2,Foray 577 Ltd
Derbyshire County Council,1000,Adult Social Care,Adult Social Health Care,Independent Dom Services,03/01/2023,1900441421,516.02,Respectful Care
Derbyshire County Council,1000,Adult Social Care,Adult Social Health Care,Independent Dom Services,03/01/2023,1900441984,1907.36,Community Life Choices
Derbyshire County Council,1000,Adult Social Care,Adult Social Health Care,Independent Dom Services,03/01/2023,1900441806,2922.08,Foray 577 Ltd
Derbyshire County Council,1000,Adult Social Care,Adult Social Health Care,Supported Living Schemes,03/01/2023,1900441560,5049.82,EMH Group
Derbyshire County Council,1000,Adult Social Care,Adult Social Health Care,Independent Dom Services,03/01/2023,1900441997,1729.2,Community Life Choices
Derbyshire County Council,1000,Adult Social Care,Adult Social Health Care,Independent Dom Services,03/01/2023,1900441470,715.76,Bosworth Homecare Ilkeston
Derbyshire County Council,1000,Adult Social Care,Adult Social Health Care,Independent Dom Services,03/01/2023,1900441947,656.12,Complete Care Chesterfield
Derbyshire County Council,1000,Adult Social Care,Adult Social Health Care,Independent Dom Services,03/01/2023,1900441867,535.98,Foray 577 Ltd
Derbyshire County Council,1000,Adult Social Care,Adult Social Health Care,Independent Dom Services,03/01/2023,1900441876,826.82,Foray 577 Ltd
Derbyshire County Council,1000,Adult Social Care,Adult Social Health Care,Independent Dom Services,03/01/2023,1900441840,624.88,Foray 577 Ltd
Derbyshire County Council,1000,Adult Social Care,Adult Social Health Care,Independent Dom Services,03/01/2023,1900441856,651.28,Foray 577 Ltd
Derbyshire County Council,1000,Adult Social Care,Adult Social Health Care,Input VAT,03/01/2023,5100076688,677,Stannah Ltd
Derbyshire County Council,1000,Adult Social Care,Adult Social Health Care,Independent Dom Services,03/01/2023,1900441454,565.04,Routes Healthcare
Derbyshire County Council,1000,Adult Social Care,Adult Social Health Care,Independent Dom Services,03/01/2023,1900441439,555.66,Serendipity Healthcare Ltd
Derbyshire County Council,1000,Adult Social Care,Adult Social Health Care,Independent Dom Services,03/01/2023,1900441814,3160.64,Foray 577 Ltd
Derbyshire County Council,1000,Adult Social Care,Adult Social Health Care,Independent Dom Services,03/01/2023,1900441805,1444,Foray 577 Ltd
Derbyshire County Council,1000,Adult Social Care,Adult Social Health Care,Independent Dom Services,03/01/2023,1900441352,618.24,Valley Care Direct Ltd
Derbyshire County Council,1000,Adult Social Care,Adult Social Health Care,Goods Received/Invoice Rec'd A/c,03/01/2023,5100077338,927.5,Hickling and Squires Print
Derbyshire County Council,1000,Adult Social Care,Adult Social Health Care,Goods Received/Invoice Rec'd A/c,03/01/2023,5100076740,1314313,UK Health Security Agency
Derbyshire County Council,1000,Adult Social Care,Adult Social Health Care,Goods Received/Invoice Rec'd A/c,03/01/2023,5100076688,3385,Stannah Ltd
Derbyshire County Council,1000,Adult Social Care,Adult Social Health Care,Independent Persons,03/01/2023,1900442183,919.35,Julia Pyke
Derbyshire County Council,1000,Adult Social Care,Adult Social Health Care,Independent Dom Services,03/01/2023,1900441946,543.06,Complete Care Chesterfield
Derbyshire County Council,1000,Adult Social Care,Adult Social Health Care,Independent Dom Services,03/01/2023,1900441845,1173.58,Foray 577 Ltd
Derbyshire County Council,1000,Adult Social Care,Adult Social Health Care,Supported Living Schemes,03/01/2023,1900441618,2409.4,EMH Group
Derbyshire County Council,1000,Adult Social Care,Adult Social Health Care,Supported Living Schemes,03/01/2023,1900441723,10272.92,Mencap
Derbyshire County Council,1000,Adult Social Care,Adult Social Health Care,Supported Living Schemes,03/01/2023,1900441599,3345.33,Eden Supported Living Ltd
Derbyshire County Council,1000,Adult Social Care,Adult Social Health Care,Supported Living Schemes,03/01/2023,1900441696,3331.86,EMH Group
Derbyshire County Council,1000,Adult Social Care,Adult Social Health Care,Supported Living Schemes,03/01/2023,1900441684,3567.98,EMH Group
Derbyshire County Council,1000,Adult Social Care,Adult Social Health Care,Supported Living Schemes,03/01/2023,1900441751,3642.28,Lifeways
Derbyshire County Council,1000,Adult Social Care,Adult Social Health Care,Independent Dom Services,03/01/2023,1900441822,1103.2,Foray 577 Ltd
Derbyshire County Council,1000,Adult Social Care,Adult Social Health Care,Supported Living Schemes,03/01/2023,1900441755,3642.28,Lifeways
Derbyshire County Council,1000,Adult Social Care,Adult Social Health Care,Supported Living Schemes,03/01/2023,1900441715,2340.56,EMH Group
Derbyshire County Council,1000,Adult Social Care,Adult Social Health Care,Supported Living Schemes,03/01/2023,1900441528,3251.65,EMH Group
Derbyshire County Council,1000,Adult Social Care,Adult Social Health Care,Supported Living Schemes,03/01/2023,1900441511,2438.86,EMH Group
Derbyshire County Council,1000,Adult Social Care,Adult Social Health Care,Independent Dom Services,03/01/2023,1900441422,1766.7,Respectful Care
Derbyshire County Council,1000,Children & Education Services,Children's Services,Other Local Authorities,03/01/2023,1900441106,4400.2,Cheshire West And Chester Council
Derbyshire County Council,1000,Children & Education Services,Children's Services,Other Local Authorities,03/01/2023,1900441085,16452,Woodlands School
Derbyshire County Council,1000,Children & Education Services,Children's Services,Other Local Authorities,03/01/2023,1900441096,15417.91,St Josephs Catholic Primary School
Derbyshire County Council,1000,Children & Education Services,Children's Services,Other Local Authorities,03/01/2023,1900441113,3141.5,Emmanuel Junior Academy
Derbyshire County Council,1000,Children & Education Services,Children's Services,Home to Sch SN Trnsp,03/01/2023,1900442060,1675,Western Cars Company Derby Ltd
Derbyshire County Council,1000,Adult Social Care,Adult Social Health Care,Independent Dom Services,03/01/2023,1900441848,2236.04,Foray 577 Ltd
Derbyshire County Council,1000,Adult Social Care,Adult Social Health Care,Supported Living Schemes,03/01/2023,1900441518,2123.19,EMH Group
Derbyshire County Council,1000,Adult Social Care,Adult Social Health Care,Goods Received/Invoice Rec'd A/c,03/01/2023,5100077350,8701.15,Derby and Derbyshire ICB
Derbyshire County Council,1000,Adult Social Care,Adult Social Health Care,Independent Dom Services,03/01/2023,1900441858,584.84,Foray 577 Ltd
Derbyshire County Council,1000,Adult Social Care,Adult Social Health Care,Supported Living Schemes,03/01/2023,1900441695,3331.86,EMH Group
Derbyshire County Council,1000,Adult Social Care,Adult Social Health Care,Supported Living Schemes,03/01/2023,1900441646,4516.31,EMH Group
Derbyshire County Council,1000,Adult Social Care,Adult Social Health Care,Direct Payment,03/01/2023,1900440979,4000,REDACTED PERSONAL DATA
Derbyshire County Council,1000,Adult Social Care,Adult Social Health Care,Supported Living Schemes,03/01/2023,1900441617,4011.07,Eden Supported Living Ltd
Derbyshire County Council,1000,Adult Social Care,Adult Social Health Care,Supported Living Schemes,03/01/2023,1900441765,2147.6,Mencap
Derbyshire County Council,1000,Adult Social Care,Adult Social Health Care,Independent Dom Services,03/01/2023,1900441762,1085.4,Mencap
Derbyshire County Council,1000,Adult Social Care,Adult Social Health Care,Supported Living Schemes,03/01/2023,1900441571,5313.17,Eden Supported Living Ltd
Derbyshire County Council,1000,Adult Social Care,Adult Social Health Care,Goods Received/Invoice Rec'd A/c,03/01/2023,5100076939,1690,Ghc Builders And Joinery Ltd
Derbyshire County Council,1000,Adult Social Care,Adult Social Health Care,Independent Dom Services,03/01/2023,1900441758,1447.2,Mencap
Derbyshire County Council,1000,Adult Social Care,Adult Social Health Care,Independent Dom Services,03/01/2023,1900441472,723.6,Mencap
Derbyshire County Council,1000,Adult Social Care,Adult Social Health Care,Independent Dom Services,03/01/2023,1900441885,755.78,Foray 577 Ltd
Derbyshire County Council,1000,Adult Social Care,Adult Social Health Care,Supported Living Schemes,03/01/2023,1900441697,3833.71,EMH Group
Derbyshire County Council,1000,Adult Social Care,Adult Social Health Care,Independent Dom Services,03/01/2023,1900441850,827.3,Foray 577 Ltd
Derbyshire County Council,1000,Adult Social Care,Adult Social Health Care,Independent Dom Services,03/01/2023,1900441882,907.36,Foray 577 Ltd
Derbyshire County Council,1000,Adult Social Care,Adult Social Health Care,Independent Dom Services,03/01/2023,1900441873,3399.08,Foray 577 Ltd
Derbyshire County Council,1000,Adult Social Care,Adult Social Health Care,Supported Living Schemes,03/01/2023,1900441688,3568.67,EMH Group
Derbyshire County Council,1000,Adult Social Care,Adult Social Health Care,Supported Living Schemes,03/01/2023,1900441610,3702.4,Eden Supported Living Ltd
Derbyshire County Council,1000,Adult Social Care,Adult Social Health Care,Non-Contracted – Home Care,03/01/2023,1900441376,2803.64,Twyford Care Ltd T/A Twyford Sup
Derbyshire County Council,1000,Adult Social Care,Adult Social Health Care,Independent Dom Services,03/01/2023,1900441680,1543.76,My Homecare
Derbyshire County Council,1000,Adult Social Care,Adult Social Health Care,Independent Dom Services,03/01/2023,1900441801,849.76,Foray 577 Ltd
Derbyshire County Council,1000,Adult Social Care,Adult Social Health Care,Supported Living Schemes,03/01/2023,1900441772,4938,Mencap
Derbyshire County Council,1000,Adult Social Care,Adult Social Health Care,Supported Living Schemes,03/01/2023,1900441609,2363.28,EMH Group
Derbyshire County Council,1000,Adult Social Care,Adult Social Health Care,Non-Contracted – Home Care,03/01/2023,1900441382,16204.32,Twyford Care Ltd T/A Twyford Sup
Derbyshire County Council,1000,Adult Social Care,Adult Social Health Care,Non-Contracted – Home Care,03/01/2023,1900441792,542.72,Mencap
Derbyshire County Council,1000,Adult Social Care,Adult Social Health Care,Goods Received/Invoice Rec'd A/c,03/01/2023,5100072903,28200,Change Grow Live Services Ltd
Derbyshire County Council,1000,Adult Social Care,Adult Social Health Care,Input VAT,03/01/2023,5100072903,5640,Change Grow Live Services Ltd
Derbyshire County Council,1000,Adult Social Care,Adult Social Health Care,Supported Living Schemes,03/01/2023,1900441533,7131.48,EMH Group
Derbyshire County Council,1000,Adult Social Care,Adult Social Health Care,Supported Living Schemes,03/01/2023,1900441554,5339.76,Mencap
Derbyshire County Council,1000,Adult Social Care,Adult Social Health Care,Independent Dom Services,03/01/2023,1900441937,2217.76,Foray 577 Ltd
Derbyshire County Council,1000,Adult Social Care,Adult Social Health Care,Independent Dom Services,03/01/2023,1900441441,894.92,EMH Group
Derbyshire County Council,1000,Adult Social Care,Adult Social Health Care,Supported Living Schemes,03/01/2023,1900441714,826.08,EMH Group
Derbyshire County Council,1000,Adult Social Care,Adult Social Health Care,Supported Living Schemes,03/01/2023,1900441551,4616.16,Mencap
Derbyshire County Council,1000,Adult Social Care,Adult Social Health Care,Hire Of Vehicles,03/01/2023,1900442051,1184.76,City Taxis
Derbyshire County Council,1000,Adult Social Care,Adult Social Health Care,Supported Living Schemes,03/01/2023,1900441786,4235.12,Mencap
Derbyshire County Council,1000,Adult Social Care,Adult Social Health Care,Supported Living Schemes,03/01/2023,1900441787,4235.12,Mencap
Derbyshire County Council,1000,Adult Social Care,Adult Social Health Care,Non-Contracted – Home Care,03/01/2023,1900441372,2803.64,Twyford Care Ltd T/A Twyford Sup
Derbyshire County Council,1000,Adult Social Care,Adult Social Health Care,Supported Living Schemes,03/01/2023,1900441553,4616.16,Mencap
Derbyshire County Council,1000,Adult Social Care,Adult Social Health Care,Independent Dom Services,03/01/2023,1900441764,940.68,Mencap
Derbyshire County Council,1000,Adult Social Care,Adult Social Health Care,Supported Living Schemes,03/01/2023,1900441796,4304.32,Mencap
Derbyshire County Council,1000,Adult Social Care,Adult Social Health Care,Supported Living Schemes,03/01/2023,1900441731,4738.48,Mencap
Derbyshire County Council,1000,Adult Social Care,Adult Social Health Care,Supported Living Schemes,03/01/2023,1900441547,3334.95,EMH Group
Derbyshire County Council,1000,Adult Social Care,Adult Social Health Care,Professional Fees,03/01/2023,1900442179,618.9,REDACTED PERSONAL DATA
Derbyshire County Council,1000,Adult Social Care,Adult Social Health Care,Goods Received/Invoice Rec'd A/c,03/01/2023,5100076988,4232.6,Carlton Design and Fabrication Ltd
Derbyshire County Council,1000,Children & Education Services,Children's Services,AHDC Contract Carers Fee,03/01/2023,1900441181,690.39,REDACTED PERSONAL DATA
Derbyshire County Council,1000,Adult Social Care,Adult Social Health Care,Non-Contracted – Home Care,03/01/2023,1900441381,3303.05,Twyford Care Ltd T/A Twyford Sup
Derbyshire County Council,1000,Adult Social Care,Adult Social Health Care,Supported Living Schemes,03/01/2023,1900441517,2295.29,EMH Group
Derbyshire County Council,1000,Adult Social Care,Adult Social Health Care,Non-Contracted – Home Care,03/01/2023,1900441370,2721.18,Twyford Care Ltd T/A Twyford Sup
Derbyshire County Council,1000,Adult Social Care,Adult Social Health Care,Supported Living Schemes,03/01/2023,1900441740,3171,Lifeways
Derbyshire County Council,1000,Adult Social Care,Adult Social Health Care,Independent Dom Services,03/01/2023,1900441474,723.6,Mencap
Derbyshire County Council,1000,Adult Social Care,Adult Social Health Care,Independent Dom Services,03/01/2023,1900441469,723.6,Mencap
Derbyshire County Council,1000,Adult Social Care,Adult Social Health Care,Hire Of Vehicles,03/01/2023,1900442033,3496.5,Galaxy Travel & Cars Ltd
Derbyshire County Council,1000,Adult Social Care,Adult Social Health Care,Hire Of Vehicles,03/01/2023,1900442046,855.79,City Taxis
Derbyshire County Council,1000,Adult Social Care,Adult Social Health Care,Input VAT,03/01/2023,1900442033,699.3,Galaxy Travel & Cars Ltd
Derbyshire County Council,1000,Adult Social Care,Adult Social Health Care,Hire Of Vehicles,03/01/2023,1900442049,500,City Taxis
Derbyshire County Council,1000,Adult Social Care,Adult Social Health Care,Supported Living Schemes,03/01/2023,1900441662,4543.44,EMH Group
Derbyshire County Council,1000,Children & Education Services,Children's Services,Other Local Authorities,03/01/2023,1900441083,2127,Ecclesall Primary School
Derbyshire County Council,1000,Children & Education Services,Children's Services,Other Local Authorities,03/01/2023,1900441115,7133.34,Worcestershire County Council
Derbyshire County Council,1000,Children & Education Services,Children's Services,Contract Hire - Transport,03/01/2023,1900442078,1237.5,Mr P S & Mrs Cyrstal Freeman
Derbyshire County Council,1000,Adult Social Care,Adult Social Health Care,Supported Living Schemes,03/01/2023,1900441644,2008.61,EMH Group
Derbyshire County Council,1000,Adult Social Care,Adult Social Health Care,Non-Contracted – Home Care,03/01/2023,1900441368,2308.88,Twyford Care Ltd T/A Twyford Sup
Derbyshire County Council,1000,Children & Education Services,Children's Services,Academy Payments,03/01/2023,1900441123,1715.2,Dunston Primary and Nursery Academy
Derbyshire County Council,1000,Children & Education Services,Children's Services,Goods Received/Invoice Rec'd A/c,03/01/2023,5100077141,509.18,Arnold Clark Car and Van Rental
Derbyshire County Council,1000,Children & Education Services,Children's Services,Homes Without Education,03/01/2023,1900441224,5400,Willow Care Group Limited
Derbyshire County Council,1000,Adult Social Care,Adult Social Health Care,Hire Of Vehicles,03/01/2023,1900442031,3663,Galaxy Travel & Cars Ltd
Derbyshire County Council,1000,Adult Social Care,Adult Social Health Care,Input VAT,03/01/2023,1900442031,732.6,Galaxy Travel & Cars Ltd
Derbyshire County Council,1000,Adult Social Care,Adult Social Health Care,Hire Of Vehicles,03/01/2023,1900442043,500,City Taxis
Derbyshire County Council,1000,Adult Social Care,Adult Social Health Care,Input VAT,03/01/2023,1900442032,613.59,Galaxy Travel & Cars Ltd
Derbyshire County Council,1000,Adult Social Care,Adult Social Health Care,Hire Of Vehicles,03/01/2023,1900442032,3067.92,Galaxy Travel & Cars Ltd
Derbyshire County Council,1000,Adult Social Care,Adult Social Health Care,Independent Dom Services,03/01/2023,1900441913,2963.44,Foray 577 Ltd
Derbyshire County Council,1000,Adult Social Care,Adult Social Health Care,Hire Of Vehicles,03/01/2023,1900442027,675.81,Galaxy Travel & Cars Ltd
Derbyshire County Council,1000,Adult Social Care,Adult Social Health Care,Supported Living Schemes,03/01/2023,1900441589,4616.16,Mencap
Derbyshire County Council,1000,Children & Education Services,Children's Services,Goods Received/Invoice Rec'd A/c,03/01/2023,5100076741,1482,Sonova UK Ltd
Derbyshire County Council,1000,Children & Education Services,Children's Services,Other Local Authorities,03/01/2023,1900441051,3431.67,Becton School
Derbyshire County Council,1000,Children & Education Services,Children's Services,Other Local Authorities,03/01/2023,1900441141,18333.33,Millgate School
Derbyshire County Council,1000,Children & Education Services,Children's Services,Home to Sch SN Trnsp,03/01/2023,1900441252,1120,A Cabs Buxton Ltd
Derbyshire County Council,1000,Adult Social Care,Adult Social Health Care,Supported Living Schemes,03/01/2023,1900441643,2008.61,EMH Group
Derbyshire County Council,1000,Adult Social Care,Adult Social Health Care,Supported Living Schemes,03/01/2023,1900441515,9342.4,EMH Group
Derbyshire County Council,1000,Adult Social Care,Adult Social Health Care,Supported Living Schemes,03/01/2023,1900441375,2907,Reach Housing And Enablement
Derbyshire County Council,1000,Adult Social Care,Adult Social Health Care,Supported Living Schemes,03/01/2023,1900441546,3334.95,EMH Group
Derbyshire County Council,1000,Adult Social Care,Adult Social Health Care,Independent Dom Services,03/01/2023,1900441911,847.28,Foray 577 Ltd
Derbyshire County Council,1000,Adult Social Care,Adult Social Health Care,Independent Dom Services,03/01/2023,1900441713,585.14,EMH Group
Derbyshire County Council,1000,Adult Social Care,Adult Social Health Care,Supported Living Schemes,03/01/2023,1900441514,2438.86,EMH Group
Derbyshire County Council,1000,Adult Social Care,Adult Social Health Care,Goods Received/Invoice Rec'd A/c,03/01/2023,5100072861,582.3,Ace Janitorial Supplies Ltd
Derbyshire County Council,1000,Children & Education Services,Children's Services,Input VAT,03/01/2023,1900441222,1710.8,Holdsworth Food Service
Derbyshire County Council,1000,Adult Social Care,Adult Social Health Care,Supported Living Schemes,03/01/2023,1900441738,3678.9,Eden Supported Living Ltd
Derbyshire County Council,1000,Adult Social Care,Adult Social Health Care,Supported Living Schemes,03/01/2023,1900441628,7287.12,EMH Group
Derbyshire County Council,1000,Adult Social Care,Adult Social Health Care,Supported Living Schemes,03/01/2023,1900441615,2409.4,EMH Group
Derbyshire County Council,1000,Adult Social Care,Adult Social Health Care,Supported Living Schemes,03/01/2023,1900441580,2326.1,Eden Supported Living Ltd
Derbyshire County Council,1000,Adult Social Care,Adult Social Health Care,Supported Living Schemes,03/01/2023,1900441591,3365.93,EMH Group
Derbyshire County Council,1000,Adult Social Care,Adult Social Health Care,Independent Dom Services,03/01/2023,1900441894,2707.4,Foray 577 Ltd
Derbyshire County Council,1000,Children & Education Services,Children's Services,Goods Received/Invoice Rec'd A/c,03/01/2023,5100077174,1650,Holly Cross
Derbyshire County Council,1000,Children & Education Services,Children's Services,Goods Received/Invoice Rec'd A/c,03/01/2023,5100077255,687.5,Carter Brown
Derbyshire County Council,1000,Adult Social Care,Adult Social Health Care,Hire Of Vehicles,03/01/2023,1900442052,500,City Taxis
Derbyshire County Council,1000,Adult Social Care,Adult Social Health Care,Hire Of Vehicles,03/01/2023,1900442044,650,City Taxis
Derbyshire County Council,1000,Adult Social Care,Adult Social Health Care,Supported Living Schemes,03/01/2023,1900441663,4159.86,EMH Group
Derbyshire County Council,1000,Adult Social Care,Adult Social Health Care,Supported Living Schemes,03/01/2023,1900441636,3446.47,EMH Group
Derbyshire County Council,1000,Adult Social Care,Adult Social Health Care,Supported Living Schemes,03/01/2023,1900441635,6395.57,EMH Group
Derbyshire County Council,1000,Adult Social Care,Adult Social Health Care,Supported Living Schemes,03/01/2023,1900441516,5853.27,EMH Group
Derbyshire County Council,1000,Adult Social Care,Adult Social Health Care,Supported Living Schemes,03/01/2023,1900441711,5654.52,EMH Group
Derbyshire County Council,1000,Children & Education Services,Children's Services,Other Local Authorities,03/01/2023,1900441120,1503.85,Griffe Field Primary School
Derbyshire County Council,1000,Children & Education Services,Children's Services,Other Local Authorities,03/01/2023,1900441107,2126.67,St Mary’s Cath Primary Sch New M
Derbyshire County Council,1000,Adult Social Care,Adult Social Health Care,Supported Living Schemes,03/01/2023,1900441478,2925,Nottingham Community Housing Associ
Derbyshire County Council,1000,Children & Education Services,Children's Services,Other Local Authorities,03/01/2023,1900441109,3050,Holly Hill Primary and Nursery
Derbyshire County Council,1000,Adult Social Care,Adult Social Health Care,Non-Contracted - Residential,03/01/2023,1900441358,3010.12,Deafway
Derbyshire County Council,1000,Adult Social Care,Adult Social Health Care,Hire Of Vehicles,03/01/2023,1900442050,542.5,City Taxis
Derbyshire County Council,1000,Children & Education Services,Children's Services,Goods Received/Invoice Rec'd A/c,03/01/2023,5100077185,650,Jamal Jeffers
Derbyshire County Council,1000,Adult Social Care,Adult Social Health Care,Supported Living Schemes,03/01/2023,1900441698,3038.76,EMH Group
Derbyshire County Council,1000,Adult Social Care,Adult Social Health Care,Independent Dom Services,03/01/2023,1900441631,1170.28,EMH Group
Derbyshire County Council,1000,Children & Education Services,Children's Services,Goods Received/Invoice Rec'd A/c,03/01/2023,5100076863,750,Kathryn Moran
Derbyshire County Council,1000,Children & Education Services,Children's Services,Goods Received/Invoice Rec'd A/c,03/01/2023,5100077232,1807.2,Straw & Pearce
Derbyshire County Council,1000,Adult Social Care,Adult Social Health Care,Supported Living Schemes,03/01/2023,1900441588,4616.16,Mencap
Derbyshire County Council,1000,Adult Social Care,Adult Social Health Care,Supported Living Schemes,03/01/2023,1900441592,4616.16,Mencap
Derbyshire County Council,1000,Adult Social Care,Adult Social Health Care,Non-Contracted – Home Care,03/01/2023,1900441380,3298.4,Twyford Care Ltd T/A Twyford Sup
Derbyshire County Council,1000,Children & Education Services,Children's Services,Goods Received/Invoice Rec'd A/c,03/01/2023,5100076721,650,Louise Sapstead
Derbyshire County Council,1000,Children & Education Services,Children's Services,Goods Received/Invoice Rec'd A/c,03/01/2023,5100077165,540,Andrew Lord
Derbyshire County Council,1000,Children & Education Services,Children's Services,Goods Received/Invoice Rec'd A/c,03/01/2023,5100076841,1650,Jamal Jeffers
Derbyshire County Council,1000,Children & Education Services,Children's Services,Goods Received/Invoice Rec'd A/c,03/01/2023,5100076913,1409.69,Dodds & Partners
Derbyshire County Council,1000,Adult Social Care,Adult Social Health Care,Supported Living Schemes,03/01/2023,1900441594,5339.76,Mencap
Derbyshire County Council,1000,Adult Social Care,Adult Social Health Care,Supported Living Schemes,03/01/2023,1900441687,3568.67,EMH Group
Derbyshire County Council,1000,Children & Education Services,Children's Services,Goods Received/Invoice Rec'd A/c,03/01/2023,5100077074,700,Samuel Coe
Derbyshire County Council,1000,Adult Social Care,Adult Social Health Care,Independent Dom Services,03/01/2023,1900441501,878.92,Lloyds Care Group Ltd
Derbyshire County Council,1000,Adult Social Care,Adult Social Health Care,Independent Dom Services,03/01/2023,1900441498,1005,Lloyds Care Group Ltd
Derbyshire County Council,1000,Adult Social Care,Adult Social Health Care,Supported Living Schemes,03/01/2023,1900441709,5654.52,EMH Group
Derbyshire County Council,1000,Adult Social Care,Adult Social Health Care,Supported Living Schemes,03/01/2023,1900441552,4616.16,Mencap
Derbyshire County Council,1000,Children & Education Services,Children's Services,Other Local Authorities,03/01/2023,1900441103,37878,Esteem Multi Academy Trust
Derbyshire County Council,1000,Children & Education Services,Children's Services,Other Local Authorities,03/01/2023,1900441100,2085,Village Primary School
Derbyshire County Council,1000,Children & Education Services,Children's Services,Home to Sch SN Trnsp,03/01/2023,1900441278,3357.75,Albatross Cars
Derbyshire County Council,1000,Children & Education Services,Children's Services,Input VAT,03/01/2023,1900441278,671.55,Albatross Cars
Derbyshire County Council,1000,Children & Education Services,Children's Services,Other Local Authorities,03/01/2023,1900441089,2903,Wombwell Park Street Primary School
Derbyshire County Council,1000,Children & Education Services,Children's Services,Other Local Authorities,03/01/2023,1900441137,3431.67,Becton School
Derbyshire County Council,1000,Children & Education Services,Children's Services,Other Local Authorities,03/01/2023,1900441088,607.6,New Bridge Multi Academy Trust
Derbyshire County Council,1000,Children & Education Services,Children's Services,Home to Sch SN Trnsp,03/01/2023,1900442077,2256,Mr P S & Mrs Cyrstal Freeman
Derbyshire County Council,1000,Adult Social Care,Adult Social Health Care,Supported Living Schemes,03/01/2023,1900441545,3251.65,EMH Group
Derbyshire County Council,1000,Adult Social Care,Adult Social Health Care,Supported Living Schemes,03/01/2023,1900441744,2791.28,Lifeways
Derbyshire County Council,1000,Adult Social Care,Adult Social Health Care,Supported Living Schemes,03/01/2023,1900441658,4543.44,EMH Group
Derbyshire County Council,1000,Children & Education Services,Children's Services,Goods Received/Invoice Rec'd A/c,03/01/2023,5100077251,2640,Eden Brown Education Ltd
Derbyshire County Council,1000,Adult Social Care,Adult Social Health Care,Independent Dom Services,03/01/2023,1900441351,1032.6,EMH Group
Derbyshire County Council,1000,Adult Social Care,Adult Social Health Care,Supported Living Schemes,03/01/2023,1900441725,5860.08,Mencap
Derbyshire County Council,1000,Adult Social Care,Adult Social Health Care,Supported Living Schemes,03/01/2023,1900441537,3251.65,EMH Group
Derbyshire County Council,1000,Adult Social Care,Adult Social Health Care,Supported Living Schemes,03/01/2023,1900441542,2914.85,EMH Group
Derbyshire County Council,1000,Adult Social Care,Adult Social Health Care,Supported Living Schemes,03/01/2023,1900441530,2645.38,EMH Group
Derbyshire County Council,1000,Children & Education Services,Children's Services,Goods Received/Invoice Rec'd A/c,03/01/2023,5100077028,4125,K Neville Ltd
Derbyshire County Council,1000,Children & Education Services,Children's Services,Other Local Authorities,03/01/2023,1900441086,2126.66,The White Hills Park Federation Tru
Derbyshire County Council,1000,Children & Education Services,Children's Services,Other Local Authorities,03/01/2023,1900441090,5331.67,St Ralph Sherwin Multi Academy Trus
Derbyshire County Council,1000,Adult Social Care,Adult Social Health Care,Supported Living Schemes,03/01/2023,1900441710,4966.12,EMH Group
Derbyshire County Council,1000,Adult Social Care,Adult Social Health Care,Supported Living Schemes,03/01/2023,1900441550,4616.16,Mencap
Derbyshire County Council,1000,Adult Social Care,Adult Social Health Care,Non-Contracted - Residential,03/01/2023,1900441365,3010.12,Deafway
Derbyshire County Council,1000,Adult Social Care,Adult Social Health Care,Independent Dom Services,03/01/2023,1900441794,1085.4,Mencap
Derbyshire County Council,1000,Adult Social Care,Adult Social Health Care,Supported Living Schemes,03/01/2023,1900441377,2454.44,Reach Housing And Enablement
Derbyshire County Council,1000,Children & Education Services,Children's Services,Hire Of Rooms,03/01/2023,1900441199,1525.97,JOGS
Derbyshire County Council,1000,Children & Education Services,Children's Services,Goods Received/Invoice Rec'd A/c,03/01/2023,5100076993,3000,REDACTED PERSONAL DATA
Derbyshire County Council,1000,Children & Education Services,Children's Services,Home to Sch Transprt,03/01/2023,1900441283,880,C Barker
Derbyshire County Council,1000,Adult Social Care,Adult Social Health Care,Non-Contracted – Home Care,03/01/2023,1900441395,674.16,Lily of the Valley
Derbyshire County Council,1000,Adult Social Care,Adult Social Health Care,Supported Living Schemes,03/01/2023,1900441523,4877.72,EMH Group
Derbyshire County Council,1000,Adult Social Care,Adult Social Health Care,Supported Living Schemes,03/01/2023,1900441642,3041.21,EMH Group
Derbyshire County Council,1000,Children & Education Services,Children's Services,Home to Sch SN Trnsp,03/01/2023,1900441282,3500,Shaffiq Hussain
Derbyshire County Council,1000,Children & Education Services,Children's Services,Payments to FE Colleges,03/01/2023,1900432616,400000,Derby College
Derbyshire County Council,1000,Children & Education Services,Children's Services,Other Local Authorities,03/01/2023,1900441110,1322,West Hill School
Derbyshire County Council,1000,Children & Education Services,Children's Services,Other Local Authorities,03/01/2023,1900441097,12875.65,Two Rivers School
Derbyshire County Council,1000,Children & Education Services,Children's Services,Other Local Authorities,03/01/2023,1700001061,-1480.6,Oldfields Hall Middle School
Derbyshire County Council,1000,Children & Education Services,Children's Services,Other Local Authorities,03/01/2023,1900441101,3205,St Georges Catholic Primary School
Derbyshire County Council,1000,Children & Education Services,Children's Services,Other Local Authorities,03/01/2023,1900441099,5987,Dorothy Goodman School
Derbyshire County Council,1000,Adult Social Care,Adult Social Health Care,Non-Contracted - Residential,03/01/2023,1900441356,3010.12,Deafway
Derbyshire County Council,1000,Children & Education Services,Children's Services,Supported Lodgings,03/01/2023,1900441233,1179.36,Hillgate Health Group LTD
Derbyshire County Council,1000,Children & Education Services,Children's Services,Special Guardianship,03/01/2023,1900442007,-3921.58,REDACTED PERSONAL DATA
Derbyshire County Council,1000,Children & Education Services,Children's Services,Goods Received/Invoice Rec'd A/c,03/01/2023,5100076894,582,REDACTED PERSONAL DATA
Derbyshire County Council,1000,Adult Social Care,Adult Social Health Care,Hire Of Vehicles,03/01/2023,1900442040,713.75,City Taxis
Derbyshire County Council,1000,Adult Social Care,Adult Social Health Care,Supported Living Schemes,03/01/2023,1900441700,2694.56,EMH Group
Derbyshire County Council,1000,Adult Social Care,Adult Social Health Care,Supported Living Schemes,03/01/2023,1900441701,3038.76,EMH Group
Derbyshire County Council,1000,Adult Social Care,Adult Social Health Care,Independent Dom Services,03/01/2023,1900441866,575.04,Foray 577 Ltd
Derbyshire County Council,1000,Adult Social Care,Adult Social Health Care,Independent Dom Services,03/01/2023,1900441653,1088.86,My Homecare
Derbyshire County Council,1000,Children & Education Services,Children's Services,Goods Received/Invoice Rec'd A/c,03/01/2023,5100077177,594.2,Serenity Housing Support Limited
Derbyshire County Council,1000,Adult Social Care,Adult Social Health Care,Supported Living Schemes,03/01/2023,1900441521,2610.96,EMH Group
Derbyshire County Council,1000,Children & Education Services,Children's Services,Other Local Authorities,03/01/2023,1900441112,2356.41,Shelton Infant School
Derbyshire County Council,1000,Children & Education Services,Children's Services,Other Local Authorities,03/01/2023,1900441129,3430,Oldfields Hall Middle School
Derbyshire County Council,1000,Children & Education Services,Children's Services,Other Local Authorities,03/01/2023,1900441108,2126.67,St Josephs Catholic Primary School
Derbyshire County Council,1000,Children & Education Services,Children's Services,Other Local Authorities,03/01/2023,1900441094,3431.67,Becton School
Derbyshire County Council,1000,Adult Social Care,Adult Social Health Care,Hire Of Vehicles,03/01/2023,1900442034,3760.2,Elite Transport
Derbyshire County Council,1000,Children & Education Services,Children's Services,Residence & Custodianship Fee,03/01/2023,1900441168,2099.56,REDACTED PERSONAL DATA
Derbyshire County Council,1000,Children & Education Services,Children's Services,Residence & Custodianship Fee,03/01/2023,1900441167,-3163.02,REDACTED PERSONAL DATA
Derbyshire County Council,1000,Children & Education Services,Children's Services,Special Guardianship,03/01/2023,1900442016,3941.6,REDACTED PERSONAL DATA
Derbyshire County Council,1000,Adult Social Care,Adult Social Health Care,Supported Living Schemes,03/01/2023,1900441730,4738.48,Mencap
Derbyshire County Council,1000,Adult Social Care,Adult Social Health Care,Supported Living Schemes,03/01/2023,1900441707,5792.2,EMH Group
Derbyshire County Council,1000,Children & Education Services,Children's Services,Goods Received/Invoice Rec'd A/c,03/01/2023,5100073161,1200,Riber Removals Limited
Derbyshire County Council,1000,Children & Education Services,Children's Services,Goods Received/Invoice Rec'd A/c,03/01/2023,5100076837,900,REDACTED PERSONAL DATA
Derbyshire County Council,1000,Adult Social Care,Adult Social Health Care,Supported Living Schemes,03/01/2023,1900441639,4215.41,EMH Group
Derbyshire County Council,1000,Adult Social Care,Adult Social Health Care,Supported Living Schemes,03/01/2023,1900441666,4159.86,EMH Group
Derbyshire County Council,1000,Highways & Transport Services,Economic Transport & Communities,Goods Received/Invoice Rec'd A/c,03/01/2023,5100077052,1390.94,Wheelplant Ltd
Derbyshire County Council,1000,Highways & Transport Services,Economic Transport & Communities,Goods Received/Invoice Rec'd A/c,03/01/2023,5100077096,809,Wheelplant Ltd
Derbyshire County Council,1000,Children & Education Services,Children's Services,Input VAT,03/01/2023,5100074252,2010.96,Pace Fuelcare
Derbyshire County Council,1000,Children & Education Services,Children's Services,Goods Received/Invoice Rec'd A/c,03/01/2023,5100074252,10054.8,Pace Fuelcare
Derbyshire County Council,1000,Adult Social Care,Adult Social Health Care,Supported Living Schemes,03/01/2023,1900441548,3334.95,EMH Group
Derbyshire County Council,1000,Adult Social Care,Adult Social Health Care,Supported Living Schemes,03/01/2023,1900441679,3567.98,EMH Group
Derbyshire County Council,1000,Adult Social Care,Adult Social Health Care,Supported Living Schemes,03/01/2023,1900441733,3171,Lifeways
Derbyshire County Council,1000,Children & Education Services,Children's Services,Home to Sch SN Trnsp,03/01/2023,1900441273,500,KP Cabs
Derbyshire County Council,1000,Children & Education Services,Children's Services,Home to Sch SN Trnsp,03/01/2023,1900441300,2924.8,REDACTED PERSONAL DATA
Derbyshire County Council,1000,Children & Education Services,Children's Services,Home to Sch SN Trnsp,03/01/2023,1900442083,630,T Junction Childrens Services
Derbyshire County Council,1000,Adult Social Care,Adult Social Health Care,Independent Dom Services,03/01/2023,1900441951,792.82,Complete Care Chesterfield
Derbyshire County Council,1000,Children & Education Services,Children's Services,Hire Of Vehicles,03/01/2023,1900441121,617.41,Taxicover T/A Chriss Minicoaches
Derbyshire County Council,1000,Adult Social Care,Adult Social Health Care,Independent Dom Services,03/01/2023,1900441656,530.35,My Homecare
Derbyshire County Council,1000,Children & Education Services,Children's Services,Support for families no recourse to public funds,03/01/2023,1900440981,5055.48,The Elm Foundation
Derbyshire County Council,1000,Adult Social Care,Adult Social Health Care,Supported Living Schemes,03/01/2023,1900441627,3549.73,EMH Group
Derbyshire County Council,1000,Adult Social Care,Adult Social Health Care,Supported Living Schemes,03/01/2023,1900441415,3534.84,Voyage Care
Derbyshire County Council,1000,Adult Social Care,Adult Social Health Care,Supported Living Schemes,03/01/2023,1900441630,3549.73,EMH Group
Derbyshire County Council,1000,Adult Social Care,Adult Social Health Care,Supported Living Schemes,03/01/2023,1900441531,2645.38,EMH Group
Derbyshire County Council,1000,Adult Social Care,Adult Social Health Care,Supported Living Schemes,03/01/2023,1900441519,2610.96,EMH Group
Derbyshire County Council,1000,Adult Social Care,Adult Social Health Care,Goods Received/Invoice Rec'd A/c,03/01/2023,5100073115,4259,Peveril Decorators Ltd
Derbyshire County Council,1000,Adult Social Care,Adult Social Health Care,Input VAT,03/01/2023,5100073115,851.8,Peveril Decorators Ltd
Derbyshire County Council,1000,Adult Social Care,Adult Social Health Care,Input VAT,03/01/2023,5100073662,632.48,Reward Manufacturing Co Ltd
Derbyshire County Council,1000,Adult Social Care,Adult Social Health Care,Goods Received/Invoice Rec'd A/c,03/01/2023,5100073662,3162,Reward Manufacturing Co Ltd
Derbyshire County Council,1000,Adult Social Care,Adult Social Health Care,Input VAT,03/01/2023,5100077351,1333.2,Hitch Marketing Ltd
Derbyshire County Council,1000,Adult Social Care,Adult Social Health Care,Goods Received/Invoice Rec'd A/c,03/01/2023,5100077351,6666,Hitch Marketing Ltd
Derbyshire County Council,1000,Adult Social Care,Adult Social Health Care,Independent Dom Services,03/01/2023,1900441868,906.08,Foray 577 Ltd
Derbyshire County Council,1000,Adult Social Care,Adult Social Health Care,Independent Dom Services,03/01/2023,1900441957,570.5,Complete Care Chesterfield
Derbyshire County Council,1000,Adult Social Care,Adult Social Health Care,Supported Living Schemes,03/01/2023,1900441476,2913.84,Nottingham Community Housing Associ
Derbyshire County Council,1000,Children & Education Services,Children's Services,Other Local Authorities,03/01/2023,1900441139,7328,King Ecgbert School
Derbyshire County Council,1000,Children & Education Services,Children's Services,Other Local Authorities,03/01/2023,1900441104,5706.35,Walsall Council
Derbyshire County Council,1000,Adult Social Care,Adult Social Health Care,Supported Living Schemes,03/01/2023,1900441665,4159.86,EMH Group
Derbyshire County Council,1000,Children & Education Services,Children's Services,Other Local Authorities,03/01/2023,1900441119,3764.33,Greenacre School
Derbyshire County Council,1000,Adult Social Care,Adult Social Health Care,Independent Dom Services,03/01/2023,1900441835,778.18,Foray 577 Ltd
Derbyshire County Council,1000,Adult Social Care,Adult Social Health Care,Supported Living Schemes,03/01/2023,1900441724,1261.84,Mencap
Derbyshire County Council,1000,Children & Education Services,Children's Services,Residence & Custodianship Fee,03/01/2023,1900441169,1968.27,REDACTED PERSONAL DATA
Derbyshire County Council,1000,Non Distributed Costs,Commissioning Community and Policy,Goods Received/Invoice Rec'd A/c,03/01/2023,5100076447,1270,William Freer Limited
Derbyshire County Council,1000,Highways & Transport Services,Economic Transport & Communities,Goods Received/Invoice Rec'd A/c,03/01/2023,5100077098,2110.5,Wheelplant Ltd
Derbyshire County Council,1000,Highways & Transport Services,Economic Transport & Communities,Goods Received/Invoice Rec'd A/c,03/01/2023,5100075023,629,Joule Brady Limited
Derbyshire County Council,1000,Adult Social Care,Adult Social Health Care,Supported Living Schemes,03/01/2023,1900441593,4616.16,Mencap
Derbyshire County Council,1000,Adult Social Care,Adult Social Health Care,Independent Dom Services,03/01/2023,1900441349,826.08,EMH Group
Derbyshire County Council,1000,Children & Education Services,Children's Services,Home to Sch SN Trnsp,03/01/2023,1900432617,633.6,REDACTED PERSONAL DATA
Derbyshire County Council,1000,Highways & Transport Services,Economic Transport & Communities,Goods Received/Invoice Rec'd A/c,03/01/2023,5100077054,3489.83,Wheelplant Ltd
Derbyshire County Council,1000,Highways & Transport Services,Economic Transport & Communities,Goods Received/Invoice Rec'd A/c,03/01/2023,5100077051,2211.81,Wheelplant Ltd
Derbyshire County Council,1000,Highways & Transport Services,Economic Transport & Communities,Goods Received/Invoice Rec'd A/c,03/01/2023,5100077270,700,Wheelplant Ltd
Derbyshire County Council,1000,Children & Education Services,Children's Services,Home to Sch SN Trnsp,03/01/2023,1900441253,586,Derby City Cars Ltd
Derbyshire County Council,1000,Children & Education Services,Children's Services,Home to Sch SN Trnsp,03/01/2023,1900442082,1280,A2B Taxis
Derbyshire County Council,1000,Children & Education Services,Children's Services,Home to Sch SN Trnsp,03/01/2023,1900441293,2304,REDACTED PERSONAL DATA
Derbyshire County Council,1000,Children & Education Services,Children's Services,Goods Received/Invoice Rec'd A/c,03/01/2023,5100073779,1323,Lextox
Derbyshire County Council,1000,Children & Education Services,Children's Services,Hire Of Vehicles,03/01/2023,1900441121,898.43,Taxicover T/A Chriss Minicoaches
Derbyshire County Council,1000,Adult Social Care,Adult Social Health Care,Independent Dom Services,03/01/2023,1900441350,688.4,EMH Group
Derbyshire County Council,1000,Children & Education Services,Children's Services,Supported Lodgings,03/01/2023,1900441338,2237.13,Framework Housing Association
Derbyshire County Council,1000,Children & Education Services,Children's Services,Supported Lodgings,03/01/2023,1900441232,1179.36,Hillgate Health Group LTD
Derbyshire County Council,1000,Children & Education Services,Children's Services,Special Guardianship,03/01/2023,1900442008,3941.6,REDACTED PERSONAL DATA
Derbyshire County Council,1000,Adult Social Care,Adult Social Health Care,Independent Dom Services,03/01/2023,1900441818,732.9,Foray 577 Ltd
Derbyshire County Council,1000,Adult Social Care,Adult Social Health Care,Independent Dom Services,03/01/2023,1900441813,1003.48,Foray 577 Ltd
Derbyshire County Council,1000,Adult Social Care,Adult Social Health Care,Independent Dom Services,03/01/2023,1900441373,1204.7,EMH Group
Derbyshire County Council,1000,Adult Social Care,Adult Social Health Care,Supported Living Schemes,03/01/2023,1900441524,4877.72,EMH Group
Derbyshire County Council,1000,Adult Social Care,Adult Social Health Care,Supported Living Schemes,03/01/2023,1900441527,3596.54,EMH Group
Derbyshire County Council,1000,Adult Social Care,Adult Social Health Care,Goods Received/Invoice Rec'd A/c,03/01/2023,5100072863,651.47,Ace Janitorial Supplies Ltd
Derbyshire County Council,1000,Children & Education Services,Children's Services,Special Guardianship,03/01/2023,1900442015,-3921.32,REDACTED PERSONAL DATA
Derbyshire County Council,1000,Adult Social Care,Adult Social Health Care,Independent Dom Services,03/01/2023,1900441683,511.84,My Homecare
Derbyshire County Council,1000,Children & Education Services,Children's Services,Home to Sch SN Trnsp,03/01/2023,1900442103,825,REDACTED PERSONAL DATA
Derbyshire County Council,1000,Children & Education Services,Children's Services,Home to Sch SN Trnsp,03/01/2023,1900442089,1880.16,Phoenix Cars
Derbyshire County Council,1000,Adult Social Care,Adult Social Health Care,Supported Living Schemes,03/01/2023,1900441540,1951.09,EMH Group
Derbyshire County Council,1000,Adult Social Care,Adult Social Health Care,Supported Living Schemes,03/01/2023,1900441541,2226.45,EMH Group
Derbyshire County Council,1000,Children & Education Services,Community Services,Projects & Activities,03/01/2023,1900441065,700,REDACTED PERSONAL DATA
Derbyshire County Council,1000,Adult Social Care,Adult Social Health Care,Supported Living Schemes,03/01/2023,1900441608,5126.4,Eden Supported Living Ltd
Derbyshire County Council,1000,Adult Social Care,Adult Social Health Care,Independent Dom Services,03/01/2023,1900441936,1002.91,Foray 577 Ltd
Derbyshire County Council,1000,Highways & Transport Services,Economic Transport & Communities,Input VAT,03/01/2023,5100077054,697.97,Wheelplant Ltd
Derbyshire County Council,1000,Highways & Transport Services,Economic Transport & Communities,Goods Received/Invoice Rec'd A/c,03/01/2023,5100077136,951.87,Clee Hill Plant Ltd
Derbyshire County Council,1000,Highways & Transport Services,Economic Transport & Communities,Goods Received/Invoice Rec'd A/c,03/01/2023,5100077059,579.5,Wheelplant Ltd
Derbyshire County Council,1000,Adult Social Care,Adult Social Health Care,Supported Living Schemes,03/01/2023,1900441647,4516.31,EMH Group
Derbyshire County Council,1000,Highways & Transport Services,Economic Transport & Communities,Goods Received/Invoice Rec'd A/c,03/01/2023,5100077272,1007,Wheelplant Ltd
Derbyshire County Council,1000,Adult Social Care,Adult Social Health Care,Supported Living Schemes,03/01/2023,1900441629,3549.73,EMH Group
Derbyshire County Council,1000,Children & Education Services,Community Services,Projects & Activities,03/01/2023,1900441063,700,REDACTED PERSONAL DATA
Derbyshire County Council,1000,Highways & Transport Services,Economic Transport & Communities,Goods Received/Invoice Rec'd A/c,03/01/2023,5100076868,1987.5,Joule Brady Limited
Derbyshire County Council,1000,Highways & Transport Services,Economic Transport & Communities,Goods Received/Invoice Rec'd A/c,03/01/2023,5100077271,2707.5,Wheelplant Ltd
Derbyshire County Council,1000,Children & Education Services,Children's Services,Goods Received/Invoice Rec'd A/c,03/01/2023,5100074549,1325,1st Coverall Company Ltd
Derbyshire County Council,1000,Children & Education Services,Children's Services,Home to Sch SN Trnsp,03/01/2023,1900441291,1725,REDACTED PERSONAL DATA
Derbyshire County Council,1000,Children & Education Services,Children's Services,Home to Sch SN Trnsp,03/01/2023,1900441292,2096,REDACTED PERSONAL DATA
Derbyshire County Council,1000,Highways & Transport Services,Economic Transport & Communities,Goods Received/Invoice Rec'd A/c,03/01/2023,5100077137,1176.56,Clee Hill Plant Ltd
Derbyshire County Council,1000,Children & Education Services,Children's Services,Home to Sch SN Trnsp,03/01/2023,1900442084,5057.92,Phoenix Cars
Derbyshire County Council,1000,Children & Education Services,Children's Services,Home to Sch SN Trnsp,03/01/2023,1900441268,1868.4,ADS Travel
Derbyshire County Council,1000,Adult Social Care,Adult Social Health Care,Goods Received/Invoice Rec'd A/c,03/01/2023,5100077343,577.8,Belper Window Cleaners
Derbyshire County Council,1000,Children & Education Services,Children's Services,Home to Sch SN Trnsp,03/01/2023,1900442081,2080,A2B Taxis
Derbyshire County Council,1000,Children & Education Services,Children's Services,Home to Sch SN Trnsp,03/01/2023,1900442096,1493.12,Abbey Cars Taxis
Derbyshire County Council,1000,Children & Education Services,Children's Services,Home to Sch SN Trnsp,03/01/2023,1900442099,1200,Abbey Cars Taxis
Derbyshire County Council,1000,Adult Social Care,Adult Social Health Care,Independent Dom Services,03/01/2023,1900441820,1247.96,Foray 577 Ltd
Derbyshire County Council,1000,Children & Education Services,Children's Services,Home to Sch SN Trnsp,03/01/2023,1900442098,1200,Abbey Cars Taxis
Derbyshire County Council,1000,Children & Education Services,Children's Services,Home to Sch SN Trnsp,03/01/2023,1900442067,1993.76,Mr G S Sahota
Derbyshire County Council,1000,Children & Education Services,Children's Services,Home to Sch SN Trnsp,03/01/2023,1900442093,2099.88,Abbey Cars Taxis
Derbyshire County Council,1000,Children & Education Services,Children's Services,Home to Sch SN Trnsp,03/01/2023,1900441276,1375,Albatross Cars
Derbyshire County Council,1000,Children & Education Services,Children's Services,Home to Sch SN Trnsp,03/01/2023,1900442091,2391.84,Abbey Cars Taxis
Derbyshire County Council,1000,Children & Education Services,Children's Services,Home to Sch SN Trnsp,03/01/2023,1900442080,2704,Easy Travels
Derbyshire County Council,1000,Highways & Transport Services,Economic Transport & Communities,Goods Received/Invoice Rec'd A/c,03/01/2023,5100076890,669.98,Wheelplant Ltd
Derbyshire County Council,1000,Adult Social Care,Adult Social Health Care,Supported Living Schemes,03/01/2023,1900441708,4966.12,EMH Group
Derbyshire County Council,1000,Highways & Transport Services,Economic Transport & Communities,Goods Received/Invoice Rec'd A/c,03/01/2023,5100076885,2893.65,Wheelplant Ltd
Derbyshire County Council,1000,Adult Social Care,Adult Social Health Care,Independent Dom Services,03/01/2023,1900441800,926.8,Foray 577 Ltd
Derbyshire County Council,1000,Children & Education Services,Children's Services,Input VAT,03/01/2023,1900441239,1848.13,Holdsworth Food Service
Derbyshire County Council,1000,Children & Education Services,Children's Services,Food,03/01/2023,1900441239,80589.56,Holdsworth Food Service
Derbyshire County Council,1000,Non Distributed Costs,Commissioning Community and Policy,Goods Received/Invoice Rec'd A/c,03/01/2023,5100077392,9912.3,Plumco
Derbyshire County Council,1000,Children & Education Services,Children's Services,Goods Received/Invoice Rec'd A/c,03/01/2023,5100076623,2395.27,A Line (Chesterfield) Ltd
Derbyshire County Council,1000,Children & Education Services,Children's Services,Food,03/01/2023,1900441222,41457.93,Holdsworth Food Service
Derbyshire County Council,1000,Children & Education Services,Children's Services,Home to Sch SN Trnsp,03/01/2023,1900441286,1152,Kevin Boole
Derbyshire County Council,1000,Children & Education Services,Children's Services,Home to Sch SN Trnsp,03/01/2023,1900441295,1245,REDACTED PERSONAL DATA
Derbyshire County Council,1000,Children & Education Services,Children's Services,Home to Sch SN Trnsp,03/01/2023,1900442071,1459.8,I Tattersall
Derbyshire County Council,1000,Highways & Transport Services,Economic Transport & Communities,Goods Received/Invoice Rec'd A/c,03/01/2023,5100076846,6756.41,Joule Brady Limited
Derbyshire County Council,1000,Adult Social Care,Adult Social Health Care,Supported Living Schemes,03/01/2023,1900441539,2777.17,EMH Group
Derbyshire County Council,1000,Highways & Transport Services,Economic Transport & Communities,Goods Received/Invoice Rec'd A/c,03/01/2023,5100077254,2099,Action Patch Planing Ltd
Derbyshire County Council,1000,Adult Social Care,Adult Social Health Care,Supported Living Schemes,03/01/2023,1900441694,3331.86,EMH Group
Derbyshire County Council,1000,Children & Education Services,Children's Services,Home to Sch SN Trnsp,03/01/2023,1900441294,2859.87,REDACTED PERSONAL DATA
Derbyshire County Council,1000,Children & Education Services,Children's Services,Home to Sch SN Trnsp,03/01/2023,1900442094,1707.12,Abbey Cars Taxis
Derbyshire County Council,1000,Children & Education Services,Children's Services,Home to Sch SN Trnsp,03/01/2023,1900441277,720,Albatross Cars
Derbyshire County Council,1000,Children & Education Services,Children's Services,Home to Sch SN Trnsp,03/01/2023,1900442100,960,Abbey Cars Taxis
Derbyshire County Council,1000,Children & Education Services,Children's Services,Payments to 3rd Parties,03/01/2023,1900441340,1160,Care Today
Derbyshire County Council,1000,Adult Social Care,Adult Social Health Care,Independent Dom Services,03/01/2023,1900441831,591.36,Foray 577 Ltd
Derbyshire County Council,1000,Non Distributed Costs,Commissioning Community and Policy,Input VAT,03/01/2023,5100077392,1982.46,Plumco
Derbyshire County Council,1000,Adult Social Care,Adult Social Health Care,Independent Dom Services,03/01/2023,1900441923,1215.4,Foray 577 Ltd
Derbyshire County Council,1000,Children & Education Services,Children's Services,Home to Sch SN Trnsp,03/01/2023,1900441263,1886.24,City Taxis
Derbyshire County Council,1000,Children & Education Services,Children's Services,Home to Sch SN Trnsp,03/01/2023,1900441270,1881.6,Dovelin Cars
Derbyshire County Council,1000,Children & Education Services,Children's Services,Home to Sch SN Trnsp,03/01/2023,1900442056,1260,W Phillips
Derbyshire County Council,1000,Children & Education Services,Children's Services,Goods Received/Invoice Rec'd A/c,03/01/2023,5100077119,585,A2Z Cars
Derbyshire County Council,1000,Children & Education Services,Children's Services,Input VAT,03/01/2023,5100077046,576,Shaws Taxis
Derbyshire County Council,1000,Adult Social Care,Adult Social Health Care,Independent Dom Services,03/01/2023,1900441348,963.76,EMH Group
Derbyshire County Council,1000,Children & Education Services,Children's Services,Goods Received/Invoice Rec'd A/c,03/01/2023,5100077046,2880,Shaws Taxis
Derbyshire County Council,1000,Adult Social Care,Adult Social Health Care,Rents General,03/01/2023,1900442154,4494.38,Coal Aston Village Hall
Derbyshire County Council,1000,Adult Social Care,Adult Social Health Care,Input VAT,03/01/2023,1900442154,898.87,Coal Aston Village Hall
Derbyshire County Council,1000,Children & Education Services,Children's Services,Home to Sch SN Trnsp,03/01/2023,1900441266,1380,Street Cars Of Eckington
Derbyshire County Council,1000,Children & Education Services,Children's Services,Home to Sch SN Trnsp,03/01/2023,1900442063,1260,Western Cars Company Derby Ltd
Derbyshire County Council,1000,Children & Education Services,Children's Services,Home to Sch SN Trnsp,03/01/2023,1900442061,928,Western Cars Company Derby Ltd
Derbyshire County Council,1000,Adult Social Care,Adult Social Health Care,Supported Living Schemes,03/01/2023,1900441778,3183.4,Mencap
Derbyshire County Council,1000,Adult Social Care,Adult Social Health Care,Supported Living Schemes,03/01/2023,1900441780,3979.36,Mencap
Derbyshire County Council,1000,Children & Education Services,Children's Services,Home to Sch SN Trnsp,03/01/2023,1900442097,1980,Abbey Cars Taxis
Derbyshire County Council,1000,Children & Education Services,Children's Services,Home to Sch SN Trnsp,03/01/2023,1900441272,2367.4,Dovelin Cars
Derbyshire County Council,1000,Children & Education Services,Children's Services,Home to Sch SN Trnsp,03/01/2023,1900442102,3435,REDACTED PERSONAL DATA
Derbyshire County Council,1000,Highways & Transport Services,Economic Transport & Communities,Input VAT,03/01/2023,5100076694,741.43,Via East Midlands Ltd
Derbyshire County Council,1000,Highways & Transport Services,Economic Transport & Communities,Goods Received/Invoice Rec'd A/c,03/01/2023,5100076694,3707.17,Via East Midlands Ltd
Derbyshire County Council,1000,Adult Social Care,Adult Social Health Care,Supported Living Schemes,03/01/2023,1900441520,2610.96,EMH Group
Derbyshire County Council,1000,Adult Social Care,Adult Social Health Care,Supported Living Schemes,03/01/2023,1900441475,2913.84,Nottingham Community Housing Associ
Derbyshire County Council,1000,Adult Social Care,Adult Social Health Care,Supported Living Schemes,03/01/2023,1900441477,13186.68,Nottingham Community Housing Associ
Derbyshire County Council,1000,Adult Social Care,Adult Social Health Care,Supported Living Schemes,03/01/2023,1900441645,2008.61,EMH Group
Derbyshire County Council,1000,Children & Education Services,Children's Services,Home to Sch SN Trnsp,03/01/2023,1900442092,1259.88,Abbey Cars Taxis
Derbyshire County Council,1000,Children & Education Services,Children's Services,Goods Received/Invoice Rec'd A/c,03/01/2023,5100076651,504,Greenstaff Medical
Derbyshire County Council,1000,Highways & Transport Services,Economic Transport & Communities,Input VAT,03/01/2023,5100076846,1351.28,Joule Brady Limited
Derbyshire County Council,1000,Highways & Transport Services,Economic Transport & Communities,Goods Received/Invoice Rec'd A/c,03/01/2023,5100077252,2306,Action Patch Planing Ltd
Derbyshire County Council,1000,Children & Education Services,Children's Services,Rents General,03/01/2023,1900442161,2000,Ritz Properties
Derbyshire County Council,1000,Highways & Transport Services,Economic Transport & Communities,Goods Received/Invoice Rec'd A/c,03/01/2023,5100076884,709.81,Wheelplant Ltd
Derbyshire County Council,1000,Children & Education Services,Children's Services,Home to Sch SN Trnsp,03/01/2023,1900441267,1502.8,Street Cars Of Eckington
Derbyshire County Council,1000,Children & Education Services,Children's Services,Home to Sch SN Trnsp,03/01/2023,1900442055,900,W Phillips
Derbyshire County Council,1000,Highways & Transport Services,Economic Transport & Communities,Goods Received/Invoice Rec'd A/c,03/01/2023,5100077057,764.32,Wheelplant Ltd
Derbyshire County Council,1000,Children & Education Services,Children's Services,Supported Lodgings,03/01/2023,1900441231,1179.36,Hillgate Health Group LTD
Derbyshire County Council,1000,Highways & Transport Services,Economic Transport & Communities,Goods Received/Invoice Rec'd A/c,03/01/2023,5100076576,1032.5,Peter Byard Plant Hire Ltd
Derbyshire County Council,1000,Highways & Transport Services,Economic Transport & Communities,Input VAT,03/01/2023,5100076847,1003.5,Joule Brady Limited
Derbyshire County Council,1000,Children & Education Services,Children's Services,Home to Sch SN Trnsp,03/01/2023,1900441269,1007.7,Coalville Cabs Ltd
Derbyshire County Council,1000,Children & Education Services,Children's Services,Contract Hire - Transport,03/01/2023,1900442057,820,Western Cars Company Derby Ltd
Derbyshire County Council,1000,Children & Education Services,Children's Services,Home to Sch SN Trnsp,03/01/2023,1900442087,688.17,Phoenix Cars
Derbyshire County Council,1000,Children & Education Services,Children's Services,Home to Sch SN Trnsp,03/01/2023,1900441275,1099.68,Pinxton and Normo Taxis
Derbyshire County Council,1000,Adult Social Care,Adult Social Health Care,Independent Dom Services,03/01/2023,1900441428,1368.74,Respectful Care
Derbyshire County Council,1000,Children & Education Services,Children's Services,Home to Sch SN Trnsp,03/01/2023,1900441284,750,C Barker
Derbyshire County Council,1000,Highways & Transport Services,Economic Transport & Communities,Input VAT,03/01/2023,5100076753,639.84,Peter Byard Plant Hire Ltd
Derbyshire County Council,1000,Children & Education Services,Children's Services,Home to Sch SN Trnsp,03/01/2023,1900442069,1200,Mr G S Sahota
Derbyshire County Council,1000,Children & Education Services,Children's Services,Home to Sch SN Trnsp,03/01/2023,1900442095,3260,Abbey Cars Taxis
Derbyshire County Council,1000,Children & Education Services,Children's Services,Input VAT,03/01/2023,1900442095,652,Abbey Cars Taxis
Derbyshire County Council,1000,Adult Social Care,Adult Social Health Care,Supported Living Schemes,03/01/2023,1900441538,2295.29,EMH Group
Derbyshire County Council,1000,Adult Social Care,Adult Social Health Care,Supported Living Schemes,03/01/2023,1900441689,3331.86,EMH Group
Derbyshire County Council,1000,Adult Social Care,Adult Social Health Care,Supported Living Schemes,03/01/2023,1900441747,2791.28,Lifeways
Derbyshire County Council,1000,Adult Social Care,Adult Social Health Care,Supported Living Schemes,03/01/2023,1900441746,2791.28,Lifeways
Derbyshire County Council,1000,Adult Social Care,Adult Social Health Care,Supported Living Schemes,03/01/2023,1900441626,3778.97,EMH Group
Derbyshire County Council,1000,Adult Social Care,Adult Social Health Care,Supported Living Schemes,03/01/2023,1900441613,2569.8,EMH Group
Derbyshire County Council,1000,Highways & Transport Services,Economic Transport & Communities,Input VAT,03/01/2023,5100076885,578.73,Wheelplant Ltd
Derbyshire County Council,1000,Highways & Transport Services,Economic Transport & Communities,Goods Received/Invoice Rec'd A/c,03/01/2023,5100076891,619.95,Wheelplant Ltd
Derbyshire County Council,1000,Adult Social Care,Adult Social Health Care,Supported Living Schemes,03/01/2023,1900441581,35144.48,Eden Supported Living Ltd
Derbyshire County Council,1000,Adult Social Care,Adult Social Health Care,Supported Living Schemes,03/01/2023,1900441699,3038.76,EMH Group
Derbyshire County Council,1000,Adult Social Care,Adult Social Health Care,Supported Living Schemes,03/01/2023,1900441625,3778.97,EMH Group
Derbyshire County Council,1000,Adult Social Care,Adult Social Health Care,Supported Living Schemes,03/01/2023,1900441649,3922.36,EMH Group
Derbyshire County Council,1000,Adult Social Care,Adult Social Health Care,Supported Living Schemes,03/01/2023,1900441650,4128.88,EMH Group
Derbyshire County Council,1000,Adult Social Care,Adult Social Health Care,Supported Living Schemes,03/01/2023,1900441534,5535.76,EMH Group
Derbyshire County Council,1000,Adult Social Care,Adult Social Health Care,Supported Living Schemes,03/01/2023,1900441612,5108.6,Eden Supported Living Ltd
Derbyshire County Council,1000,Adult Social Care,Adult Social Health Care,Supported Living Schemes,03/01/2023,1900441777,2749.24,Mencap
Derbyshire County Council,1000,Adult Social Care,Adult Social Health Care,Supported Living Schemes,03/01/2023,1900441781,4214.4,Mencap
Derbyshire County Council,1000,Adult Social Care,Adult Social Health Care,Supported Living Schemes,03/01/2023,1900441556,6655.31,EMH Group
Derbyshire County Council,1000,Highways & Transport Services,Economic Transport & Communities,Goods Received/Invoice Rec'd A/c,03/01/2023,5100076847,5017.5,Joule Brady Limited
Derbyshire County Council,1000,Children & Education Services,Children's Services,Supported Lodgings,03/01/2023,1900441223,3960.04,Roundabout Limited
Derbyshire County Council,1000,Children & Education Services,Children's Services,Supported Lodgings,03/01/2023,1900441226,2140,Serenity Housing Support Limited
Derbyshire County Council,1000,Children & Education Services,Children's Services,Rents General,03/01/2023,1900442160,3516,Flagg Methodist Church
Derbyshire County Council,1000,Non Distributed Costs,Commissioning Community and Policy,Goods Received/Invoice Rec'd A/c,03/01/2023,5100074971,765,Chesterfield Borough Council Cashie
Derbyshire County Council,1000,"Cultural, Environmental & Planning Services",Economic Transport & Communities,Goods Received/Invoice Rec'd A/c,03/01/2023,5100077009,15397.1,Browne Jacobson LLP
Derbyshire County Council,1000,"Cultural, Environmental & Planning Services",Economic Transport & Communities,Input VAT,03/01/2023,5100077009,3079.42,Browne Jacobson LLP
Derbyshire County Council,1000,Adult Social Care,Adult Social Health Care,Supported Living Schemes,03/01/2023,1900441562,4994.53,Eden Supported Living Ltd
Derbyshire County Council,1000,Adult Social Care,Adult Social Health Care,Supported Living Schemes,03/01/2023,1900441568,5612.86,EMH Group
Derbyshire County Council,1000,Adult Social Care,Adult Social Health Care,Supported Living Schemes,03/01/2023,1900441575,5383.45,Eden Supported Living Ltd
Derbyshire County Council,1000,Non Distributed Costs,Economic Transport & Communities,Goods Received/Invoice Rec'd A/c,03/01/2023,5100076652,3355.11,Emo Oil Ltd
Derbyshire County Council,1000,Non Distributed Costs,Economic Transport & Communities,Input VAT,03/01/2023,5100076652,671.02,Emo Oil Ltd
Derbyshire County Council,1000,Adult Social Care,Adult Social Health Care,Supported Living Schemes,03/01/2023,1900441603,28378,Eden Supported Living Ltd
Derbyshire County Council,1000,Adult Social Care,Adult Social Health Care,Supported Living Schemes,03/01/2023,1900441559,8540.25,Eden Supported Living Ltd
Derbyshire County Council,1000,Adult Social Care,Adult Social Health Care,Supported Living Schemes,03/01/2023,1900441566,4610.2,Eden Supported Living Ltd
Derbyshire County Council,1000,Highways & Transport Services,Economic Transport & Communities,Goods Received/Invoice Rec'd A/c,03/01/2023,5100074429,629,Joule Brady Limited
Derbyshire County Council,1000,Highways & Transport Services,Economic Transport & Communities,Goods Received/Invoice Rec'd A/c,03/01/2023,5100076835,598.46,Hirst Signs Ltd
Derbyshire County Council,1000,Highways & Transport Services,Economic Transport & Communities,Goods Received/Invoice Rec'd A/c,03/01/2023,5100076616,945,Peter Byard Plant Hire Ltd
Derbyshire County Council,1000,Children & Education Services,Children's Services,Home to Sch SN Trnsp,03/01/2023,1900442064,640,Western Cars Company Derby Ltd
Derbyshire County Council,1000,Children & Education Services,Children's Services,Input VAT,03/01/2023,1900441280,1018,Albatross Cars
Derbyshire County Council,1000,Children & Education Services,Children's Services,Supported Lodgings,03/01/2023,1900441227,6910.9,Harmony Childcare Resi Homes Ltd
Derbyshire County Council,1000,Adult Social Care,Adult Social Health Care,Supported Living Schemes,03/01/2023,1900441549,550.72,EMH Group
Derbyshire County Council,1000,Adult Social Care,Adult Social Health Care,Non-Contracted – Home Care,03/01/2023,1900441383,2982.2,Twyford Care Ltd T/A Twyford Sup
Derbyshire County Council,1000,Children & Education Services,Children's Services,Home to Sch SN Trnsp,03/01/2023,1900441256,1584,A Cabs Buxton Ltd
Derbyshire County Council,1000,Highways & Transport Services,Economic Transport & Communities,Goods Received/Invoice Rec'd A/c,03/01/2023,5100074430,720,Joule Brady Limited
Derbyshire County Council,1000,Highways & Transport Services,Economic Transport & Communities,Input VAT,03/01/2023,5100077233,888,Wheelplant Ltd
Derbyshire County Council,1000,Children & Education Services,Children's Services,Goods Received/Invoice Rec'd A/c,03/01/2023,5100076953,636,DNA Care Services Ltd
Derbyshire County Council,1000,Children & Education Services,Children's Services,Home to Sch SN Trnsp,03/01/2023,1900441280,5090,Albatross Cars
Derbyshire County Council,1000,Non Distributed Costs,Commissioning Community and Policy,Goods Received/Invoice Rec'd A/c,03/01/2023,5100073633,5418,D Cresswell & Son Limited
Derbyshire County Council,1000,Non Distributed Costs,Commissioning Community and Policy,Servicing,03/01/2023,5100076447,602.27,William Freer Limited
Derbyshire County Council,1000,Adult Social Care,Adult Social Health Care,Supported Living Schemes,03/01/2023,1900441582,6479.2,Eden Supported Living Ltd
Derbyshire County Council,1000,Adult Social Care,Adult Social Health Care,Supported Living Schemes,03/01/2023,1900441655,4543.44,EMH Group
Derbyshire County Council,1000,Non Distributed Costs,Commissioning Community and Policy,Goods Received/Invoice Rec'd A/c,03/01/2023,5100073375,632.3,First 4 Supplies Ltd
Derbyshire County Council,1000,Non Distributed Costs,Chief Executives,Goods Received/Invoice Rec'd A/c,03/01/2023,5100076865,1302.69,Harrow Green Limited
Derbyshire County Council,1000,Children & Education Services,Children's Services,Contract Hire - Transport,03/01/2023,1900442068,1830,Mr G S Sahota
Derbyshire County Council,1000,Children & Education Services,Children's Services,Home to Sch SN Trnsp,03/01/2023,1900442065,1040,Western Cars Company Derby Ltd
Derbyshire County Council,1000,Children & Education Services,Children's Services,Home to Sch SN Trnsp,03/01/2023,1900441265,1369.48,Crescent Cars
Derbyshire County Council,1000,Children & Education Services,Children's Services,Home to Sch SN Trnsp,03/01/2023,1900442058,1868,Western Cars Company Derby Ltd
Derbyshire County Council,1000,Children & Education Services,Children's Services,Home to Sch SN Trnsp,03/01/2023,1900442088,2425.15,Phoenix Cars
Derbyshire County Council,1000,Adult Social Care,Adult Social Health Care,Supported Living Schemes,03/01/2023,1900441600,8971.2,Eden Supported Living Ltd
Derbyshire County Council,1000,Adult Social Care,Adult Social Health Care,Supported Living Schemes,03/01/2023,1900441767,1809,Mencap
Derbyshire County Council,1000,Adult Social Care,Adult Social Health Care,Supported Living Schemes,03/01/2023,1900441611,5578.92,EMH Group
Derbyshire County Council,1000,Highways & Transport Services,Economic Transport & Communities,Goods Received/Invoice Rec'd A/c,03/01/2023,5100076648,502.3,Stacey Asphalt Ltd
Derbyshire County Council,1000,Children & Education Services,Children's Services,Homes Without Education,03/01/2023,1900441225,5400,Willow Care Group Limited
Derbyshire County Council,1000,Highways & Transport Services,Economic Transport & Communities,Input VAT,03/01/2023,5100077271,541.5,Wheelplant Ltd
Derbyshire County Council,1000,Children & Education Services,Children's Services,Professional Fees,03/01/2023,1900434105,760,REDACTED PERSONAL DATA
Derbyshire County Council,1000,Children & Education Services,Children's Services,Goods Received/Invoice Rec'd A/c,03/01/2023,5100076626,12100,THJH Consultancy
Derbyshire County Council,1000,Children & Education Services,Children's Services,Input VAT,03/01/2023,5100076626,2420,THJH Consultancy
Derbyshire County Council,1000,Children & Education Services,Children's Services,Home to Sch SN Trnsp,03/01/2023,1900441290,1106,REDACTED PERSONAL DATA
Derbyshire County Council,1000,Children & Education Services,Children's Services,Home to Sch SN Trnsp,03/01/2023,1900441271,733.05,Dovelin Cars
Derbyshire County Council,1000,Adult Social Care,Adult Social Health Care,Supported Living Schemes,03/01/2023,1900441782,10272.92,Mencap
Derbyshire County Council,1000,Adult Social Care,Adult Social Health Care,Supported Living Schemes,03/01/2023,1900441779,4793.28,Mencap
Derbyshire County Council,1000,Highways & Transport Services,Economic Transport & Communities,Input VAT,03/01/2023,5100076821,766.54,Stacey Asphalt Ltd
Derbyshire County Council,1000,Highways & Transport Services,Economic Transport & Communities,Goods Received/Invoice Rec'd A/c,03/01/2023,5100074451,725,Joule Brady Limited
Derbyshire County Council,1000,Highways & Transport Services,Economic Transport & Communities,Goods Received/Invoice Rec'd A/c,03/01/2023,5100076697,1435.14,Via East Midlands Ltd
Derbyshire County Council,1000,Children & Education Services,Children's Services,Goods Received/Invoice Rec'd A/c,03/01/2023,5100074310,4128,Greenstaff Medical
Derbyshire County Council,1000,Children & Education Services,Children's Services,Input VAT,03/01/2023,5100074310,688,Greenstaff Medical
Derbyshire County Council,1000,Highways & Transport Services,Economic Transport & Communities,Goods Received/Invoice Rec'd A/c,03/01/2023,5100076848,755,Joule Brady Limited
Derbyshire County Council,1000,Adult Social Care,Adult Social Health Care,Supported Living Schemes,03/01/2023,1900441769,5860.08,Mencap
Derbyshire County Council,1000,Children & Education Services,Children's Services,Home to Sch SN Trnsp,03/01/2023,1900441258,630,Allied Taxis
Derbyshire County Council,1000,Children & Education Services,Children's Services,Home to Sch SN Trnsp,03/01/2023,1900441278,1119.25,Albatross Cars
Derbyshire County Council,1000,Children & Education Services,Children's Services,Home to Sch SN Trnsp,03/01/2023,1900441264,5948.5,Crescent Cars
Derbyshire County Council,1000,Children & Education Services,Children's Services,Input VAT,03/01/2023,1900441264,1189.7,Crescent Cars
Derbyshire County Council,1000,Children & Education Services,Children's Services,Home to Sch SN Trnsp,03/01/2023,1900441260,1603.75,Allied Taxis
Derbyshire County Council,1000,Children & Education Services,Children's Services,Home to Sch SN Trnsp,03/01/2023,1900441273,1500,KP Cabs
Derbyshire County Council,1000,Highways & Transport Services,Economic Transport & Communities,Goods Received/Invoice Rec'd A/c,03/01/2023,5100077053,2193.77,Wheelplant Ltd
Derbyshire County Council,1000,Highways & Transport Services,Economic Transport & Communities,Goods Received/Invoice Rec'd A/c,03/01/2023,5100077085,1127.25,Tarmac Trading Limited
Derbyshire County Council,1000,Adult Social Care,Adult Social Health Care,Supported Living Schemes,03/01/2023,1900441776,3183.4,Mencap
Derbyshire County Council,1000,Adult Social Care,Adult Social Health Care,Supported Living Schemes,03/01/2023,1900441598,2325.87,Eden Supported Living Ltd
Derbyshire County Council,1000,Highways & Transport Services,Economic Transport & Communities,Goods Received/Invoice Rec'd A/c,03/01/2023,5100074311,1500,Wheelplant Ltd
Derbyshire County Council,1000,Non Distributed Costs,Commissioning Community and Policy,Goods Received/Invoice Rec'd A/c,03/01/2023,5100073361,524.75,First 4 Supplies Ltd
Derbyshire County Council,1000,Adult Social Care,Adult Social Health Care,Supported Living Schemes,03/01/2023,1900441614,22763.21,Eden Supported Living Ltd
Derbyshire County Council,1000,Adult Social Care,Adult Social Health Care,Supported Living Schemes,03/01/2023,1900441389,19126.64,Reach Housing And Enablement
Derbyshire County Council,1000,Adult Social Care,Adult Social Health Care,Supported Living Schemes,03/01/2023,1900441763,8935.32,Mencap
Derbyshire County Council,1000,Non Distributed Costs,Economic Transport & Communities,Goods Received/Invoice Rec'd A/c,03/01/2023,5100077116,2200,Freight Transport Association
Derbyshire County Council,1000,Children & Education Services,Children's Services,Goods Received/Invoice Rec'd A/c,03/01/2023,5100076629,533,A Line (Chesterfield) Ltd
Derbyshire County Council,1000,Children & Education Services,Children's Services,Goods Received/Invoice Rec'd A/c,03/01/2023,5100076632,2736,A Line (Chesterfield) Ltd
Derbyshire County Council,1000,Children & Education Services,Children's Services,Input VAT,03/01/2023,5100076628,2530,THJH Consultancy
Derbyshire County Council,1000,Children & Education Services,Children's Services,Goods Received/Invoice Rec'd A/c,03/01/2023,5100076628,12650,THJH Consultancy
Derbyshire County Council,1000,Children & Education Services,Children's Services,Home to Sch SN Trnsp,03/01/2023,1900441262,1225,Allied Taxis
Derbyshire County Council,1000,Children & Education Services,Children's Services,Goods Received/Invoice Rec'd A/c,03/01/2023,5100076954,5955.45,DNA Care Services Ltd
Derbyshire County Council,1000,Children & Education Services,Children's Services,Agency Payments,03/01/2023,5100076956,958.54,DNA Care Services Ltd
Derbyshire County Council,1000,Highways & Transport Services,Economic Transport & Communities,Goods Received/Invoice Rec'd A/c,03/01/2023,5100076753,3199.22,Peter Byard Plant Hire Ltd
Derbyshire County Council,1000,Adult Social Care,Adult Social Health Care,Supported Living Schemes,03/01/2023,1900441760,4793.28,Mencap
Derbyshire County Council,1000,Adult Social Care,Adult Social Health Care,Supported Living Schemes,03/01/2023,1900441754,4666.12,Mencap
Derbyshire County Council,1000,Adult Social Care,Adult Social Health Care,Supported Living Schemes,03/01/2023,1900441561,7526.99,Eden Supported Living Ltd
Derbyshire County Council,1000,Adult Social Care,Adult Social Health Care,Supported Living Schemes,03/01/2023,1900441774,4359.16,Mencap
Derbyshire County Council,1000,"Cultural, Environmental & Planning Services",Community Services,Goods Received/Invoice Rec'd A/c,03/01/2023,5100076996,10330.46,Askews and Holts Library Services
Derbyshire County Council,1000,Highways & Transport Services,Economic Transport & Communities,Goods Received/Invoice Rec'd A/c,03/01/2023,5100077095,750,Wheelplant Ltd
Derbyshire County Council,1000,Highways & Transport Services,Economic Transport & Communities,Goods Received/Invoice Rec'd A/c,03/01/2023,5100075024,629,Joule Brady Limited
Derbyshire County Council,1000,Non Distributed Costs,Commissioning Community and Policy,Goods Received/Invoice Rec'd A/c,03/01/2023,5100076981,1250,William Freer Limited
Derbyshire County Council,1000,Non Distributed Costs,Commissioning Community and Policy,Goods Received/Invoice Rec'd A/c,03/01/2023,5100076592,6950,M C Northern Ltd
Derbyshire County Council,1000,Non Distributed Costs,Commissioning Community and Policy,Input VAT,03/01/2023,5100076592,1390,M C Northern Ltd
Derbyshire County Council,1000,Adult Social Care,Adult Social Health Care,Supported Living Schemes,03/01/2023,1900441563,5669.38,EMH Group
Derbyshire County Council,1000,Adult Social Care,Adult Social Health Care,Supported Living Schemes,03/01/2023,1900441585,3251.65,EMH Group
Derbyshire County Council,1000,Highways & Transport Services,Economic Transport & Communities,Goods Received/Invoice Rec'd A/c,03/01/2023,5100076784,877.33,Via East Midlands Ltd
Derbyshire County Council,1000,Children & Education Services,Children's Services,Home to Sch SN Trnsp,03/01/2023,1900442090,3307.84,Phoenix Cars
Derbyshire County Council,1000,Children & Education Services,Children's Services,Home to Sch SN Trnsp,03/01/2023,1900441274,1495.2,Whaley Private Hire
Derbyshire County Council,1000,Highways & Transport Services,Economic Transport & Communities,Input VAT,03/01/2023,5100077389,510.01,Arden Winch and Co Ltd
Derbyshire County Council,1000,Highways & Transport Services,Economic Transport & Communities,Goods Received/Invoice Rec'd A/c,03/01/2023,5100077389,2427.45,Arden Winch and Co Ltd
Derbyshire County Council,1000,Highways & Transport Services,Economic Transport & Communities,Goods Received/Invoice Rec'd A/c,03/01/2023,5100074431,500,Joule Brady Limited
Derbyshire County Council,1000,Highways & Transport Services,Economic Transport & Communities,Goods Received/Invoice Rec'd A/c,03/01/2023,5100076698,947.16,Via East Midlands Ltd
Derbyshire County Council,1000,Children & Education Services,Children's Services,Academy Payments,03/01/2023,1900442173,53500,Chellaston Fields Spencer Academy
Derbyshire County Council,1000,Children & Education Services,Children's Services,Academy Payments,03/01/2023,1900442170,65000,Mease Spencer Academy
Derbyshire County Council,1000,Balance Sheet,Balance Sheet,Imprest - Outstanding Reimbursements,03/01/2023,1900442120,592.64,Briar Close HOP- Borrowash
Derbyshire County Council,1000,Balance Sheet,Balance Sheet,Advance of pay,03/01/2023,1900441042,559.13,one time-individual-CHAPS
Derbyshire County Council,1000,Balance Sheet,Balance Sheet,Advance of pay,03/01/2023,1900441127,692.02,one time-individual-CHAPS
Derbyshire County Council,1000,Balance Sheet,Balance Sheet,Advance of pay,03/01/2023,1900441029,962.74,one time-individual-CHAPS
Derbyshire County Council,1000,Highways & Transport Services,Economic Transport & Communities,Goods Received/Invoice Rec'd A/c,03/01/2023,5100074432,720,Joule Brady Limited
Derbyshire County Council,1000,Highways & Transport Services,Economic Transport & Communities,Goods Received/Invoice Rec'd A/c,03/01/2023,5100076586,1295,Peter Byard Plant Hire Ltd
Derbyshire County Council,1000,Highways & Transport Services,Economic Transport & Communities,Goods Received/Invoice Rec'd A/c,03/01/2023,5100076587,1295,Peter Byard Plant Hire Ltd
Derbyshire County Council,1000,Highways & Transport Services,Economic Transport & Communities,Goods Received/Invoice Rec'd A/c,03/01/2023,5100076589,1341.67,Peter Byard Plant Hire Ltd
Derbyshire County Council,1000,Highways & Transport Services,Economic Transport & Communities,Goods Received/Invoice Rec'd A/c,03/01/2023,5100076815,4018.66,Breedon Trading Ltd
Derbyshire County Council,1000,Highways & Transport Services,Economic Transport & Communities,Goods Received/Invoice Rec'd A/c,03/01/2023,5100076588,1295,Peter Byard Plant Hire Ltd
Derbyshire County Council,1000,Highways & Transport Services,Economic Transport & Communities,Goods Received/Invoice Rec'd A/c,03/01/2023,5100076806,745.92,Stacey Processing Limited
Derbyshire County Council,1000,Highways & Transport Services,Economic Transport & Communities,Input VAT,03/01/2023,5100076815,803.74,Breedon Trading Ltd
Derbyshire County Council,1000,Highways & Transport Services,Economic Transport & Communities,Goods Received/Invoice Rec'd A/c,03/01/2023,5100075302,2860.01,Joule Brady Limited
Derbyshire County Council,1000,Children & Education Services,Children's Services,Homes Without Education,03/01/2023,1900441228,13920.3,Acorn Care & Education Ltd
Derbyshire County Council,1000,Children & Education Services,Children's Services,Goods Received/Invoice Rec'd A/c,03/01/2023,5100077045,1000,REDACTED PERSONAL DATA
Derbyshire County Council,1000,Highways & Transport Services,Economic Transport & Communities,Goods Received/Invoice Rec'd A/c,03/01/2023,5100074351,716.29,Arden Winch and Co Ltd
Derbyshire County Council,1000,Highways & Transport Services,Economic Transport & Communities,Input VAT,03/01/2023,5100074488,1088.02,Compass Minerals UK Ltd
Derbyshire County Council,1000,Highways & Transport Services,Economic Transport & Communities,Goods Received/Invoice Rec'd A/c,03/01/2023,5100074488,5440.09,Compass Minerals UK Ltd
Derbyshire County Council,1000,Adult Social Care,Adult Social Health Care,Supported Living Schemes,03/01/2023,1900441634,6395.57,EMH Group
Derbyshire County Council,1000,Highways & Transport Services,Economic Transport & Communities,Goods Received/Invoice Rec'd A/c,03/01/2023,5100076695,2331.95,Via East Midlands Ltd
Derbyshire County Council,1000,Highways & Transport Services,Economic Transport & Communities,Goods Received/Invoice Rec'd A/c,03/01/2023,5100076730,1338.66,Breedon Trading Ltd
Derbyshire County Council,1000,Highways & Transport Services,Economic Transport & Communities,Goods Received/Invoice Rec'd A/c,03/01/2023,5100076630,820.64,G D Golding Skip Hire Ltd
Derbyshire County Council,1000,Children & Education Services,Children's Services,Contract Hire - Transport,03/01/2023,1900442079,1736.95,Razwan Javed
Derbyshire County Council,1000,Balance Sheet,Balance Sheet,Imprest - Outstanding Reimbursements,03/01/2023,1900441209,758.39,Chesterfield Area Office (CAYA)
Derbyshire County Council,1000,Balance Sheet,Balance Sheet,Goods Received/Invoice Rec'd A/c,03/01/2023,5100076782,1000,Brandon Hire Station Ltd
Derbyshire County Council,1000,Adult Social Care,Adult Social Health Care,Supported Living Schemes,03/01/2023,1900441573,5805.13,Eden Supported Living Ltd
Derbyshire County Council,1000,Adult Social Care,Adult Social Health Care,Supported Living Schemes,03/01/2023,1900441773,4069.72,Mencap
Derbyshire County Council,1000,Adult Social Care,Adult Social Health Care,Supported Living Schemes,03/01/2023,1900441790,4503.84,Mencap
Derbyshire County Council,1000,Adult Social Care,Adult Social Health Care,Supported Living Schemes,03/01/2023,1900441576,4329.25,Eden Supported Living Ltd
Derbyshire County Council,1000,Children & Education Services,Children's Services,Goods Received/Invoice Rec'd A/c,03/01/2023,5100077173,750,Holly Cross
Derbyshire County Council,1000,Balance Sheet,Balance Sheet,Advance of pay,03/01/2023,1900440984,1000,one time-individual-CHAPS
Derbyshire County Council,1000,Balance Sheet,Balance Sheet,Advance of pay,03/01/2023,1900441022,1193.64,one time-individual-CHAPS
Derbyshire County Council,1000,Balance Sheet,Balance Sheet,Advance of pay,03/01/2023,1900441027,890,one time-individual-CHAPS
Derbyshire County Council,1000,Balance Sheet,Balance Sheet,Advance of pay,03/01/2023,1900440997,798,one time-individual-CHAPS
Derbyshire County Council,1000,Highways & Transport Services,Economic Transport & Communities,Goods Received/Invoice Rec'd A/c,03/01/2023,5100077253,1915,Action Patch Planing Ltd
Derbyshire County Council,1000,Adult Social Care,Adult Social Health Care,Supported Living Schemes,03/01/2023,1900441529,2645.38,EMH Group
Derbyshire County Council,1000,Children & Education Services,Children's Services,Goods Received/Invoice Rec'd A/c,03/01/2023,5100077128,650,Samuel Coe
Derbyshire County Council,1000,Adult Social Care,Adult Social Health Care,Supported Living Schemes,03/01/2023,1900441607,2326.1,Eden Supported Living Ltd
Derbyshire County Council,1000,Children & Education Services,Children's Services,Academy Payments,03/01/2023,1900442171,11500,Highfields Spencer Academy
Derbyshire County Council,1000,Balance Sheet,Balance Sheet,Advance of pay,03/01/2023,1900441157,661.14,one time-individual-CHAPS
Derbyshire County Council,1000,Balance Sheet,Balance Sheet,Advance of pay,03/01/2023,1900441018,626.83,one time-individual-CHAPS
Derbyshire County Council,1000,Highways & Transport Services,Economic Transport & Communities,Goods Received/Invoice Rec'd A/c,03/01/2023,5100074428,629,Joule Brady Limited
Derbyshire County Council,1000,Highways & Transport Services,Economic Transport & Communities,Goods Received/Invoice Rec'd A/c,03/01/2023,5100076743,1249.6,Marshalls
Derbyshire County Council,1000,Adult Social Care,Adult Social Health Care,Supported Living Schemes,03/01/2023,1900441558,3064.82,Eden Supported Living Ltd
Derbyshire County Council,1000,Highways & Transport Services,Economic Transport & Communities,Goods Received/Invoice Rec'd A/c,03/01/2023,5100076577,1032.5,Peter Byard Plant Hire Ltd
Derbyshire County Council,1000,Capital,Capital,Contractors,03/01/2023,1900440967,20356.67,Fieldturf Tarkett
Derbyshire County Council,1000,Highways & Transport Services,Economic Transport & Communities,Goods Received/Invoice Rec'd A/c,03/01/2023,5100077037,609.4,William Twigg Matlock Ltd
Derbyshire County Council,1000,Highways & Transport Services,Economic Transport & Communities,Goods Received/Invoice Rec'd A/c,03/01/2023,5100077055,2331.81,Wheelplant Ltd
Derbyshire County Council,1000,"Cultural, Environmental & Planning Services",Community Services,Goods Received/Invoice Rec'd A/c,03/01/2023,5100073154,1198.4,ASI Security Systems Ltd
Derbyshire County Council,1000,Adult Social Care,Adult Social Health Care,Supported Living Schemes,03/01/2023,1900441667,4159.86,EMH Group
Derbyshire County Council,1000,Highways & Transport Services,Economic Transport & Communities,Goods Received/Invoice Rec'd A/c,03/01/2023,5100076727,526.73,Stacey Asphalt Ltd
Derbyshire County Council,1000,Highways & Transport Services,Economic Transport & Communities,Goods Received/Invoice Rec'd A/c,03/01/2023,5100076769,947.43,Via East Midlands Ltd
Derbyshire County Council,1000,Children & Education Services,Children's Services,Input VAT,03/01/2023,1900441255,633.6,Derby City Cars Ltd
Derbyshire County Council,1000,Children & Education Services,Children's Services,Home to Sch SN Trnsp,03/01/2023,1900441255,3168,Derby City Cars Ltd
Derbyshire County Council,1000,Balance Sheet,Balance Sheet,Advance of pay,03/01/2023,1900441057,821.15,one time-individual-CHAPS
Derbyshire County Council,1000,Balance Sheet,Balance Sheet,Advance of pay,03/01/2023,1900441017,1077.69,one time-individual-CHAPS
Derbyshire County Council,1000,Balance Sheet,Balance Sheet,Advance of pay,03/01/2023,1900441075,791.46,one time-individual-CHAPS
Derbyshire County Council,1000,Highways & Transport Services,Economic Transport & Communities,Goods Received/Invoice Rec'd A/c,03/01/2023,5100076978,2843.35,Via East Midlands Ltd
Derbyshire County Council,1000,Highways & Transport Services,Economic Transport & Communities,Input VAT,03/01/2023,5100076978,568.67,Via East Midlands Ltd
Derbyshire County Council,1000,Children & Education Services,Children's Services,Academy Payments,03/01/2023,1900442172,76500,Highfields Spencer Academy
Derbyshire County Council,1000,Children & Education Services,Children's Services,Other Local Authorities,03/01/2023,1900441117,11966.67,Chellaston Academy
Derbyshire County Council,1000,Children & Education Services,Children's Services,Goods Received/Invoice Rec'd A/c,03/01/2023,5100077008,660,Jessica Purchase – St Johns
Derbyshire County Council,1000,Children & Education Services,Children's Services,Goods Received/Invoice Rec'd A/c,03/01/2023,5100077044,700,REDACTED PERSONAL DATA
Derbyshire County Council,1000,Children & Education Services,Children's Services,Goods Received/Invoice Rec'd A/c,03/01/2023,5100076687,750,Joshua Hazelwood
Derbyshire County Council,1000,Balance Sheet,Balance Sheet,Statutory Adoption Pay,03/01/2023,1900440977,-2726.89,HMRC-Cumbernauld
Derbyshire County Council,1000,Balance Sheet,Balance Sheet,Statutory Paternity Pay,03/01/2023,1900440977,-576.5,HMRC-Cumbernauld
Derbyshire County Council,1000,Balance Sheet,Balance Sheet,Post Graduate Loans,03/01/2023,1900440977,9556,HMRC-Cumbernauld
Derbyshire County Council,1000,Children & Education Services,Community Services,Projects & Activities,03/01/2023,1900441056,700,REDACTED PERSONAL DATA
Derbyshire County Council,1000,Balance Sheet,Balance Sheet,S.M.P 92%,03/01/2023,1900440977,-181264.78,HMRC-Cumbernauld
Derbyshire County Council,1000,Balance Sheet,Balance Sheet,Student Loans,03/01/2023,1900440977,327568,HMRC-Cumbernauld
Derbyshire County Council,1000,Highways & Transport Services,Economic Transport & Communities,Goods Received/Invoice Rec'd A/c,03/01/2023,5100076578,1388.34,Peter Byard Plant Hire Ltd
Derbyshire County Council,1000,Children & Education Services,Community Services,Projects & Activities,03/01/2023,1900441060,700,REDACTED PERSONAL DATA
Derbyshire County Council,1000,Children & Education Services,Children's Services,Goods Received/Invoice Rec'd A/c,03/01/2023,5100076777,650,Laura Martin
Derbyshire County Council,1000,Children & Education Services,Children's Services,Goods Received/Invoice Rec'd A/c,03/01/2023,5100076603,1134.97,Straw & Pearce
Derbyshire County Council,1000,Balance Sheet,Balance Sheet,Imprest - Outstanding Reimbursements,03/01/2023,1900442118,617.5,Eckington Childrens Services
Derbyshire County Council,1000,Balance Sheet,Balance Sheet,Advance of pay,03/01/2023,1900441041,539.6,one time-individual-CHAPS
Derbyshire County Council,1000,Balance Sheet,Balance Sheet,Advance of pay,03/01/2023,1900441037,528.38,one time-individual-CHAPS
Derbyshire County Council,1000,Balance Sheet,Balance Sheet,Advance of pay,03/01/2023,1900441030,781.41,one time-individual-CHAPS
Derbyshire County Council,1000,Balance Sheet,Balance Sheet,Advance of pay,03/01/2023,1900441028,690.37,one time-individual-CHAPS
Derbyshire County Council,1000,Balance Sheet,Balance Sheet,Advance of pay,03/01/2023,1900441143,828.85,one time-individual-CHAPS
Derbyshire County Council,1000,Balance Sheet,Balance Sheet,Imprest - Outstanding Reimbursements,03/01/2023,1900441212,904.58,Staveley Area Office
Derbyshire County Council,1000,Children & Education Services,Children's Services,Home to Sch SN Trnsp,03/01/2023,1900442070,2304,Mr G S Sahota
Derbyshire County Council,1000,Children & Education Services,Children's Services,Home to Sch SN Trnsp,03/01/2023,1900442066,2037.76,Nesfield Mini Coaches
Derbyshire County Council,1000,Balance Sheet,Balance Sheet,ER's NIC,03/01/2023,1900440977,4532444.31,HMRC-Cumbernauld
Derbyshire County Council,1000,Balance Sheet,Balance Sheet,Apprenticeship Levy,03/01/2023,1900440977,221286,HMRC-Cumbernauld
Derbyshire County Council,1000,Balance Sheet,Balance Sheet,EE's NIC,03/01/2023,1900440977,3184806.24,HMRC-Cumbernauld
Derbyshire County Council,1000,Balance Sheet,Balance Sheet,PAYE Tax,03/01/2023,1900440977,5283639.33,HMRC-Cumbernauld
Derbyshire County Council,1000,Capital,Capital,Goods Received/Invoice Rec'd A/c,03/01/2023,5100077076,1527.6,A Wandless Sign Services Ltd
Derbyshire County Council,1000,Adult Social Care,Adult Social Health Care,Supported Living Schemes,03/01/2023,1900441619,4699.2,Eden Supported Living Ltd
Derbyshire County Council,1000,Children & Education Services,Children's Services,Goods Received/Invoice Rec'd A/c,03/01/2023,5100076839,1850,Learning Pad
Derbyshire County Council,1000,Children & Education Services,Children's Services,Home to Sch SN Trnsp,03/01/2023,1900441281,7450,Shaffiq Hussain
Derbyshire County Council,1000,Non Distributed Costs,Economic Transport & Communities,Goods Received/Invoice Rec'd A/c,03/01/2023,5100077068,812.32,Calibration and Consultancy Servs
Derbyshire County Council,1000,Non Distributed Costs,Commissioning Community and Policy,Goods Received/Invoice Rec'd A/c,03/01/2023,5100077229,840,Concept Elevators (UK) Ltd
Derbyshire County Council,1000,Balance Sheet,Balance Sheet,Imprest - Outstanding Reimbursements,03/01/2023,1900442115,515.83,Hopewell
Derbyshire County Council,1000,Balance Sheet,Balance Sheet,Advance of pay,03/01/2023,1900441039,585.38,one time-individual-CHAPS
Derbyshire County Council,1000,Balance Sheet,Balance Sheet,Advance of pay,03/01/2023,1900440986,1119,one time-individual-CHAPS
Derbyshire County Council,1000,Balance Sheet,Balance Sheet,Advance of pay,03/01/2023,1900441048,569.16,one time-individual-CHAPS
Derbyshire County Council,1000,Balance Sheet,Balance Sheet,Imprest - Outstanding Reimbursements,03/01/2023,1900441318,672.45,Ripley Area Office (CAYA)
Derbyshire County Council,1000,Children & Education Services,Children's Services,Home to Sch SN Trnsp,03/01/2023,1900441257,2200,Derby City Cars Ltd
Derbyshire County Council,1000,Balance Sheet,Balance Sheet,Advance of pay,03/01/2023,1900441158,712.38,one time-individual-CHAPS
Derbyshire County Council,1000,Balance Sheet,Balance Sheet,Advance of pay,03/01/2023,1900441234,1826,one time-individual-CHAPS
Derbyshire County Council,1000,Balance Sheet,Balance Sheet,Imprest - Outstanding Reimbursements,03/01/2023,1900442114,1305.28,Three Gables - Chapel
Derbyshire County Council,1000,Balance Sheet,Balance Sheet,Advance of pay,03/01/2023,1900441146,651,one time-individual-CHAPS
Derbyshire County Council,1000,Balance Sheet,Balance Sheet,Insurance Provision,03/01/2023,1900440970,6500,DAC Beachcroft LLP
Derbyshire County Council,1000,Highways & Transport Services,Economic Transport & Communities,Goods Received/Invoice Rec'd A/c,03/01/2023,5100076678,1762.5,Peter Byard Plant Hire Ltd
Derbyshire County Council,1000,Highways & Transport Services,Economic Transport & Communities,Goods Received/Invoice Rec'd A/c,03/01/2023,5100076821,3832.68,Stacey Asphalt Ltd
Derbyshire County Council,1000,Balance Sheet,Balance Sheet,Advance of pay,03/01/2023,1900440998,1030.17,one time-individual-CHAPS
Derbyshire County Council,1000,Children & Education Services,Children's Services,Home to Sch SN Trnsp,03/01/2023,1900441251,1800,Derby City Cars Ltd
Derbyshire County Council,1000,Children & Education Services,Corporate,Input VAT,03/01/2023,1900440968,94064.39,Derbyshire Schools Phase
Derbyshire County Council,1000,Children & Education Services,Corporate,Contributions to Supplies & Services,03/01/2023,1900440968,470321.93,Derbyshire Schools Phase
Derbyshire County Council,1000,Highways & Transport Services,Economic Transport & Communities,Goods Received/Invoice Rec'd A/c,03/01/2023,5100077233,4440,Wheelplant Ltd
Derbyshire County Council,1000,Non Distributed Costs,Chief Executives,Goods Received/Invoice Rec'd A/c,03/01/2023,5100077396,35818.18,XMA Ltd
Derbyshire County Council,1000,Non Distributed Costs,Chief Executives,Input VAT,03/01/2023,5100077396,7163.6,XMA Ltd
Derbyshire County Council,1000,Children & Education Services,Children's Services,Home to Sch SN Trnsp,03/01/2023,1900442062,1920,Western Cars Company Derby Ltd
Derbyshire County Council,1000,Highways & Transport Services,Economic Transport & Communities,Goods Received/Invoice Rec'd A/c,03/01/2023,5100076696,1484.03,Via East Midlands Ltd
Derbyshire County Council,1000,Balance Sheet,Balance Sheet,Advance of pay,03/01/2023,1900441077,697.65,one time-individual-CHAPS
Derbyshire County Council,1000,Highways & Transport Services,Economic Transport & Communities,Goods Received/Invoice Rec'd A/c,03/01/2023,5100077217,1828.8,Wheelplant Ltd
Derbyshire County Council,1000,Non Distributed Costs,Commissioning Community and Policy,Goods Received/Invoice Rec'd A/c,03/01/2023,5100076448,1256,William Freer Limited
Derbyshire County Council,1000,Non Distributed Costs,Commissioning Community and Policy,Goods Received/Invoice Rec'd A/c,03/01/2023,5100076591,10400,M C Northern Ltd
Derbyshire County Council,1000,Non Distributed Costs,Commissioning Community and Policy,Input VAT,03/01/2023,5100076591,2080,M C Northern Ltd
Derbyshire County Council,1000,Non Distributed Costs,Commissioning Community and Policy,Goods Received/Invoice Rec'd A/c,03/01/2023,5100077134,1525,M Parkin Plastering Ltd
Derbyshire County Council,1000,Non Distributed Costs,Commissioning Community and Policy,Goods Received/Invoice Rec'd A/c,03/01/2023,5100073861,596.25,William Freer Limited
Derbyshire County Council,1000,Balance Sheet,Balance Sheet,Imprest - Outstanding Reimbursements,03/01/2023,1900441218,1007.74,Glenholme - Long Eaton
Derbyshire County Council,1000,Balance Sheet,Balance Sheet,Advance of pay,03/01/2023,1900441006,1020.6,one time-individual-CHAPS
Derbyshire County Council,1000,Balance Sheet,Balance Sheet,Advance of pay,03/01/2023,1900441007,1185.08,one time-individual-CHAPS
Derbyshire County Council,1000,Balance Sheet,Balance Sheet,Advance of pay,03/01/2023,1900440990,586,one time-individual-CHAPS
Derbyshire County Council,1000,Balance Sheet,Balance Sheet,Advance of pay,03/01/2023,1900440988,1179,one time-individual-CHAPS
Derbyshire County Council,1000,Non Distributed Costs,Commissioning Community and Policy,Computer Hardware,03/01/2023,5100074938,84288.24,Specialist Computer Centres
Derbyshire County Council,1000,Non Distributed Costs,Commissioning Community and Policy,Input VAT,03/01/2023,5100074938,16857.64,Specialist Computer Centres
Derbyshire County Council,1000,Adult Social Care,Adult Social Health Care,Independent Dom Services,03/01/2023,1900441652,1739.36,My Homecare
Derbyshire County Council,1000,Adult Social Care,Adult Social Health Care,Independent Dom Services,03/01/2023,1900441670,1132.16,My Homecare
Derbyshire County Council,1000,Highways & Transport Services,Economic Transport & Communities,Input VAT,03/01/2023,5100075302,572.02,Joule Brady Limited
Derbyshire County Council,1000,Highways & Transport Services,Economic Transport & Communities,Goods Received/Invoice Rec'd A/c,03/01/2023,5100074437,725,Joule Brady Limited
Derbyshire County Council,1000,Highways & Transport Services,Economic Transport & Communities,Goods Received/Invoice Rec'd A/c,03/01/2023,5100077352,600,Hopkinson Waste Management Ltd
Derbyshire County Council,1000,Balance Sheet,Balance Sheet,Imprest - Outstanding Reimbursements,03/01/2023,1900442113,714.83,Clay Cross Area Office CAYA
Derbyshire County Council,1000,Balance Sheet,Balance Sheet,Advance of pay,03/01/2023,1900441144,900.9,one time-individual-CHAPS
Derbyshire County Council,1000,Balance Sheet,Balance Sheet,Advance of pay,03/01/2023,1900441026,942.64,one time-individual-CHAPS
Derbyshire County Council,1000,Non Distributed Costs,Chief Executives,Input VAT,03/01/2023,5100077387,3251.34,XMA Ltd
Derbyshire County Council,1000,Non Distributed Costs,Chief Executives,Goods Received/Invoice Rec'd A/c,03/01/2023,5100077387,16256.7,XMA Ltd
Derbyshire County Council,1000,Highways & Transport Services,Economic Transport & Communities,Goods Received/Invoice Rec'd A/c,03/01/2023,5100071967,2237.98,Joule Brady Limited
Derbyshire County Council,1000,Corporate & Democratic Core Costs,Corporate,Rents General,03/01/2023,1900442157,4875,High Peak Borough Council
Derbyshire County Council,1000,Central Services to the Public,Corporate,Input VAT,03/01/2023,5100077397,1871.5,XMA Ltd
Derbyshire County Council,1000,Central Services to the Public,Corporate,Goods Received/Invoice Rec'd A/c,03/01/2023,5100077397,9357.5,XMA Ltd
Derbyshire County Council,1000,Corporate & Democratic Core,Corporate,Goods Received/Invoice Rec'd A/c,03/01/2023,5100076684,880,SCS Cleaning Services
Derbyshire County Council,1000,Corporate & Democratic Core Costs,Corporate,Grants,03/01/2023,1900434036,500,Buxton Town Team CIC
Derbyshire County Council,1000,Balance Sheet,Balance Sheet,Advance of pay,03/01/2023,1900441095,994.77,one time-individual-CHAPS
Derbyshire County Council,1000,Balance Sheet,Balance Sheet,PAYE Tax,03/01/2023,1900440978,92965.68,HMRC-Cumbernauld
Derbyshire County Council,1000,Balance Sheet,Balance Sheet,Advance of pay,03/01/2023,1900441044,1437.06,one time-individual-CHAPS
Derbyshire County Council,1000,Balance Sheet,Balance Sheet,Advance of pay,03/01/2023,1900440985,624,one time-individual-CHAPS
Derbyshire County Council,1000,"Cultural, Environmental & Planning Services",Community Services,Goods Received/Invoice Rec'd A/c,03/01/2023,5100076995,15664.16,Askews and Holts Library Services
Derbyshire County Council,1000,Non Distributed Costs,Commissioning Community and Policy,Goods Received/Invoice Rec'd A/c,03/01/2023,5100077198,783.88,Switch Electrical Supplies
Derbyshire County Council,1000,Non Distributed Costs,Corporate,Electricity,03/01/2023,1900442174,863.15,Edf Energy Customers Ltd
Derbyshire County Council,1000,Children & Education Services,Corporate,Input VAT,03/01/2023,1900440969,86605.27,Derbyshire Schools Ltd
Derbyshire County Council,1000,Children & Education Services,Corporate,Contributions to Supplies & Services,03/01/2023,1900440969,433026.35,Derbyshire Schools Ltd
Derbyshire County Council,1000,Non Distributed Costs,Corporate,Goods Received/Invoice Rec'd A/c,03/01/2023,5100077234,550,Micropathology Ltd
Derbyshire County Council,1000,Balance Sheet,Balance Sheet,Advance of pay,03/01/2023,1900441148,539.74,one time-individual-CHAPS
Derbyshire County Council,1000,Balance Sheet,Balance Sheet,Manual Input VAT,03/01/2023,1900440967,4071.33,Fieldturf Tarkett
Derbyshire County Council,1000,Balance Sheet,Balance Sheet,Goods Received/Invoice Rec'd A/c,03/01/2023,5100077034,686.09,William Twigg Matlock Ltd
Derbyshire County Council,1000,Balance Sheet,Balance Sheet,Imprest - Outstanding Reimbursements,03/01/2023,1900441325,1173.45,Chesterfield Comm Mental Health
Derbyshire County Council,1000,Balance Sheet,Balance Sheet,Advance of pay,03/01/2023,1900441001,922.94,one time-individual-CHAPS
Derbyshire County Council,1000,Highways & Transport Services,Economic Transport & Communities,Goods Received/Invoice Rec'd A/c,03/01/2023,5100075516,1017.5,Joule Brady Limited
Derbyshire County Council,1000,Balance Sheet,Balance Sheet,Imprest - Outstanding Reimbursements,03/01/2023,1900441204,816.5,Clay Cross Resource Centre
Derbyshire County Council,1000,Non Distributed Costs,Commissioning Community and Policy,Barristers Fees,03/01/2023,1900441160,500,Irwin Mitchell LLP
Derbyshire County Council,1000,Adult Social Care,Adult Social Health Care,Non-Contracted – Home Care,03/01/2023,1900441392,987.84,Lily of the Valley
Derbyshire County Council,1000,Highways & Transport Services,Economic Transport & Communities,Goods Received/Invoice Rec'd A/c,03/01/2023,5100076701,905.67,Via East Midlands Ltd
Derbyshire County Council,1000,"Cultural, Environmental & Planning Services",Economic Transport & Communities,Input VAT,03/01/2023,5100076719,54374.78,Browne Jacobson LLP
Derbyshire County Council,1000,"Cultural, Environmental & Planning Services",Economic Transport & Communities,Goods Received/Invoice Rec'd A/c,03/01/2023,5100076719,271873.9,Browne Jacobson LLP
Derbyshire County Council,1000,Non Distributed Costs,Commissioning Community and Policy,Input VAT,03/01/2023,1900441336,1410.22,AVC Wise
Derbyshire County Council,1000,Non Distributed Costs,Commissioning Community and Policy,Professional Fees,03/01/2023,1900441336,7051.11,REDACTED PERSONAL DATA
Derbyshire County Council,1000,Balance Sheet,Balance Sheet,Short term Loan OUT,03/01/2023,1900440982,10000000,Close Brothers Limited
Derbyshire County Council,1000,Balance Sheet,Balance Sheet,Imprest - Outstanding Reimbursements,03/01/2023,1900441205,1329.11,Chesterfield Area Office (CAYA)
Derbyshire County Council,1000,Adult Social Care,Adult Social Health Care,Independent Dom Services,03/01/2023,1900441392,2487.24,Lily of the Valley
Derbyshire County Council,1000,Adult Social Care,Adult Social Health Care,Independent Dom Services,03/01/2023,1900441404,825.24,Lily of the Valley
Derbyshire County Council,1000,Adult Social Care,Adult Social Health Care,Independent Dom Services,03/01/2023,1900441406,828.12,Lovehands Care Services Ltd
Derbyshire County Council,1000,Adult Social Care,Adult Social Health Care,Independent Dom Services,03/01/2023,1900441409,825.44,Lovehands Care Services Ltd
Derbyshire County Council,1000,Adult Social Care,Adult Social Health Care,Independent Dom Services,03/01/2023,1900441674,1062.68,My Homecare
Derbyshire County Council,1000,Adult Social Care,Adult Social Health Care,Independent Dom Services,03/01/2023,1900441407,801.15,Lovehands Care Services Ltd
Derbyshire County Council,1000,Adult Social Care,Adult Social Health Care,Independent Dom Services,03/01/2023,1900441394,900.48,Lily of the Valley
Derbyshire County Council,1000,Adult Social Care,Adult Social Health Care,Independent Dom Services,03/01/2023,1900441651,1053.36,My Homecare
Derbyshire County Council,1000,Highways & Transport Services,Economic Transport & Communities,Goods Received/Invoice Rec'd A/c,03/01/2023,5100077242,890,John Gregory and Sons Timber
Derbyshire County Council,1000,Highways & Transport Services,Economic Transport & Communities,Input VAT,03/01/2023,5100071967,533.42,Joule Brady Limited
Derbyshire County Council,1000,Children & Education Services,Children's Services,Goods Received/Invoice Rec'd A/c,03/01/2023,5100077354,828,National Open College Network
Derbyshire County Council,1000,Adult Social Care,Adult Social Health Care,Independent Dom Services,03/01/2023,1900441499,883.12,Goyt Valley Carers Ltd
Derbyshire County Council,1000,Adult Social Care,Adult Social Health Care,Independent Dom Services,03/01/2023,1900441872,815.72,Foray 577 Ltd
Derbyshire County Council,1000,Adult Social Care,Adult Social Health Care,Supported Living Schemes,03/01/2023,1900441704,2749.81,EMH Group
Derbyshire County Council,1000,Adult Social Care,Adult Social Health Care,Independent Dom Services,03/01/2023,1900441354,1095,Valley Care Direct Ltd
Derbyshire County Council,1000,Adult Social Care,Adult Social Health Care,Independent Dom Services,03/01/2023,1900441939,2716.72,Community Life Choices
Derbyshire County Council,1000,Adult Social Care,Adult Social Health Care,Independent Dom Services,03/01/2023,1900441490,884.4,Goyt Valley Carers Ltd
Derbyshire County Council,1000,Adult Social Care,Adult Social Health Care,Independent Dom Services,03/01/2023,1900441455,1039.02,Routes Healthcare
Derbyshire County Council,1000,Adult Social Care,Adult Social Health Care,Independent Dom Services,03/01/2023,1900441451,724.08,Routes Healthcare
Derbyshire County Council,1000,Adult Social Care,Adult Social Health Care,Independent Dom Services,03/01/2023,1900441491,2987.2,Goyt Valley Carers Ltd
Derbyshire County Council,1000,Adult Social Care,Adult Social Health Care,Supported Living Schemes,03/01/2023,1900441703,3197.27,EMH Group
Derbyshire County Council,1000,Adult Social Care,Adult Social Health Care,Supported Living Schemes,03/01/2023,1900441722,2726.48,Mencap
Derbyshire County Council,1000,Adult Social Care,Adult Social Health Care,Supported Living Schemes,03/01/2023,1900441596,3365.93,EMH Group
Derbyshire County Council,1000,Adult Social Care,Adult Social Health Care,Independent Dom Services,03/01/2023,1900441363,550.72,EMH Group
Derbyshire County Council,1000,Adult Social Care,Adult Social Health Care,Supported Living Schemes,03/01/2023,1900441525,3569.76,EMH Group
Derbyshire County Council,1000,Adult Social Care,Adult Social Health Care,Independent Dom Services,03/01/2023,1900441429,1458.2,Respectful Care
Derbyshire County Council,1000,Adult Social Care,Adult Social Health Care,Independent Dom Services,03/01/2023,1900441789,940.68,Mencap
Derbyshire County Council,1000,Adult Social Care,Adult Social Health Care,Supported Living Schemes,03/01/2023,1900441605,26756.4,Eden Supported Living Ltd
Derbyshire County Council,1000,Adult Social Care,Adult Social Health Care,Supported Living Schemes,03/01/2023,1900441726,5353.52,Mencap
Derbyshire County Council,1000,Adult Social Care,Adult Social Health Care,Supported Living Schemes,03/01/2023,1900441706,4966.12,EMH Group
Derbyshire County Council,1000,Adult Social Care,Adult Social Health Care,Supported Living Schemes,03/01/2023,1900441788,2147.6,Mencap
Derbyshire County Council,1000,Adult Social Care,Adult Social Health Care,Independent Dom Services,03/01/2023,1900441834,1085.84,Foray 577 Ltd
Derbyshire County Council,1000,Adult Social Care,Adult Social Health Care,Independent Dom Services,03/01/2023,1900441825,2206.4,Foray 577 Ltd
Derbyshire County Council,1000,Adult Social Care,Adult Social Health Care,Supported Living Schemes,03/01/2023,1900441771,5263.08,Mencap
Derbyshire County Council,1000,Adult Social Care,Adult Social Health Care,Independent Dom Services,03/01/2023,1900441401,627.12,Lily of the Valley
Derbyshire County Council,1000,Adult Social Care,Adult Social Health Care,Independent Dom Services,03/01/2023,1900441388,635.6,Serendipity Healthcare Ltd
Derbyshire County Council,1000,Adult Social Care,Adult Social Health Care,Independent Dom Services,03/01/2023,1900441823,3080,Foray 577 Ltd
Derbyshire County Council,1000,Adult Social Care,Adult Social Health Care,Independent Dom Services,03/01/2023,1900441945,523.24,Complete Care Chesterfield
Derbyshire County Council,1000,Adult Social Care,Adult Social Health Care,Independent Dom Services,03/01/2023,1900441887,801.84,Foray 577 Ltd
Derbyshire County Council,1000,Adult Social Care,Adult Social Health Care,Independent Dom Services,04/01/2023,1900444927,927.52,My Homecare
Derbyshire County Council,1000,Adult Social Care,Adult Social Health Care,Input VAT,04/01/2023,1900445003,2003.54,Adsetts Partnership
Derbyshire County Council,1000,Adult Social Care,Adult Social Health Care,Direct Payment,04/01/2023,1900445302,29246.27,REDACTED PERSONAL DATA
Derbyshire County Council,1000,Adult Social Care,Adult Social Health Care,Direct Payment,04/01/2023,1900445258,1167.69,REDACTED PERSONAL DATA
Derbyshire County Council,1000,Adult Social Care,Adult Social Health Care,Independent Dom Services,04/01/2023,1900444802,1016.4,Eyam Domiciliary Service Ltd
Derbyshire County Council,1000,Adult Social Care,Adult Social Health Care,Independent Dom Services,04/01/2023,1900444968,6153.84,Desire Care
Derbyshire County Council,1000,Adult Social Care,Adult Social Health Care,Independent Dom Services,04/01/2023,1900444860,833.28,Eyam Domiciliary Service Ltd
Derbyshire County Council,1000,Adult Social Care,Adult Social Health Care,Independent Dom Services,04/01/2023,1900444836,3575.04,Bespoke Care and Training
Derbyshire County Council,1000,Adult Social Care,Adult Social Health Care,Independent Dom Services,04/01/2023,1900444893,2723.84,Bespoke Care and Training
Derbyshire County Council,1000,Adult Social Care,Adult Social Health Care,Independent Dom Services,04/01/2023,1900444951,807.29,Millennium Homecare Services Ltd
Derbyshire County Council,1000,Adult Social Care,Adult Social Health Care,Independent Dom Services,04/01/2023,1900444924,2819.93,Millennium Homecare Services Ltd
Derbyshire County Council,1000,Adult Social Care,Adult Social Health Care,Direct Payment,04/01/2023,1900445267,726,REDACTED PERSONAL DATA
Derbyshire County Council,1000,Adult Social Care,Adult Social Health Care,Non-Contracted – Home Care,04/01/2023,1900444773,598.09,C & S Homecare Services Ltd
Derbyshire County Council,1000,Adult Social Care,Adult Social Health Care,Input VAT,04/01/2023,1900445007,895.72,Adsetts Partnership
Derbyshire County Council,1000,Adult Social Care,Adult Social Health Care,Direct Payment,04/01/2023,1900445204,-7414.29,REDACTED PERSONAL DATA
Derbyshire County Council,1000,Adult Social Care,Adult Social Health Care,Independent Dom Services,04/01/2023,1900445004,1354.73,Lilyrose Care Group Ltd
Derbyshire County Council,1000,Adult Social Care,Adult Social Health Care,Independent Dom Services,04/01/2023,1900444885,3745.28,Bespoke Care and Training
Derbyshire County Council,1000,Adult Social Care,Adult Social Health Care,Independent Dom Services,04/01/2023,1900444855,947.92,Eyam Domiciliary Service Ltd
Derbyshire County Council,1000,Adult Social Care,Adult Social Health Care,Direct Payment,04/01/2023,1900445319,3888,REDACTED PERSONAL DATA
Derbyshire County Council,1000,Adult Social Care,Adult Social Health Care,Independent Dom Services,04/01/2023,1900444808,676.56,Eyam Domiciliary Service Ltd
Derbyshire County Council,1000,Adult Social Care,Adult Social Health Care,Independent Dom Services,04/01/2023,1900444882,3404.8,Bespoke Care and Training
Derbyshire County Council,1000,Adult Social Care,Adult Social Health Care,Independent Dom Services,04/01/2023,1900444773,1123.87,C & S Homecare Services Ltd
Derbyshire County Council,1000,Adult Social Care,Adult Social Health Care,Independent Dom Services,04/01/2023,1900444991,1521.01,Lilyrose Care Group Ltd
Derbyshire County Council,1000,Adult Social Care,Adult Social Health Care,Direct Payment,04/01/2023,1900445218,1854.1,REDACTED PERSONAL DATA
Derbyshire County Council,1000,Adult Social Care,Adult Social Health Care,Direct Payment,04/01/2023,1900445315,88974.84,REDACTED PERSONAL DATA
Derbyshire County Council,1000,Highways & Transport Services,Economic Transport & Communities,Goods Received/Invoice Rec'd A/c,04/01/2023,5100075525,1295,Joule Brady Limited
Derbyshire County Council,1000,Children & Education Services,Children's Services,Supported Lodgings,04/01/2023,1900445070,4738.56,Serenity Housing Support Limited
Derbyshire County Council,1000,Children & Education Services,Children's Services,Supported Lodgings,04/01/2023,1900445094,1731.39,Above N Beyond Ltd
Derbyshire County Council,1000,Adult Social Care,Adult Social Health Care,Direct Payment,04/01/2023,1900445338,4777.5,REDACTED PERSONAL DATA
Derbyshire County Council,1000,Adult Social Care,Adult Social Health Care,Independent Dom Services,04/01/2023,1900444880,1182.44,Eyam Domiciliary Service Ltd
Derbyshire County Council,1000,Adult Social Care,Adult Social Health Care,Direct Payment,04/01/2023,1900445337,-4410,REDACTED PERSONAL DATA
Derbyshire County Council,1000,Adult Social Care,Adult Social Health Care,Independent Dom Services,04/01/2023,1900444976,1440.88,Home Instead High Peak
Derbyshire County Council,1000,Adult Social Care,Adult Social Health Care,Independent Dom Services,04/01/2023,1900444962,1549.52,Community Life Choices
Derbyshire County Council,1000,Adult Social Care,Adult Social Health Care,Independent Dom Services,04/01/2023,1900444992,1284.02,Lilyrose Care Group Ltd
Derbyshire County Council,1000,Adult Social Care,Adult Social Health Care,Independent Dom Services,04/01/2023,1900444906,3597.48,My Homecare
Derbyshire County Council,1000,Adult Social Care,Adult Social Health Care,Direct Payment,04/01/2023,1900445230,2376,REDACTED PERSONAL DATA
Derbyshire County Council,1000,Adult Social Care,Adult Social Health Care,Direct Payment,04/01/2023,1900445285,6462.86,REDACTED PERSONAL DATA
Derbyshire County Council,1000,Adult Social Care,Adult Social Health Care,Non-Contracted – Home Care,04/01/2023,1900444963,502.74,Five Healthgroup Ltd T/A
Derbyshire County Council,1000,Balance Sheet,Balance Sheet,Goods Received/Invoice Rec'd A/c,04/01/2023,5100077676,575.6,Southern Power Tools
Derbyshire County Council,1000,Non Distributed Costs,Commissioning Community and Policy,Goods Received/Invoice Rec'd A/c,04/01/2023,5100077461,7984.25,DHL Parcel UK Limited
Derbyshire County Council,1000,Adult Social Care,Adult Social Health Care,Direct Payment,04/01/2023,1900445284,-5244.86,REDACTED PERSONAL DATA
Derbyshire County Council,1000,Adult Social Care,Adult Social Health Care,Independent Dom Services,04/01/2023,1900444959,642.12,My Homecare
Derbyshire County Council,1000,"Cultural, Environmental & Planning Services",Economic Transport & Communities,Input VAT,04/01/2023,5100072756,7563.43,Suez
Derbyshire County Council,1000,"Cultural, Environmental & Planning Services",Economic Transport & Communities,Goods Received/Invoice Rec'd A/c,04/01/2023,5100072756,37817.15,Suez
Derbyshire County Council,1000,"Cultural, Environmental & Planning Services",Economic Transport & Communities,Goods Received/Invoice Rec'd A/c,04/01/2023,5100072844,6645.9,Suez
Derbyshire County Council,1000,"Cultural, Environmental & Planning Services",Economic Transport & Communities,Input VAT,04/01/2023,5100072711,6101.74,Suez
Derbyshire County Council,1000,"Cultural, Environmental & Planning Services",Economic Transport & Communities,Goods Received/Invoice Rec'd A/c,04/01/2023,5100072851,8005.48,Suez
Derbyshire County Council,1000,"Cultural, Environmental & Planning Services",Economic Transport & Communities,Input VAT,04/01/2023,5100072844,1329.18,Suez
Derbyshire County Council,1000,"Cultural, Environmental & Planning Services",Economic Transport & Communities,Goods Received/Invoice Rec'd A/c,04/01/2023,5100072711,30508.71,Suez
Derbyshire County Council,1000,"Cultural, Environmental & Planning Services",Economic Transport & Communities,Input VAT,04/01/2023,5100072851,1601.1,Suez
Derbyshire County Council,1000,Non Distributed Costs,Commissioning Community and Policy,Contractors,04/01/2023,5100077515,1295.04,Sap (UK) Ltd
Derbyshire County Council,1000,Non Distributed Costs,Commissioning Community and Policy,Contractors,04/01/2023,5100077515,1375.97,Sap (UK) Ltd
Derbyshire County Council,1000,Adult Social Care,Adult Social Health Care,Independent Dom Services,04/01/2023,1900444912,568.48,My Homecare
Derbyshire County Council,1000,Adult Social Care,Adult Social Health Care,Independent Dom Services,04/01/2023,1900444963,1069.32,Five Healthgroup Ltd T/A
Derbyshire County Council,1000,Highways & Transport Services,Economic Transport & Communities,Input VAT,04/01/2023,5100074439,714,Joule Brady Limited
Derbyshire County Council,1000,Balance Sheet,Balance Sheet,Advance of pay,04/01/2023,1900442474,1746,one time-individual-CHAPS
Derbyshire County Council,1000,Balance Sheet,Balance Sheet,Stock - Transport (Purchases),04/01/2023,1900445361,764.65,Fuchs Lubricants PLC
Derbyshire County Council,1000,Non Distributed Costs,Corporate,Goods Received/Invoice Rec'd A/c,04/01/2023,5100077795,695.56,G Wathall & Son Ltd
Derbyshire County Council,1000,Non Distributed Costs,Corporate,Rents General,04/01/2023,1900440953,3181.28,Chesterfield Borough Council Cashie
Derbyshire County Council,1000,Non Distributed Costs,Corporate,Input VAT,04/01/2023,1900440953,636.26,Chesterfield Borough Council Cashie
Derbyshire County Council,1000,Balance Sheet,Balance Sheet,Goods Received/Invoice Rec'd A/c,04/01/2023,5100077490,1465,MallatiteTRANSPORTandTECHNOLOGY Div
Derbyshire County Council,1000,Adult Social Care,Adult Social Health Care,Direct Payment,04/01/2023,1900445229,-1958.5,REDACTED PERSONAL DATA
Derbyshire County Council,1000,Balance Sheet,Balance Sheet,Goods Received/Invoice Rec'd A/c,04/01/2023,5100073942,1133.6,XMA Ltd
Derbyshire County Council,1000,Balance Sheet,Balance Sheet,NHS Pension Employees,04/01/2023,1900445414,5188.03,NHS Pension Scheme Account
Derbyshire County Council,1000,Non Distributed Costs,Corporate,Input VAT,04/01/2023,5100073664,2944,Proceed Engineering Solutions Ltd
Derbyshire County Council,1000,Non Distributed Costs,Corporate,Goods Received/Invoice Rec'd A/c,04/01/2023,5100073664,14720,Proceed Engineering Solutions Ltd
Derbyshire County Council,1000,Non Distributed Costs,Commissioning Community and Policy,Goods Received/Invoice Rec'd A/c,04/01/2023,5100077495,539.85,Circuit Electrical Testing Ltd
Derbyshire County Council,1000,Non Distributed Costs,Commissioning Community and Policy,Goods Received/Invoice Rec'd A/c,04/01/2023,5100077403,900,Terry Group Ltd
Derbyshire County Council,1000,Non Distributed Costs,Corporate,Goods Received/Invoice Rec'd A/c,04/01/2023,5100077584,10048,REDACTED PERSONAL DATA
Derbyshire County Council,1000,"Cultural, Environmental & Planning Services",Economic Transport & Communities,Goods Received/Invoice Rec'd A/c,04/01/2023,5100072855,1332.96,Suez
Derbyshire County Council,1000,Balance Sheet,Balance Sheet,Advance of pay,04/01/2023,1900442473,1052,one time-individual-CHAPS
Derbyshire County Council,1000,Balance Sheet,Balance Sheet,NHS Pension Employees,04/01/2023,1900445413,1040.03,NHS Pension Scheme Account
Derbyshire County Council,1000,Balance Sheet,Balance Sheet,NHS Pension Employers,04/01/2023,1900445413,2164.74,NHS Pension Scheme Account
Derbyshire County Council,1000,Children & Education Services,Children's Services,Voluntary Organisations,04/01/2023,1900445112,4082.88,Fusion Fostering
Derbyshire County Council,1000,Non Distributed Costs,Commissioning Community and Policy,Goods Received/Invoice Rec'd A/c,04/01/2023,5100077099,1303.89,Flogas Uk Ltd
Derbyshire County Council,1000,Non Distributed Costs,Commissioning Community and Policy,Goods Received/Invoice Rec'd A/c,04/01/2023,5100077770,500,PB Electrical Installations Ltd
Derbyshire County Council,1000,Children & Education Services,Children's Services,Fostering Allowance,04/01/2023,1900445143,564.34,REDACTED PERSONAL DATA
Derbyshire County Council,1000,Children & Education Services,Children's Services,Input VAT,04/01/2023,1900445088,3934.28,Aspire Pathway Group
Derbyshire County Council,1000,Children & Education Services,Children's Services,Supported Lodgings,04/01/2023,1900445088,19671.42,Aspire Pathway Group
Derbyshire County Council,1000,Non Distributed Costs,Commissioning Community and Policy,Goods Received/Invoice Rec'd A/c,04/01/2023,5100077675,4500,Prism Infosec
Derbyshire County Council,1000,Non Distributed Costs,Commissioning Community and Policy,Input VAT,04/01/2023,5100077675,900,Prism Infosec
Derbyshire County Council,1000,Non Distributed Costs,Commissioning Community and Policy,Goods Received/Invoice Rec'd A/c,04/01/2023,5100073666,922.3,William Twigg Matlock Ltd
Derbyshire County Council,1000,Highways & Transport Services,Economic Transport & Communities,Goods Received/Invoice Rec'd A/c,04/01/2023,5100075461,741,Joule Brady Limited
Derbyshire County Council,1000,Non Distributed Costs,Commissioning Community and Policy,Goods Received/Invoice Rec'd A/c,04/01/2023,5100077660,688.4,Raygar Architectural &
Derbyshire County Council,1000,Non Distributed Costs,Commissioning Community and Policy,Goods Received/Invoice Rec'd A/c,04/01/2023,5100074881,631.12,Switch Electrical Supplies
Derbyshire County Council,1000,Balance Sheet,Balance Sheet,Advance of pay,04/01/2023,1900442477,1732,one time-individual-CHAPS
Derbyshire County Council,1000,Adult Social Care,Adult Social Health Care,Direct Payment,04/01/2023,1900445318,3147.43,REDACTED PERSONAL DATA
Derbyshire County Council,1000,Balance Sheet,Balance Sheet,NHS Pension Employees,04/01/2023,1900445411,3982.04,NHS Pension Scheme Account
Derbyshire County Council,1000,Balance Sheet,Balance Sheet,NHS Pension Employers,04/01/2023,1900445411,4695.58,NHS Pension Scheme Account
Derbyshire County Council,1000,Non Distributed Costs,Corporate,Input VAT,04/01/2023,1900440951,1581.45,Chesterfield Borough Council Cashie
Derbyshire County Council,1000,Non Distributed Costs,Corporate,Rents General,04/01/2023,1900440951,7907.25,Chesterfield Borough Council Cashie
Derbyshire County Council,1000,Non Distributed Costs,Corporate,Input VAT,04/01/2023,1900440955,839.88,Chesterfield Borough Council Cashie
Derbyshire County Council,1000,Non Distributed Costs,Corporate,Rents General,04/01/2023,1900440955,4199.4,Chesterfield Borough Council Cashie
Derbyshire County Council,1000,Balance Sheet,Balance Sheet,NHS Pension Employers,04/01/2023,1900445414,9911.68,NHS Pension Scheme Account
Derbyshire County Council,1000,Highways & Transport Services,Economic Transport & Communities,Input VAT,04/01/2023,5100074440,595,Joule Brady Limited
Derbyshire County Council,1000,Balance Sheet,Balance Sheet,NHS Pension Employees,04/01/2023,1900445412,5165.18,NHS Pension Scheme Account
Derbyshire County Council,1000,Balance Sheet,Balance Sheet,NHS Pension Employers,04/01/2023,1900445412,7467.78,NHS Pension Scheme Account
Derbyshire County Council,1000,Balance Sheet,Balance Sheet,Imprest - Outstanding Reimbursements,04/01/2023,1900445390,945.55,16 Plus Care Leavers Team
Derbyshire County Council,1000,Balance Sheet,Balance Sheet,Imprest - Outstanding Reimbursements,04/01/2023,1900445385,538.25,HACs Trading Standards
Derbyshire County Council,1000,Balance Sheet,Balance Sheet,Advance of pay,04/01/2023,1900442475,543.67,one time-individual-CHAPS
Derbyshire County Council,1000,Children & Education Services,Children's Services,Voluntary Organisations,04/01/2023,1900445055,3243.68,Sunbeam Fostering Agency Ltd
Derbyshire County Council,1000,Children & Education Services,Children's Services,Goods Received/Invoice Rec'd A/c,04/01/2023,5100074444,590.5,REDACTED PERSONAL DATA
Derbyshire County Council,1000,Children & Education Services,Children's Services,Goods Received/Invoice Rec'd A/c,04/01/2023,5100077448,974,REDACTED PERSONAL DATA
Derbyshire County Council,1000,Children & Education Services,Children's Services,Voluntary Organisations,04/01/2023,1900445132,4206.7,Team Fostering
Derbyshire County Council,1000,Children & Education Services,Children's Services,Voluntary Organisations,04/01/2023,1900445071,5965.64,True Fostering Limited
Derbyshire County Council,1000,Highways & Transport Services,Economic Transport & Communities,Goods Received/Invoice Rec'd A/c,04/01/2023,5100074436,4760,Joule Brady Limited
Derbyshire County Council,1000,"Cultural, Environmental & Planning Services",Economic Transport & Communities,Input VAT,04/01/2023,5100072712,724.96,Suez
Derbyshire County Council,1000,"Cultural, Environmental & Planning Services",Economic Transport & Communities,Goods Received/Invoice Rec'd A/c,04/01/2023,5100072712,3624.78,Suez
Derbyshire County Council,1000,Children & Education Services,Children's Services,Input VAT,04/01/2023,1900445091,5743.86,Aspire Pathway Group
Derbyshire County Council,1000,Balance Sheet,Balance Sheet,Imprest - Outstanding Reimbursements,04/01/2023,1900445382,3078.1,Shirevale Resource Centre
Derbyshire County Council,1000,"Cultural, Environmental & Planning Services",Economic Transport & Communities,Input VAT,04/01/2023,5100072849,2374.65,Suez
Derbyshire County Council,1000,"Cultural, Environmental & Planning Services",Economic Transport & Communities,Input VAT,04/01/2023,5100072858,1003,Suez
Derbyshire County Council,1000,Highways & Transport Services,Economic Transport & Communities,Goods Received/Invoice Rec'd A/c,04/01/2023,5100077749,1756.76,Stacey Asphalt Ltd
Derbyshire County Council,1000,Children & Education Services,Community Services,Goods Received/Invoice Rec'd A/c,04/01/2023,5100077477,684,Disclosure and Barring Serv
Derbyshire County Council,1000,Highways & Transport Services,Economic Transport & Communities,Goods Received/Invoice Rec'd A/c,04/01/2023,5100074439,3570,Joule Brady Limited
Derbyshire County Council,1000,"Cultural, Environmental & Planning Services",Economic Transport & Communities,Goods Received/Invoice Rec'd A/c,04/01/2023,5100072849,11873.23,Suez
Derbyshire County Council,1000,"Cultural, Environmental & Planning Services",Economic Transport & Communities,Goods Received/Invoice Rec'd A/c,04/01/2023,5100072709,14716.91,Suez
Derbyshire County Council,1000,"Cultural, Environmental & Planning Services",Economic Transport & Communities,Input VAT,04/01/2023,5100072709,2943.38,Suez
Derbyshire County Council,1000,Highways & Transport Services,Economic Transport & Communities,Input VAT,04/01/2023,5100074436,952,Joule Brady Limited
Derbyshire County Council,1000,"Cultural, Environmental & Planning Services",Economic Transport & Communities,Goods Received/Invoice Rec'd A/c,04/01/2023,5100072858,5015,Suez
Derbyshire County Council,1000,Balance Sheet,Balance Sheet,Imprest - Outstanding Reimbursements,04/01/2023,1900445380,719.93,Hopewell
Derbyshire County Council,1000,Balance Sheet,Balance Sheet,Prudential AVC - LGPS,04/01/2023,1900442484,171573.11,Prudential Local Govt Avc Dept
Derbyshire County Council,1000,Balance Sheet,Balance Sheet,Imprest - Outstanding Reimbursements,04/01/2023,1900445387,561.3,Buxton Area Office (CAYA)
Derbyshire County Council,1000,Balance Sheet,Balance Sheet,Trade Union Deductions,04/01/2023,1900445409,2298.96,Unite the Union
Derbyshire County Council,1000,Adult Social Care,Adult Social Health Care,Supported Living Schemes,04/01/2023,1900445003,10017.68,Adsetts Partnership
Derbyshire County Council,1000,Highways & Transport Services,Economic Transport & Communities,Goods Received/Invoice Rec'd A/c,04/01/2023,5100077513,885.91,B AND G Cleaning Systems Limited
Derbyshire County Council,1000,Adult Social Care,Adult Social Health Care,Direct Payment,04/01/2023,1900445311,8017.61,REDACTED PERSONAL DATA
Derbyshire County Council,1000,"Cultural, Environmental & Planning Services",Economic Transport & Communities,Goods Received/Invoice Rec'd A/c,04/01/2023,5100072753,4098.21,Suez
Derbyshire County Council,1000,"Cultural, Environmental & Planning Services",Economic Transport & Communities,Input VAT,04/01/2023,5100072846,2416.11,Suez
Derbyshire County Council,1000,"Cultural, Environmental & Planning Services",Economic Transport & Communities,Input VAT,04/01/2023,5100072840,1547.26,Suez
Derbyshire County Council,1000,"Cultural, Environmental & Planning Services",Economic Transport & Communities,Goods Received/Invoice Rec'd A/c,04/01/2023,5100072840,7736.32,Suez
Derbyshire County Council,1000,"Cultural, Environmental & Planning Services",Economic Transport & Communities,Goods Received/Invoice Rec'd A/c,04/01/2023,5100072846,12080.53,Suez
Derbyshire County Council,1000,"Cultural, Environmental & Planning Services",Economic Transport & Communities,Input VAT,04/01/2023,5100072753,819.64,Suez
Derbyshire County Council,1000,Children & Education Services,Children's Services,Input VAT,04/01/2023,5100077652,986,Kerrie Broughton
Derbyshire County Council,1000,Children & Education Services,Children's Services,Homes Without Education,04/01/2023,1900445105,22874.28,Care Today
Derbyshire County Council,1000,Children & Education Services,Children's Services,Homes Without Education,04/01/2023,1900445064,30335.71,Cambian Childcare Ltd
Derbyshire County Council,1000,Children & Education Services,Children's Services,Input VAT,04/01/2023,1900445105,4574.86,Care Today
Derbyshire County Council,1000,Children & Education Services,Children's Services,Voluntary Organisations,04/01/2023,1900445073,6642.99,True Fostering Limited
Derbyshire County Council,1000,Non Distributed Costs,Commissioning Community and Policy,Input VAT,04/01/2023,5100073661,724,Ian Trueman Specialist Tree Service
Derbyshire County Council,1000,Non Distributed Costs,Commissioning Community and Policy,Goods Received/Invoice Rec'd A/c,04/01/2023,5100073661,3620,Ian Trueman Specialist Tree Service
Derbyshire County Council,1000,Children & Education Services,Children's Services,Special Need Schools & Colleges,04/01/2023,1900435476,-4207.01,Cambian Childcare Ltd
Derbyshire County Council,1000,Children & Education Services,Children's Services,Direct Payment,04/01/2023,1900445299,3245.6,REDACTED PERSONAL DATA
Derbyshire County Council,1000,Balance Sheet,Balance Sheet,Advance of pay,04/01/2023,1900442479,600,one time-individual-CHAPS
Derbyshire County Council,1000,Balance Sheet,Balance Sheet,Trade Union Deductions,04/01/2023,1900445407,85763.06,Unison
Derbyshire County Council,1000,Balance Sheet,Balance Sheet,Trade Union Deductions,04/01/2023,1900445410,9529.44,G M B
Derbyshire County Council,1000,Children & Education Services,Children's Services,Goods Received/Invoice Rec'd A/c,04/01/2023,5100077652,4930,Kerrie Broughton
Derbyshire County Council,1000,Non Distributed Costs,Commissioning Community and Policy,Goods Received/Invoice Rec'd A/c,04/01/2023,5100074579,1485.59,Custom Group Ltd
Derbyshire County Council,1000,Non Distributed Costs,Commissioning Community and Policy,Goods Received/Invoice Rec'd A/c,04/01/2023,5100075769,558.98,Arnold Laver and Co Ltd
Derbyshire County Council,1000,Adult Social Care,Adult Social Health Care,Supported Living Schemes,04/01/2023,1900445007,4478.6,Adsetts Partnership
Derbyshire County Council,1000,Highways & Transport Services,Economic Transport & Communities,Goods Received/Invoice Rec'd A/c,04/01/2023,5100074441,595,Joule Brady Limited
Derbyshire County Council,1000,Children & Education Services,Children's Services,Input VAT,04/01/2023,1900445102,4574.86,Care Today
Derbyshire County Council,1000,Children & Education Services,Children's Services,Homes With Education,04/01/2023,1900445102,22874.28,Care Today
Derbyshire County Council,1000,"Cultural, Environmental & Planning Services",Economic Transport & Communities,Academy Payments,04/01/2023,1900442207,5000,Spencer Academies Trust
Derbyshire County Council,1000,Children & Education Services,Children's Services,Voluntary Organisations,04/01/2023,1900445137,6831.16,Team Fostering
Derbyshire County Council,1000,Children & Education Services,Children's Services,Input VAT,04/01/2023,1900445104,4574.86,Care Today
Derbyshire County Council,1000,Children & Education Services,Children's Services,Homes With Education,04/01/2023,1900445104,22874.28,Care Today
Derbyshire County Council,1000,Children & Education Services,Children's Services,Input VAT,04/01/2023,1900445103,4574.86,Care Today
Derbyshire County Council,1000,Adult Social Care,Adult Social Health Care,Independent Dom Services,04/01/2023,1900444957,1098.45,My Homecare
Derbyshire County Council,1000,Children & Education Services,Children's Services,Supported Lodgings,04/01/2023,1900445067,4127.14,Serenity Housing Support Limited
Derbyshire County Council,1000,Children & Education Services,Children's Services,Homes Without Education,04/01/2023,1900445103,22874.28,Care Today
Derbyshire County Council,1000,Children & Education Services,Children's Services,Homes Without Education,04/01/2023,1900445043,16667.1,Total Care Matters Ltd
Derbyshire County Council,1000,Children & Education Services,Children's Services,Homes Without Education,04/01/2023,1900445041,5400,Willow Care Group Limited
Derbyshire County Council,1000,Children & Education Services,Children's Services,Homes Without Education,04/01/2023,1900445040,9412,Blue Mountain Homes Ltd
Derbyshire County Council,1000,Children & Education Services,Children's Services,Homes With Education,04/01/2023,1900445062,26549.29,Halliwell Homes Ltd
Derbyshire County Council,1000,Children & Education Services,Children's Services,Supported Lodgings,04/01/2023,1900445119,10020,Rose House Support Ltd
Derbyshire County Council,1000,Children & Education Services,Children's Services,Voluntary Organisations,04/01/2023,1900445085,4161.13,Parallel Parents
Derbyshire County Council,1000,Children & Education Services,Children's Services,Goods Received/Invoice Rec'd A/c,04/01/2023,5100077651,645,Central Cars Chesterfield
Derbyshire County Council,1000,Adult Social Care,Adult Social Health Care,Supported Living Schemes,04/01/2023,1900444978,1480.7,United Response Services Ltd
Derbyshire County Council,1000,Children & Education Services,Children's Services,Special Need Schools & Colleges,04/01/2023,1900435475,-1492.81,Cambian Childcare Ltd
Derbyshire County Council,1000,Children & Education Services,Children's Services,Homes Without Education,04/01/2023,1900445039,28867.86,Blue Mountain Homes Ltd
Derbyshire County Council,1000,Children & Education Services,Children's Services,Homes Without Education,04/01/2023,1900445121,25885,Country Care Childrens Home Ltd
Derbyshire County Council,1000,Children & Education Services,Children's Services,Homes Without Education,04/01/2023,1900445117,23250,Your Chapter Limited
Derbyshire County Council,1000,Non Distributed Costs,Commissioning Community and Policy,Input VAT,04/01/2023,5100077461,1596.85,DHL Parcel UK Limited
Derbyshire County Council,1000,Non Distributed Costs,Commissioning Community and Policy,Goods Received/Invoice Rec'd A/c,04/01/2023,5100073632,5691,D Cresswell & Son Limited
Derbyshire County Council,1000,Non Distributed Costs,Commissioning Community and Policy,Fees/Charges - General,04/01/2023,1900445407,-2144.08,Unison
Derbyshire County Council,1000,Highways & Transport Services,Economic Transport & Communities,Input VAT,04/01/2023,5100077588,608.68,Hopkinson Waste Management Ltd
Derbyshire County Council,1000,Highways & Transport Services,Economic Transport & Communities,Goods Received/Invoice Rec'd A/c,04/01/2023,5100077588,3043.6,Hopkinson Waste Management Ltd
Derbyshire County Council,1000,Children & Education Services,Children's Services,Voluntary Organisations,04/01/2023,1900445084,3655.52,Parallel Parents
Derbyshire County Council,1000,Children & Education Services,Children's Services,Voluntary Organisations,04/01/2023,1900445058,3518,Sunbeam Fostering Agency Ltd
Derbyshire County Council,1000,Children & Education Services,Children's Services,Voluntary Organisations,04/01/2023,1900445063,3518,Sunbeam Fostering Agency Ltd
Derbyshire County Council,1000,Highways & Transport Services,Economic Transport & Communities,Input VAT,04/01/2023,5100077520,502.06,Stacey Asphalt Ltd
Derbyshire County Council,1000,Non Distributed Costs,Commissioning Community and Policy,Goods Received/Invoice Rec'd A/c,04/01/2023,5100077456,4162.71,DHL Parcel UK Limited
Derbyshire County Council,1000,Non Distributed Costs,Commissioning Community and Policy,Input VAT,04/01/2023,5100077456,832.54,DHL Parcel UK Limited
Derbyshire County Council,1000,Children & Education Services,Children's Services,Homes Without Education,04/01/2023,1900445114,21921.34,Your Chapter Limited
Derbyshire County Council,1000,Children & Education Services,Children's Services,Homes Without Education,04/01/2023,1900445047,18600,Crystal Care Solutions Ltd
Derbyshire County Council,1000,Highways & Transport Services,Economic Transport & Communities,Goods Received/Invoice Rec'd A/c,04/01/2023,5100074442,1255.44,Joule Brady Limited
Derbyshire County Council,1000,Children & Education Services,Children's Services,Homes Without Education,04/01/2023,1900445124,15043.86,Platform Childcare Ltd
Derbyshire County Council,1000,Adult Social Care,Adult Social Health Care,Independent Dom Services,04/01/2023,1900445018,1736.85,Lilyrose Care Group Ltd
Derbyshire County Council,1000,Children & Education Services,Children's Services,Supported Lodgings,04/01/2023,1900445099,-18142.95,Keystone Chesterfield Ltd
Derbyshire County Council,1000,Children & Education Services,Children's Services,Voluntary Organisations,04/01/2023,1900445090,3277.01,Voice Fostering Ltd
Derbyshire County Council,1000,Highways & Transport Services,Economic Transport & Communities,Goods Received/Invoice Rec'd A/c,04/01/2023,5100073820,717.12,Stacey Asphalt Ltd
Derbyshire County Council,1000,Non Distributed Costs,Economic Transport & Communities,Goods Received/Invoice Rec'd A/c,04/01/2023,5100076212,694.86,Proactive Personnel Ltd
Derbyshire County Council,1000,Children & Education Services,Children's Services,Voluntary Organisations,04/01/2023,1900445035,3710.91,Five Rivers Child Care Limited
Derbyshire County Council,1000,Children & Education Services,Children's Services,Voluntary Organisations,04/01/2023,1900445089,3277.01,Voice Fostering Ltd
Derbyshire County Council,1000,Children & Education Services,Children's Services,Voluntary Organisations,04/01/2023,1900445109,3434.36,Fusion Fostering
Derbyshire County Council,1000,Highways & Transport Services,Economic Transport & Communities,Goods Received/Invoice Rec'd A/c,04/01/2023,5100075468,1558,Joule Brady Limited
Derbyshire County Council,1000,Children & Education Services,Children's Services,Supported Lodgings,04/01/2023,1900445038,1731.39,Above N Beyond Ltd
Derbyshire County Council,1000,Children & Education Services,Children's Services,Supported Lodgings,04/01/2023,1900445036,1731.39,Above N Beyond Ltd
Derbyshire County Council,1000,Children & Education Services,Children's Services,Supported Lodgings,04/01/2023,1900445093,1731.39,Above N Beyond Ltd
Derbyshire County Council,1000,Children & Education Services,Children's Services,Voluntary Organisations,04/01/2023,1900445059,3609.53,Sunbeam Fostering Agency Ltd
Derbyshire County Council,1000,Children & Education Services,Children's Services,Voluntary Organisations,04/01/2023,1900445087,4528.79,Parallel Parents
Derbyshire County Council,1000,Children & Education Services,Children's Services,Voluntary Organisations,04/01/2023,1900445050,3465.01,Sunbeam Fostering Agency Ltd
Derbyshire County Council,1000,Children & Education Services,Children's Services,Voluntary Organisations,04/01/2023,1900445082,4529.1,Parallel Parents
Derbyshire County Council,1000,Children & Education Services,Children's Services,Assistance to Families,04/01/2023,1900436754,4750,Waldenses Relocations Limited
Derbyshire County Council,1000,Children & Education Services,Children's Services,Goods Received/Invoice Rec'd A/c,04/01/2023,5100077674,900,Walls for the Future
Derbyshire County Council,1000,Children & Education Services,Children's Services,Supported Lodgings,04/01/2023,1900445037,1731.39,Above N Beyond Ltd
Derbyshire County Council,1000,Highways & Transport Services,Economic Transport & Communities,Goods Received/Invoice Rec'd A/c,04/01/2023,5100077598,1487.14,Via East Midlands Ltd
Derbyshire County Council,1000,Highways & Transport Services,Economic Transport & Communities,Goods Received/Invoice Rec'd A/c,04/01/2023,5100077608,592,Joule Brady Limited
Derbyshire County Council,1000,Children & Education Services,Children's Services,Special Allowance,04/01/2023,1900445203,691.43,REDACTED PERSONAL DATA
Derbyshire County Council,1000,Children & Education Services,Children's Services,Voluntary Organisations,04/01/2023,1900445061,3293.85,Sunbeam Fostering Agency Ltd
Derbyshire County Council,1000,"Cultural, Environmental & Planning Services",Economic Transport & Communities,Goods Received/Invoice Rec'd A/c,04/01/2023,5100072847,1461.17,Suez
Derbyshire County Council,1000,"Cultural, Environmental & Planning Services",Economic Transport & Communities,Goods Received/Invoice Rec'd A/c,04/01/2023,5100072762,1497.53,Suez
Derbyshire County Council,1000,"Cultural, Environmental & Planning Services",Economic Transport & Communities,Input VAT,04/01/2023,5100072841,10431.27,Suez
Derbyshire County Council,1000,"Cultural, Environmental & Planning Services",Economic Transport & Communities,Goods Received/Invoice Rec'd A/c,04/01/2023,5100072841,52156.34,Suez
Derbyshire County Council,1000,Non Distributed Costs,Commissioning Community and Policy,Input VAT,04/01/2023,5100077542,7076.84,British Telecommunications
Derbyshire County Council,1000,Non Distributed Costs,Commissioning Community and Policy,Goods Received/Invoice Rec'd A/c,04/01/2023,5100077542,35384.23,British Telecommunications
Derbyshire County Council,1000,Children & Education Services,Children's Services,Supported Lodgings,04/01/2023,1900445091,28719.28,Aspire Pathway Group
Derbyshire County Council,1000,Children & Education Services,Children's Services,Voluntary Organisations,04/01/2023,1900445034,2933.65,Anchor Fostercare
Derbyshire County Council,1000,Children & Education Services,Children's Services,Supported Lodgings,04/01/2023,1900445111,1519.96,ANEW Young People Services Ltd
Derbyshire County Council,1000,Adult Social Care,Adult Social Health Care,Direct Payment,04/01/2023,1900445227,1176.64,REDACTED PERSONAL DATA
Derbyshire County Council,1000,Children & Education Services,Children's Services,Supported Lodgings,04/01/2023,1900445118,10960,Rose House Support Ltd
Derbyshire County Council,1000,Children & Education Services,Children's Services,Supported Lodgings,04/01/2023,1900445100,6864.3,Keystone Chesterfield Ltd
Derbyshire County Council,1000,Children & Education Services,Children's Services,Supported Lodgings,04/01/2023,1900445066,4738.56,Serenity Housing Support Limited
Derbyshire County Council,1000,Children & Education Services,Children's Services,Voluntary Organisations,04/01/2023,1900445080,4158.34,Parallel Parents
Derbyshire County Council,1000,Children & Education Services,Children's Services,Voluntary Organisations,04/01/2023,1900445074,6642.99,True Fostering Limited
Derbyshire County Council,1000,Children & Education Services,Children's Services,Voluntary Organisations,04/01/2023,1900445069,6864.02,True Fostering Limited
Derbyshire County Council,1000,Children & Education Services,Children's Services,Homes Without Education,04/01/2023,1900445098,2657.13,Keystone Chesterfield Ltd
Derbyshire County Council,1000,Children & Education Services,Children's Services,Goods Received/Invoice Rec'd A/c,04/01/2023,5100077424,10000,Love2Reward
Derbyshire County Council,1000,Children & Education Services,Children's Services,Voluntary Organisations,04/01/2023,1900445051,3465.01,Sunbeam Fostering Agency Ltd
Derbyshire County Council,1000,Children & Education Services,Children's Services,Voluntary Organisations,04/01/2023,1900445065,3518,Sunbeam Fostering Agency Ltd
Derbyshire County Council,1000,Children & Education Services,Children's Services,Supported Lodgings,04/01/2023,1900445095,1731.39,Above N Beyond Ltd
Derbyshire County Council,1000,Non Distributed Costs,Economic Transport & Communities,Goods Received/Invoice Rec'd A/c,04/01/2023,5100075370,1622.82,Proactive Personnel Ltd
Derbyshire County Council,1000,"Cultural, Environmental & Planning Services",Economic Transport & Communities,Input VAT,04/01/2023,5100072757,1774.82,Suez
Derbyshire County Council,1000,"Cultural, Environmental & Planning Services",Economic Transport & Communities,Input VAT,04/01/2023,5100072759,9557.91,Suez
Derbyshire County Council,1000,"Cultural, Environmental & Planning Services",Economic Transport & Communities,Goods Received/Invoice Rec'd A/c,04/01/2023,5100072759,47789.57,Suez
Derbyshire County Council,1000,"Cultural, Environmental & Planning Services",Economic Transport & Communities,Goods Received/Invoice Rec'd A/c,04/01/2023,5100072757,8874.1,Suez
Derbyshire County Council,1000,"Cultural, Environmental & Planning Services",Economic Transport & Communities,Goods Received/Invoice Rec'd A/c,04/01/2023,5100072856,2100,Suez
Derbyshire County Council,1000,Highways & Transport Services,Economic Transport & Communities,Goods Received/Invoice Rec'd A/c,04/01/2023,5100074440,2975,Joule Brady Limited
Derbyshire County Council,1000,Adult Social Care,Adult Social Health Care,Independent Dom Services,04/01/2023,1900445005,738.42,Complete Care Chesterfield
Derbyshire County Council,1000,Children & Education Services,Children's Services,Voluntary Organisations,04/01/2023,1900445079,4001.17,Capstone Foster Care
Derbyshire County Council,1000,Children & Education Services,Children's Services,Voluntary Organisations,04/01/2023,1900445107,3885.14,Fusion Fostering
Derbyshire County Council,1000,Children & Education Services,Children's Services,Supported Lodgings,04/01/2023,1900445075,2042.72,Action Housing Association Ltd
Derbyshire County Council,1000,Children & Education Services,Children's Services,Voluntary Organisations,04/01/2023,1900445083,4161.13,Parallel Parents
Derbyshire County Council,1000,Children & Education Services,Children's Services,Voluntary Organisations,04/01/2023,1900445076,5757.01,True Fostering Limited
Derbyshire County Council,1000,Children & Education Services,Children's Services,Goods Received/Invoice Rec'd A/c,04/01/2023,5100074755,10000,Love2Reward
Derbyshire County Council,1000,Children & Education Services,Children's Services,Voluntary Organisations,04/01/2023,1900445129,3635.37,Team Fostering
Derbyshire County Council,1000,Adult Social Care,Adult Social Health Care,Independent Dom Services,04/01/2023,1900444947,1461.04,Millennium Homecare Services Ltd
Derbyshire County Council,1000,Adult Social Care,Adult Social Health Care,Independent Dom Services,04/01/2023,1900444824,2254,Eyam Domiciliary Service Ltd
Derbyshire County Council,1000,Adult Social Care,Adult Social Health Care,Independent Dom Services,04/01/2023,1900445001,738.42,Complete Care Chesterfield
Derbyshire County Council,1000,Adult Social Care,Adult Social Health Care,Supported Living Schemes,04/01/2023,1900444986,731.64,United Response Services Ltd
Derbyshire County Council,1000,Adult Social Care,Adult Social Health Care,Residents Savings,04/01/2023,1900424241,2170.89,Archway Funeral Service
Derbyshire County Council,1000,Children & Education Services,Children's Services,Voluntary Organisations,04/01/2023,1900445113,4252.98,Fusion Fostering
Derbyshire County Council,1000,Children & Education Services,Children's Services,Voluntary Organisations,04/01/2023,1900445130,3944.75,Team Fostering
Derbyshire County Council,1000,Children & Education Services,Children's Services,Supported Lodgings,04/01/2023,1900445096,6407.14,Keystone Chesterfield Ltd
Derbyshire County Council,1000,Children & Education Services,Children's Services,Voluntary Organisations,04/01/2023,1900445081,3715.66,Parallel Parents
Derbyshire County Council,1000,Highways & Transport Services,Economic Transport & Communities,Goods Received/Invoice Rec'd A/c,04/01/2023,5100077775,600,Western Air Ducts uk Ltd
Derbyshire County Council,1000,Adult Social Care,Adult Social Health Care,Independent Dom Services,04/01/2023,1900444881,2757.96,Eyam Domiciliary Service Ltd
Derbyshire County Council,1000,Non Distributed Costs,Commissioning Community and Policy,Contractors,04/01/2023,5100077515,1375.97,Sap (UK) Ltd
Derbyshire County Council,1000,Non Distributed Costs,Commissioning Community and Policy,Goods Received/Invoice Rec'd A/c,04/01/2023,5100077477,19798,Disclosure and Barring Serv
Derbyshire County Council,1000,Children & Education Services,Children's Services,Goods Received/Invoice Rec'd A/c,04/01/2023,5100077477,3154,Disclosure and Barring Serv
Derbyshire County Council,1000,Children & Education Services,Children's Services,Voluntary Organisations,04/01/2023,1900445052,3536.99,Sunbeam Fostering Agency Ltd
Derbyshire County Council,1000,Adult Social Care,Adult Social Health Care,Independent Dom Services,04/01/2023,1900444791,556.92,Eyam Domiciliary Service Ltd
Derbyshire County Council,1000,Adult Social Care,Adult Social Health Care,Independent Dom Services,04/01/2023,1900444777,1341.76,Eyam Domiciliary Service Ltd
Derbyshire County Council,1000,Adult Social Care,Adult Social Health Care,Direct Payment,04/01/2023,1900445278,9604,REDACTED PERSONAL DATA
Derbyshire County Council,1000,Adult Social Care,Adult Social Health Care,Direct Payment,04/01/2023,1900445277,-13884,REDACTED PERSONAL DATA
Derbyshire County Council,1000,Adult Social Care,Adult Social Health Care,Goods Received/Invoice Rec'd A/c,04/01/2023,5100077671,1496,Freedom Leisure
Derbyshire County Council,1000,Adult Social Care,Adult Social Health Care,Rates,04/01/2023,1900445415,1941.32,REDACTED PERSONAL DATA
Derbyshire County Council,1000,Adult Social Care,Adult Social Health Care,Goods Received/Invoice Rec'd A/c,04/01/2023,5100077446,897,Belper Window Cleaners
Derbyshire County Council,1000,Children & Education Services,Children's Services,Goods Received/Invoice Rec'd A/c,04/01/2023,5100077803,1403.46,J24 Resourcing Limited
Derbyshire County Council,1000,Children & Education Services,Children's Services,Goods Received/Invoice Rec'd A/c,04/01/2023,5100077729,598,Catherine Porter
Derbyshire County Council,1000,Adult Social Care,Adult Social Health Care,Direct Payment,04/01/2023,1900445239,8192.4,REDACTED PERSONAL DATA
Derbyshire County Council,1000,Children & Education Services,Children's Services,Goods Received/Invoice Rec'd A/c,04/01/2023,5100076994,6625,Alison Wain Education
Derbyshire County Council,1000,Highways & Transport Services,Economic Transport & Communities,Goods Received/Invoice Rec'd A/c,04/01/2023,5100076849,1364.93,Joule Brady Limited
Derbyshire County Council,1000,Children & Education Services,Children's Services,Voluntary Organisations,04/01/2023,1900445128,2786.28,Team Fostering
Derbyshire County Council,1000,Children & Education Services,Children's Services,Voluntary Organisations,04/01/2023,1900445053,3261.84,Sunbeam Fostering Agency Ltd
Derbyshire County Council,1000,Children & Education Services,Children's Services,Voluntary Organisations,04/01/2023,1900445136,3471.07,Team Fostering
Derbyshire County Council,1000,Children & Education Services,Children's Services,Direct Payment,04/01/2023,1900445281,-4401.79,REDACTED PERSONAL DATA
Derbyshire County Council,1000,Children & Education Services,Children's Services,Fostering Allowance,04/01/2023,1900445166,564.34,REDACTED PERSONAL DATA
Derbyshire County Council,1000,Children & Education Services,Children's Services,Voluntary Organisations,04/01/2023,1900445056,3472.28,Sunbeam Fostering Agency Ltd
Derbyshire County Council,1000,Children & Education Services,Children's Services,Voluntary Organisations,04/01/2023,1900445106,4082.88,Fusion Fostering
Derbyshire County Council,1000,Highways & Transport Services,Economic Transport & Communities,Goods Received/Invoice Rec'd A/c,04/01/2023,5100076869,800,Joule Brady Limited
Derbyshire County Council,1000,Adult Social Care,Adult Social Health Care,Direct Payment,04/01/2023,1900445228,1515,REDACTED PERSONAL DATA
Derbyshire County Council,1000,Children & Education Services,Children's Services,Goods Received/Invoice Rec'd A/c,04/01/2023,5100077804,1403.46,J24 Resourcing Limited
Derbyshire County Council,1000,Children & Education Services,Children's Services,Voluntary Organisations,04/01/2023,1900445126,3188.35,Voice Fostering Ltd
Derbyshire County Council,1000,Children & Education Services,Children's Services,Voluntary Organisations,04/01/2023,1900445125,3277.01,Voice Fostering Ltd
Derbyshire County Council,1000,Children & Education Services,Children's Services,Voluntary Organisations,04/01/2023,1900445054,3228.74,Sunbeam Fostering Agency Ltd
Derbyshire County Council,1000,Children & Education Services,Children's Services,Voluntary Organisations,04/01/2023,1900445110,3885.19,Fusion Fostering
Derbyshire County Council,1000,Adult Social Care,Adult Social Health Care,Direct Payment,04/01/2023,1900445232,-4000,REDACTED PERSONAL DATA
Derbyshire County Council,1000,Children & Education Services,Children's Services,Voluntary Organisations,04/01/2023,1900445131,4101.53,Team Fostering
Derbyshire County Council,1000,Children & Education Services,Children's Services,Goods Received/Invoice Rec'd A/c,04/01/2023,5100077491,4151.05,Belper Leisure Centre Ltd
Derbyshire County Council,1000,Children & Education Services,Children's Services,Homes Without Education,04/01/2023,1900445078,24598.19,T Junction Childrens Services
Derbyshire County Council,1000,Highways & Transport Services,Economic Transport & Communities,Goods Received/Invoice Rec'd A/c,04/01/2023,5100077520,2510.3,Stacey Asphalt Ltd
Derbyshire County Council,1000,Children & Education Services,Children's Services,Supported Lodgings,04/01/2023,1900445097,2657.13,Keystone Chesterfield Ltd
Derbyshire County Council,1000,Children & Education Services,Children's Services,Goods Received/Invoice Rec'd A/c,04/01/2023,5100077501,1350,Greenline Staffing Solutions LTD
Derbyshire County Council,1000,Adult Social Care,Adult Social Health Care,Independent Dom Services,04/01/2023,1900444897,1780.32,Eyam Domiciliary Service Ltd
Derbyshire County Council,1000,Children & Education Services,Children's Services,Homes With Education,04/01/2023,1900445120,19264.29,Caldecott Foundation
Derbyshire County Council,1000,Adult Social Care,Adult Social Health Care,Independent Dom Services,04/01/2023,1900444902,1404.47,Millennium Homecare Services Ltd
Derbyshire County Council,1000,Children & Education Services,Children's Services,Homes Without Education,04/01/2023,1900445123,48138.66,My House Calow Ltd
Derbyshire County Council,1000,Children & Education Services,Children's Services,Homes Without Education,04/01/2023,1900445045,21142,Crystal Care Solutions Ltd
Derbyshire County Council,1000,Children & Education Services,Children's Services,Goods Received/Invoice Rec'd A/c,04/01/2023,5100077504,1330,Greenline Staffing Solutions LTD
Derbyshire County Council,1000,Children & Education Services,Children's Services,Direct Payment,04/01/2023,1900445322,1282.29,REDACTED PERSONAL DATA
Derbyshire County Council,1000,Children & Education Services,Children's Services,Direct Payment,04/01/2023,1900445207,-5178.57,REDACTED PERSONAL DATA
Derbyshire County Council,1000,Children & Education Services,Children's Services,Direct Payment,04/01/2023,1900445282,5125.54,REDACTED PERSONAL DATA
Derbyshire County Council,1000,Children & Education Services,Children's Services,Direct Payment,04/01/2023,1900445220,3000,REDACTED PERSONAL DATA
Derbyshire County Council,1000,Adult Social Care,Adult Social Health Care,Independent Dom Services,04/01/2023,1900444916,1283.61,Millennium Homecare Services Ltd
Derbyshire County Council,1000,Adult Social Care,Adult Social Health Care,Goods Received/Invoice Rec'd A/c,04/01/2023,5100077781,5620.92,Elis UK Limited
Derbyshire County Council,1000,Children & Education Services,Children's Services,Voluntary Organisations,04/01/2023,1900445134,1055.43,Team Fostering
Derbyshire County Council,1000,Children & Education Services,Children's Services,Equipment,04/01/2023,1900442199,638.19,REDACTED PERSONAL DATA
Derbyshire County Council,1000,Adult Social Care,Adult Social Health Care,Independent Dom Services,04/01/2023,1900444805,683.4,Eyam Domiciliary Service Ltd
Derbyshire County Council,1000,Adult Social Care,Adult Social Health Care,Direct Payment,04/01/2023,1900445269,-8636.4,REDACTED PERSONAL DATA
Derbyshire County Council,1000,Children & Education Services,Children's Services,Goods Received/Invoice Rec'd A/c,04/01/2023,5100077500,1310,Greenline Staffing Solutions LTD
Derbyshire County Council,1000,Children & Education Services,Children's Services,Adoption Allowance,04/01/2023,1900444345,750,REDACTED PERSONAL DATA
Derbyshire County Council,1000,Highways & Transport Services,Economic Transport & Communities,Goods Received/Invoice Rec'd A/c,04/01/2023,5100077599,1400.4,Via East Midlands Ltd
Derbyshire County Council,1000,Children & Education Services,Children's Services,Direct Payment,04/01/2023,1900445301,1957.14,REDACTED PERSONAL DATA
Derbyshire County Council,1000,Children & Education Services,Children's Services,Homes Without Education,04/01/2023,1900445077,20520.76,T Junction Childrens Services
Derbyshire County Council,1000,Children & Education Services,Children's Services,Goods Received/Invoice Rec'd A/c,04/01/2023,5100077583,560,REDACTED PERSONAL DATA
Derbyshire County Council,1000,Children & Education Services,Children's Services,Goods Received/Invoice Rec'd A/c,04/01/2023,5100077570,6375,REDACTED PERSONAL DATA
Derbyshire County Council,1000,Adult Social Care,Adult Social Health Care,Independent Dom Services,04/01/2023,1900444954,1485.54,My Homecare
Derbyshire County Council,1000,Children & Education Services,Children's Services,Supported Lodgings,04/01/2023,1900445072,4738.56,Serenity Housing Support Limited
Derbyshire County Council,1000,Adult Social Care,Adult Social Health Care,Independent Dom Services,04/01/2023,1900445002,904.78,Lilyrose Care Group Ltd
Derbyshire County Council,1000,Adult Social Care,Adult Social Health Care,Independent Dom Services,04/01/2023,1900444979,1211.76,Lilyrose Care Group Ltd
Derbyshire County Council,1000,Children & Education Services,Children's Services,Homes With Education,04/01/2023,1900445068,26792.86,Branas ISAF Personal Development Cn
Derbyshire County Council,1000,Children & Education Services,Children's Services,Direct Payment,04/01/2023,1900445217,3330.04,REDACTED PERSONAL DATA
Derbyshire County Council,1000,Children & Education Services,Children's Services,Supported Lodgings,04/01/2023,1900445099,22571.52,Keystone Chesterfield Ltd
Derbyshire County Council,1000,Children & Education Services,Children's Services,Goods Received/Invoice Rec'd A/c,04/01/2023,5100077477,6156,Disclosure and Barring Serv
Derbyshire County Council,1000,Adult Social Care,Adult Social Health Care,Input VAT,04/01/2023,5100077781,1124.18,Elis UK Limited
Derbyshire County Council,1000,Adult Social Care,Adult Social Health Care,Independent Dom Services,04/01/2023,1900444934,2614.72,My Homecare
Derbyshire County Council,1000,Adult Social Care,Adult Social Health Care,Independent Dom Services,04/01/2023,1900444941,568.48,My Homecare
Derbyshire County Council,1000,Adult Social Care,Adult Social Health Care,Independent Dom Services,04/01/2023,1900444884,1174.21,Eyam Domiciliary Service Ltd
Derbyshire County Council,1000,Adult Social Care,Adult Social Health Care,Independent Dom Services,04/01/2023,1900444948,3124.44,My Homecare
Derbyshire County Council,1000,Children & Education Services,Children's Services,Goods Received/Invoice Rec'd A/c,04/01/2023,5100077506,930,David Heald
Derbyshire County Council,1000,Children & Education Services,Children's Services,Goods Received/Invoice Rec'd A/c,04/01/2023,5100077485,729.25,REDACTED PERSONAL DATA
Derbyshire County Council,1000,Children & Education Services,Children's Services,Payments to 3rd Parties,04/01/2023,1900442197,11297,Staffordshire County Council
Derbyshire County Council,1000,Children & Education Services,Children's Services,Goods Received/Invoice Rec'd A/c,04/01/2023,5100077502,1455,Greenline Staffing Solutions LTD
Derbyshire County Council,1000,Children & Education Services,Children's Services,Voluntary Organisations,04/01/2023,1900445057,3518.05,Sunbeam Fostering Agency Ltd
Derbyshire County Council,1000,Children & Education Services,Children's Services,Voluntary Organisations,04/01/2023,1900445139,4206.7,Team Fostering
